{"text_format":"1","workbook":"xlsx","n_sheets":67,"sheets":["Mitteilung","Gesellschaft 1","Gesellschaft 2","Gesellschaft 3","Gesellschaft 4","Gesellschaft 5","Gesellschaft 6","Gesellschaft 7","Gesellschaft 8","Gesellschaft 9","Gesellschaft 10","Gesellschaft 11","Gesellschaft 12","Gesellschaft 13","Gesellschaft 14","Gesellschaft 15","Gesellschaft 16","Gesellschaft 17","Gesellschaft 18","Gesellschaft 19","Gesellschaft 20","Beteiligte 1","Beteiligte 2","Beteiligte 3","Beteiligte 4","Beteiligte 5","Beteiligte 6","Beteiligte 7","Beteiligte 8","Beteiligte 9","Beteiligte 10","Beteiligte 11","Beteiligte 12","Beteiligte 13","Beteiligte 14","Beteiligte 15","Beteiligte 16","Beteiligte 17","Beteiligte 18","Beteiligte 19","Beteiligte 20","Drittstaat 1","Drittstaat 2","Drittstaat 3","Drittstaat 4","Drittstaat 5","Drittstaat 6","Drittstaat 7","Drittstaat 8","Drittstaat 9","Drittstaat 10","Drittstaat 11","Drittstaat 12","Drittstaat 13","Drittstaat 14","Drittstaat 15","Drittstaat 16","Drittstaat 17","Drittstaat 18","Drittstaat 19","Drittstaat 20","Hinweis","Erläuterungen","Attribute","Drucken","Eintragung","Stammdaten"],"not_rendered":{"charts":0,"images":2,"macros":1,"external_links":0,"defined_names":1055,"comments":0,"pivot_tables":0},"unopened":[],"bounds":{"document_bytes":16777216,"sheet_cells":100000,"rows_first":2000,"rows_last":500,"rows_between":2000,"halvings":0,"cell_chars":16384,"cell_head_chars":4096},"cells_cut":0,"cells_raw":0,"read":"whole","date_system":"1900"}

{"sheet":"Mitteilung","index":0,"n_rows":144,"n_cols":34,"rows_kept":144,"cut":false,"hidden":false,"merged":[[72,4,72,36],[74,10,74,13],[80,16,80,37],[74,6,74,9],[74,14,74,36],[78,6,78,21],[80,12,80,15],[96,6,96,9],[94,6,94,13],[88,16,88,20],[82,16,82,20],[88,12,88,15],[92,14,92,15],[84,6,84,30],[86,16,86,37],[86,8,86,11],[88,8,88,11],[90,4,91,37],[92,16,92,37],[92,6,92,13],[82,12,82,15],[86,12,86,15],[141,2,141,18],[113,14,114,35],[112,3,112,10],[113,3,114,10],[143,2,143,33],[70,2,70,37],[80,8,80,11],[82,8,82,11],[108,33,108,34],[108,18,108,19],[104,6,104,9],[106,4,107,37],[96,14,96,37],[98,14,98,37],[98,6,98,9],[100,4,102,37],[98,10,98,13],[104,10,104,13],[104,14,104,36],[96,10,96,13],[76,4,76,27],[21,3,22,15],[65,2,65,18],[30,3,30,9],[24,3,24,33],[26,3,26,33],[28,3,28,33],[32,3,32,33],[23,3,23,24],[31,3,31,17],[4,2,4,15],[12,2,12,28],[5,2,5,23],[10,27,10,36],[10,2,10,26],[67,2,67,34],[14,2,14,38],[15,2,15,38],[16,2,16,38],[17,2,17,38],[33,10,33,23],[36,3,36,4],[34,10,34,36],[29,3,29,9],[33,3,33,8],[34,3,34,8],[25,3,25,7],[27,3,27,8],[18,2,18,38],[19,2,19,38],[32,35,32,36]]}
[]
[]
[]
[]
[null,null,"An das Finanzamt",null,null,null,null,null,null,null,null,null,null,null,null,null,null,null,null,null,null,null,null,null,null,null,null,null,null,null,null,null,null,"Jahr"]
[null,null,null,null,null,null,null,null,null,null,null,null,null,null,null,null,null,null,null,null,null,null,null,null,null,null,null,null,null,null,null,null,"20"]
[]
[null,null,"Steuer-Identifikationsnummer bzw. Wirtschafts-",null,null,null,null,null,null,null,null,null,null,null,null,null,null,null,null,null,null,null,null,null,null,null,null,"Steuernummer"]
[null,null,"Identifikationsnummer"]
[]
[]
[]
[null,null,"Mitteilung über (9)"]
[null,null,null,null,""]
[null,null,"-  die Gründung und den Erwerb von Betrieben und Betriebsstätten im Ausland"]
[null,null,"-  den Erwerb, die Aufgabe oder die Veränderung einer Beteiligung an ausländischen Personengesellschaften"]
[null,null,"-  den Erwerb oder die Veräußerung von Beteiligungen an einer Körperschaft, Personenvereinigung oder"]
[null,null,"   Vermögensmasse mit Sitz und Geschäftsleitung im Ausland (1)"]
[null,null,"-  die erstmalige Möglichkeit der Beherrschung oder Bestimmung der gesellschaftsrechtlichen, finanziellen"]
[null,null,"   oder geschäftlichen Angelegenheiten einer Drittstaat-Gesellschaft"]
[]
[null,null,null,"Allgemeine Angaben"]
[]
[null,null,null,"Name (Steuerpflichtige Person / Firma)"]
[]
[null,null,null,"Vorname"]
[null,null,null,""]
[null,null,null,"Rechtsform"]
[]
[null,null,null,"Geburtsdatum"]
[]
[null,null,null,"Straße / Hausnummer"]
[null,null,null,""]
[null,null,null,"Postleitzahl",null,null,null,null,null,null,"Sitz / Ort der Geschäftsleitung / Wohnort"]
[null,null,null,"",null,null,null,null,null,null,""]
[]
[]
[]
[]
[]
[]
[]
[]
[]
[]
[]
[]
[]
[]
[]
[]
[]
[]
[]
[]
[]
[]
[]
[]
[]
[]
[]
[]
[]
[]
[null,null,"Allgemeine Angaben; Seite 1 von 2"]
[]
[null,null,"010003 - BZSt 2 Mitteilungen nach § 138 Abs. 2 AO - 11/2020"]
[]
[]
[null,null,{"$f":"Header","v":""}]
[]
[null,null,null,null," Ich habe ausländische Betriebe / ausländische Betriebsstätten gegründet / erworben"]
[]
[null,null,null,null,null,null,"Anzahl",null,null,null,null,null,null,null,"Anlage(n) \"Ausländische Gesellschaft / ausländische Betriebsstätte / ausländischer Betrieb\""]
[]
[null,null,null,null," Ich habe mitteilungspflichtige Beteiligungen erworben an"]
[]
[null,null,null,null,null,null," ausländischen Personengesellschaften"]
[]
[null,null,null,null,null,null,null,null,"Anzahl",null,null,null,null,null,null,null,"Anlage(n) \"Ausländische Gesellschaft / ausländische Betriebsstätte / ausländischer Betrieb\""]
[]
[null,null,null,null,null,null,null,null,"Anzahl",null,null,null,null,null,null,null,"Anlage(n) \"Beteiligte\""]
[]
[null,null,null,null,null,null," ausländischen Körperschaften, Vermögensmassen, Personenvereinigungen"]
[]
[null,null,null,null,null,null,null,null,"Anzahl",null,null,null,null,null,null,null,"Anlage(n) \"Ausländische Gesellschaft / ausländische Betriebsstätte / ausländischer Betrieb\""]
[]
[null,null,null,null,null,null,null,null,"Anzahl",null,null,null,null,null,null,null,"Anlage(n) \"Beteiligte\""]
[]
[null,null,null,null," Ich habe mitteilungspflichtige Beteiligungen\n an ausländischen Personengesellschaften, Körperschaften, Vermögensmassen oder Personenvereinigungen"]
[]
[null,null,null,null,null,null," aufgegeben /",null,null,null,null,null,null,null,null,null," geändert (beides nur bei ausländischen Personengesellschaften) /"]
[]
[null,null,null,null,null,null," veräußert."]
[]
[null,null,null,null,null,null,"Anzahl",null,null,null,null,null,null,null,"Anlage(n) \"Ausländische Gesellschaft / ausländische Betriebsstätte / ausländischer Betrieb\""]
[]
[null,null,null,null,null,null,"Anzahl",null,null,null,null,null,null,null,"Anlage(n) \"Beteiligte\""]
[]
[null,null,null,null," Ich verfüge erstmals über einen beherrschenden oder bestimmenden Einfluss auf die gesellschaftsrechtlichen,\n finanziellen oder geschäftlichen Angelegenheiten einer Drittstaat-Gesellschaft, der nicht auf einer\n mitteilungspflichtigen Beteiligung beruht."]
[]
[]
[]
[null,null,null,null,null,null,"Anzahl",null,null,null,null,null,null,null,"Anlage(n) \"Drittstaat-Gesellschaft\""]
[]
[null,null,null,null," Ich habe keine ausländischen Betriebe / keine ausländischen Betriebsstätten gegründet /\n erworben und / oder halte keine meldepflichtigen Beteiligungen."]
[]
[]
[]
[]
[]
[null,null,null,"17.12.2021"]
[null,null,null,"Datum",null,null,null,null,null,null,null,null,null,null,"Unterschrift (2)"]
[]
[]
[]
[]
[]
[]
[]
[]
[]
[]
[]
[]
[]
[]
[]
[]
[]
[]
[]
[]
[]
[]
[]
[]
[]
[]
[]
[null,null,"Allgemeine Angaben; Seite 2 von 2"]
[]
[null,null,"010003 - BZSt 2 Mitteilungen nach § 138 Abs. 2 AO - 11/2020"]

{"sheet":"Gesellschaft 1","index":1,"n_rows":74,"n_cols":32,"rows_kept":74,"cut":false,"hidden":false,"merged":[[2,2,2,32],[40,3,40,31],[42,3,42,21],[39,3,39,7],[3,2,4,32],[13,22,13,31],[5,2,5,32],[6,3,6,16],[17,30,17,31],[20,30,20,31],[29,3,29,31],[30,3,30,7],[27,26,27,31],[27,3,27,24],[28,3,28,11],[26,26,26,31],[44,3,44,7],[43,3,43,24],[43,26,43,31],[42,26,42,31],[47,3,47,4],[47,5,50,32],[30,10,30,20],[38,3,38,8],[35,3,35,13],[23,30,23,31],[36,3,36,31],[31,10,31,31],[31,3,31,8],[33,3,33,31],[37,10,37,15],[37,3,37,9],[23,5,23,26],[23,27,23,29],[32,3,32,6],[26,3,26,13],[38,10,38,31],[7,3,7,29],[13,3,13,21],[17,5,17,16],[17,27,17,29],[20,27,20,29],[15,5,15,15],[20,5,20,26],[17,18,17,26],[73,2,73,33],[45,3,45,9],[46,3,46,19],[64,3,64,21],[70,2,70,33],[54,3,54,31],[58,3,58,31],[64,22,64,31],[57,3,57,16]]}
[]
[]
[null,null,{"$f":"Header","v":""}]
[null,null,"Anlage: Ausländische Gesellschaft / ausländische Betriebsstätte / ausländischer Betrieb"]
[]
[null,null,""]
[null,null,null,"Name / Firma der steuerpflichtigen Person"]
[null,null,null,null,null,null,null,null,null,null,null,null,null,null,null,null,null,null,null,null,null,null,null,null,null,null,null,null,null,null,"20",{"$f":"IF(Jahr=\"\",\"\",Jahr)","v":""}]
[]
[null,null,null,"Steuer-Identifikationsnummer bzw.",null,null,null,null,null,null,null,null,null,null,null,null,null,null,null,null,null,null,"Steuernummer der"]
[null,null,null,"Wirtschafts-Identifikationsnummer der steuerpflichtigen Person",null,null,null,null,null,null,null,null,null,null,null,null,null,null,null,null,null,null,"steuerpflichtigen Person"]
[]
[]
[]
[]
[]
[null,null,null,null,"zutreffendes bitte ankreuzen"]
[null,null,null,null,null," Ausländische Betriebsstätte",null,null,null,null,null,null,null,null,null,null,null,null," Ausländischer Betrieb",null,null,null,null,null,null,null,null,"Lfd. Nr. (3)"]
[]
[]
[null,null,null,null,null," Ausländische Personengesellschaft",null,null,null,null,null,null,null,null,null,null,null,null,null,null,null,null,null,null,null,null,null,"Lfd. Nr. (3)"]
[]
[]
[null,null,null,null,null," Ausländische Kapitalgesellschaft, Vermögensmasse, Personenvereinigung",null,null,null,null,null,null,null,null,null,null,null,null,null,null,null,null,null,null,null,null,null,"Lfd. Nr. (3)"]
[]
[]
[null,null,null,"Firmenname (4)",null,null,null,null,null,null,null,null,null,null,null,null,null,null,null,null,null,null,null,null,null,null,"Rechtsform"]
[]
[null,null,null,"Straße/Hausnummer"]
[]
[null,null,null,"Postleitzahl",null,null,null,null,null,null,"Ort/Sitz/Ort der Geschäftsleitung/Wohnort"]
[]
[null,null,null,"Staat"]
[]
[]
[null,null,null,"Sitz: Straße/Hausnummer*"]
[]
[null,null,null,"Sitz: Postleitzahl*",null,null,null,null,null,null,"Sitz: Ort*"]
[]
[null,null,null,"Sitz: Staat*"]
[]
[]
[null,null,null,"Nominalkapital** / Kapital (Höhe der Geschäftseinlage)***",null,null,null,null,null,null,null,null,null,null,null,null,null,null,null,null,null,null,null,null,null,null,"Währung (5)"]
[]
[null,null,null,"Gründung am"]
[]
[null,null,null,"Art der wirtschaftlichen Tätigkeit / Geschäftszweck"]
[null,null,null,null,null," 1 = Land- und Forstwirtschaft, 2 = Gewerbliche Herstellung und Verarbeitung,\n 3 = Kreditinstitut oder Versicherungsunternehmen, 4 = Handel, 5 = Überlassung von Rechten, Plänen, Mustern,\n 6 = Vermietung und Verpachtung von Grundstücken, 7 = Vermietung und Verpachtung von beweglichen Sachen,\n 8 = Verwaltung, 9 = Kapitalanlage, 10 = Finanzierung, 11 = Sonstige Dienstleistungen, 12 = Holding,\n 13 = Sonstiges (10)"]
[]
[]
[]
[]
[]
[]
[]
[]
[]
[null,null,null,"Im Inland steuerlich erfasst beim Finanzamt (6)"]
[]
[]
[null,null,null,"Steuer-Identifikationsnummer bzw.",null,null,null,null,null,null,null,null,null,null,null,null,null,null,null,null,null,null,"Steuernummer"]
[null,null,null,"Wirtschafts-Identifikationsnummer"]
[]
[]
[]
[]
[null,null,null,"*",null,"Nur auszufüllen, wenn der Registersitz vom Ort/Sitz/Ort der Geschäftsleitung/Wohnort abweicht."]
[null,null,null,"**",null,"Nur bei ausländischen Kapitalgesellschaften anzugeben."]
[null,null,null,"***",null,"Nur bei Beteiligungen an ausländischen Personengesellschaften anzugeben."]
[]
[null,null,"Anlage: Ausländische Gesellschaft/ausländische Betriebsstätte/ausländischer Betrieb; Seite 1"]
[]
[]
[null,null,"010003 - BZSt 2 Mitteilungen nach § 138 Abs. 2 AO - 11/2020"]

{"sheet":"Gesellschaft 2","index":2,"n_rows":74,"n_cols":32,"rows_kept":74,"cut":false,"hidden":true,"merged":[[73,2,73,33],[54,3,54,31],[57,3,57,16],[58,3,58,31],[64,3,64,21],[64,22,64,31],[70,2,70,33],[47,3,47,4],[47,5,50,32],[38,3,38,8],[38,10,38,31],[39,3,39,7],[40,3,40,31],[42,3,42,21],[42,26,42,31],[43,3,43,24],[43,26,43,31],[44,3,44,7],[45,3,45,9],[46,3,46,19],[32,3,32,6],[33,3,33,31],[35,3,35,13],[36,3,36,31],[37,3,37,9],[37,10,37,15],[28,3,28,11],[29,3,29,31],[30,3,30,7],[30,10,30,20],[31,3,31,8],[31,10,31,31],[27,3,27,24],[27,26,27,31],[15,5,15,15],[17,5,17,16],[17,18,17,26],[17,27,17,29],[17,30,17,31],[20,5,20,26],[20,27,20,29],[20,30,20,31],[23,5,23,26],[23,27,23,29],[23,30,23,31],[26,3,26,13],[26,26,26,31],[13,3,13,21],[13,22,13,31],[2,2,2,32],[3,2,4,32],[5,2,5,32],[6,3,6,16],[7,3,7,29]]}
[]
[]
[null,null,{"$f":"Header","v":""}]
[null,null,"Anlage: Ausländische Gesellschaft / ausländische Betriebsstätte / ausländischer Betrieb"]
[]
[null,null,""]
[null,null,null,"Name / Firma der steuerpflichtigen Person"]
[null,null,null,null,null,null,null,null,null,null,null,null,null,null,null,null,null,null,null,null,null,null,null,null,null,null,null,null,null,null,"20",{"$f":"IF(Jahr=\"\",\"\",Jahr)","v":""}]
[]
[null,null,null,"Steuer-Identifikationsnummer bzw.",null,null,null,null,null,null,null,null,null,null,null,null,null,null,null,null,null,null,"Steuernummer der"]
[null,null,null,"Wirtschafts-Identifikationsnummer der steuerpflichtigen Person",null,null,null,null,null,null,null,null,null,null,null,null,null,null,null,null,null,null,"steuerpflichtigen Person"]
[]
[]
[]
[]
[]
[null,null,null,null,"zutreffendes bitte ankreuzen"]
[null,null,null,null,null," Ausländische Betriebsstätte",null,null,null,null,null,null,null,null,null,null,null,null," Ausländischer Betrieb",null,null,null,null,null,null,null,null,"Lfd. Nr. (3)"]
[]
[]
[null,null,null,null,null," Ausländische Personengesellschaft",null,null,null,null,null,null,null,null,null,null,null,null,null,null,null,null,null,null,null,null,null,"Lfd. Nr. (3)"]
[]
[]
[null,null,null,null,null," Ausländische Kapitalgesellschaft, Vermögensmasse, Personenvereinigung",null,null,null,null,null,null,null,null,null,null,null,null,null,null,null,null,null,null,null,null,null,"Lfd. Nr. (3)"]
[]
[]
[null,null,null,"Firmenname (4)",null,null,null,null,null,null,null,null,null,null,null,null,null,null,null,null,null,null,null,null,null,null,"Rechtsform"]
[]
[null,null,null,"Straße/Hausnummer"]
[]
[null,null,null,"Postleitzahl",null,null,null,null,null,null,"Ort/Sitz/Ort der Geschäftsleitung/Wohnort"]
[]
[null,null,null,"Staat"]
[]
[]
[null,null,null,"Sitz: Straße/Hausnummer*"]
[]
[null,null,null,"Sitz: Postleitzahl*",null,null,null,null,null,null,"Sitz: Ort*"]
[]
[null,null,null,"Sitz: Staat*"]
[]
[]
[null,null,null,"Nominalkapital** / Kapital (Höhe der Geschäftseinlage)***",null,null,null,null,null,null,null,null,null,null,null,null,null,null,null,null,null,null,null,null,null,null,"Währung (5)"]
[]
[null,null,null,"Gründung am"]
[]
[null,null,null,"Art der wirtschaftlichen Tätigkeit / Geschäftszweck"]
[null,null,null,null,null," 1 = Land- und Forstwirtschaft, 2 = Gewerbliche Herstellung und Verarbeitung,\n 3 = Kreditinstitut oder Versicherungsunternehmen, 4 = Handel, 5 = Überlassung von Rechten, Plänen, Mustern,\n 6 = Vermietung und Verpachtung von Grundstücken, 7 = Vermietung und Verpachtung von beweglichen Sachen,\n 8 = Verwaltung, 9 = Kapitalanlage, 10 = Finanzierung, 11 = Sonstige Dienstleistungen, 12 = Holding,\n 13 = Sonstiges (10)"]
[]
[]
[]
[]
[]
[]
[]
[]
[]
[null,null,null,"Im Inland steuerlich erfasst beim Finanzamt (6)"]
[]
[]
[null,null,null,"Steuer-Identifikationsnummer bzw.",null,null,null,null,null,null,null,null,null,null,null,null,null,null,null,null,null,null,"Steuernummer"]
[null,null,null,"Wirtschafts-Identifikationsnummer"]
[]
[]
[]
[]
[null,null,null,"*",null,"Nur auszufüllen, wenn der Registersitz vom Ort/Sitz/Ort der Geschäftsleitung/Wohnort abweicht."]
[null,null,null,"**",null,"Nur bei ausländischen Kapitalgesellschaften anzugeben."]
[null,null,null,"***",null,"Nur bei Beteiligungen an ausländischen Personengesellschaften anzugeben."]
[]
[null,null,"Anlage: Ausländische Gesellschaft/ausländische Betriebsstätte/ausländischer Betrieb; Seite 1"]
[]
[]
[null,null,"010003 - BZSt 2 Mitteilungen nach § 138 Abs. 2 AO - 11/2020"]

{"sheet":"Gesellschaft 3","index":3,"n_rows":74,"n_cols":32,"rows_kept":74,"cut":false,"hidden":true,"merged":[[73,2,73,33],[54,3,54,31],[57,3,57,16],[58,3,58,31],[64,3,64,21],[64,22,64,31],[70,2,70,33],[47,3,47,4],[47,5,50,32],[38,3,38,8],[38,10,38,31],[39,3,39,7],[40,3,40,31],[42,3,42,21],[42,26,42,31],[43,3,43,24],[43,26,43,31],[44,3,44,7],[45,3,45,9],[46,3,46,19],[32,3,32,6],[33,3,33,31],[35,3,35,13],[36,3,36,31],[37,3,37,9],[37,10,37,15],[28,3,28,11],[29,3,29,31],[30,3,30,7],[30,10,30,20],[31,3,31,8],[31,10,31,31],[27,3,27,24],[27,26,27,31],[15,5,15,15],[17,5,17,16],[17,18,17,26],[17,27,17,29],[17,30,17,31],[20,5,20,26],[20,27,20,29],[20,30,20,31],[23,5,23,26],[23,27,23,29],[23,30,23,31],[26,3,26,13],[26,26,26,31],[13,3,13,21],[13,22,13,31],[2,2,2,32],[3,2,4,32],[5,2,5,32],[6,3,6,16],[7,3,7,29]]}
[]
[]
[null,null,{"$f":"Header","v":""}]
[null,null,"Anlage: Ausländische Gesellschaft / ausländische Betriebsstätte / ausländischer Betrieb"]
[]
[null,null,""]
[null,null,null,"Name / Firma der steuerpflichtigen Person"]
[null,null,null,null,null,null,null,null,null,null,null,null,null,null,null,null,null,null,null,null,null,null,null,null,null,null,null,null,null,null,"20",{"$f":"IF(Jahr=\"\",\"\",Jahr)","v":""}]
[]
[null,null,null,"Steuer-Identifikationsnummer bzw.",null,null,null,null,null,null,null,null,null,null,null,null,null,null,null,null,null,null,"Steuernummer der"]
[null,null,null,"Wirtschafts-Identifikationsnummer der steuerpflichtigen Person",null,null,null,null,null,null,null,null,null,null,null,null,null,null,null,null,null,null,"steuerpflichtigen Person"]
[]
[]
[]
[]
[]
[null,null,null,null,"zutreffendes bitte ankreuzen"]
[null,null,null,null,null," Ausländische Betriebsstätte",null,null,null,null,null,null,null,null,null,null,null,null," Ausländischer Betrieb",null,null,null,null,null,null,null,null,"Lfd. Nr. (3)"]
[]
[]
[null,null,null,null,null," Ausländische Personengesellschaft",null,null,null,null,null,null,null,null,null,null,null,null,null,null,null,null,null,null,null,null,null,"Lfd. Nr. (3)"]
[]
[]
[null,null,null,null,null," Ausländische Kapitalgesellschaft, Vermögensmasse, Personenvereinigung",null,null,null,null,null,null,null,null,null,null,null,null,null,null,null,null,null,null,null,null,null,"Lfd. Nr. (3)"]
[]
[]
[null,null,null,"Firmenname (4)",null,null,null,null,null,null,null,null,null,null,null,null,null,null,null,null,null,null,null,null,null,null,"Rechtsform"]
[]
[null,null,null,"Straße/Hausnummer"]
[]
[null,null,null,"Postleitzahl",null,null,null,null,null,null,"Ort/Sitz/Ort der Geschäftsleitung/Wohnort"]
[]
[null,null,null,"Staat"]
[]
[]
[null,null,null,"Sitz: Straße/Hausnummer*"]
[]
[null,null,null,"Sitz: Postleitzahl*",null,null,null,null,null,null,"Sitz: Ort*"]
[]
[null,null,null,"Sitz: Staat*"]
[]
[]
[null,null,null,"Nominalkapital** / Kapital (Höhe der Geschäftseinlage)***",null,null,null,null,null,null,null,null,null,null,null,null,null,null,null,null,null,null,null,null,null,null,"Währung (5)"]
[]
[null,null,null,"Gründung am"]
[]
[null,null,null,"Art der wirtschaftlichen Tätigkeit / Geschäftszweck"]
[null,null,null,null,null," 1 = Land- und Forstwirtschaft, 2 = Gewerbliche Herstellung und Verarbeitung,\n 3 = Kreditinstitut oder Versicherungsunternehmen, 4 = Handel, 5 = Überlassung von Rechten, Plänen, Mustern,\n 6 = Vermietung und Verpachtung von Grundstücken, 7 = Vermietung und Verpachtung von beweglichen Sachen,\n 8 = Verwaltung, 9 = Kapitalanlage, 10 = Finanzierung, 11 = Sonstige Dienstleistungen, 12 = Holding,\n 13 = Sonstiges (10)"]
[]
[]
[]
[]
[]
[]
[]
[]
[]
[null,null,null,"Im Inland steuerlich erfasst beim Finanzamt (6)"]
[]
[]
[null,null,null,"Steuer-Identifikationsnummer bzw.",null,null,null,null,null,null,null,null,null,null,null,null,null,null,null,null,null,null,"Steuernummer"]
[null,null,null,"Wirtschafts-Identifikationsnummer"]
[]
[]
[]
[]
[null,null,null,"*",null,"Nur auszufüllen, wenn der Registersitz vom Ort/Sitz/Ort der Geschäftsleitung/Wohnort abweicht."]
[null,null,null,"**",null,"Nur bei ausländischen Kapitalgesellschaften anzugeben."]
[null,null,null,"***",null,"Nur bei Beteiligungen an ausländischen Personengesellschaften anzugeben."]
[]
[null,null,"Anlage: Ausländische Gesellschaft/ausländische Betriebsstätte/ausländischer Betrieb; Seite 1"]
[]
[]
[null,null,"010003 - BZSt 2 Mitteilungen nach § 138 Abs. 2 AO - 11/2020"]

{"sheet":"Gesellschaft 4","index":4,"n_rows":74,"n_cols":32,"rows_kept":74,"cut":false,"hidden":true,"merged":[[73,2,73,33],[54,3,54,31],[57,3,57,16],[58,3,58,31],[64,3,64,21],[64,22,64,31],[70,2,70,33],[47,3,47,4],[47,5,50,32],[38,3,38,8],[38,10,38,31],[39,3,39,7],[40,3,40,31],[42,3,42,21],[42,26,42,31],[43,3,43,24],[43,26,43,31],[44,3,44,7],[45,3,45,9],[46,3,46,19],[32,3,32,6],[33,3,33,31],[35,3,35,13],[36,3,36,31],[37,3,37,9],[37,10,37,15],[28,3,28,11],[29,3,29,31],[30,3,30,7],[30,10,30,20],[31,3,31,8],[31,10,31,31],[27,3,27,24],[27,26,27,31],[15,5,15,15],[17,5,17,16],[17,18,17,26],[17,27,17,29],[17,30,17,31],[20,5,20,26],[20,27,20,29],[20,30,20,31],[23,5,23,26],[23,27,23,29],[23,30,23,31],[26,3,26,13],[26,26,26,31],[13,3,13,21],[13,22,13,31],[2,2,2,32],[3,2,4,32],[5,2,5,32],[6,3,6,16],[7,3,7,29]]}
[]
[]
[null,null,{"$f":"Header","v":""}]
[null,null,"Anlage: Ausländische Gesellschaft / ausländische Betriebsstätte / ausländischer Betrieb"]
[]
[null,null,""]
[null,null,null,"Name / Firma der steuerpflichtigen Person"]
[null,null,null,null,null,null,null,null,null,null,null,null,null,null,null,null,null,null,null,null,null,null,null,null,null,null,null,null,null,null,"20",{"$f":"IF(Jahr=\"\",\"\",Jahr)","v":""}]
[]
[null,null,null,"Steuer-Identifikationsnummer bzw.",null,null,null,null,null,null,null,null,null,null,null,null,null,null,null,null,null,null,"Steuernummer der"]
[null,null,null,"Wirtschafts-Identifikationsnummer der steuerpflichtigen Person",null,null,null,null,null,null,null,null,null,null,null,null,null,null,null,null,null,null,"steuerpflichtigen Person"]
[]
[]
[]
[]
[]
[null,null,null,null,"zutreffendes bitte ankreuzen"]
[null,null,null,null,null," Ausländische Betriebsstätte",null,null,null,null,null,null,null,null,null,null,null,null," Ausländischer Betrieb",null,null,null,null,null,null,null,null,"Lfd. Nr. (3)"]
[]
[]
[null,null,null,null,null," Ausländische Personengesellschaft",null,null,null,null,null,null,null,null,null,null,null,null,null,null,null,null,null,null,null,null,null,"Lfd. Nr. (3)"]
[]
[]
[null,null,null,null,null," Ausländische Kapitalgesellschaft, Vermögensmasse, Personenvereinigung",null,null,null,null,null,null,null,null,null,null,null,null,null,null,null,null,null,null,null,null,null,"Lfd. Nr. (3)"]
[]
[]
[null,null,null,"Firmenname (4)",null,null,null,null,null,null,null,null,null,null,null,null,null,null,null,null,null,null,null,null,null,null,"Rechtsform"]
[]
[null,null,null,"Straße/Hausnummer"]
[]
[null,null,null,"Postleitzahl",null,null,null,null,null,null,"Ort/Sitz/Ort der Geschäftsleitung/Wohnort"]
[]
[null,null,null,"Staat"]
[]
[]
[null,null,null,"Sitz: Straße/Hausnummer*"]
[]
[null,null,null,"Sitz: Postleitzahl*",null,null,null,null,null,null,"Sitz: Ort*"]
[]
[null,null,null,"Sitz: Staat*"]
[]
[]
[null,null,null,"Nominalkapital** / Kapital (Höhe der Geschäftseinlage)***",null,null,null,null,null,null,null,null,null,null,null,null,null,null,null,null,null,null,null,null,null,null,"Währung (5)"]
[]
[null,null,null,"Gründung am"]
[]
[null,null,null,"Art der wirtschaftlichen Tätigkeit / Geschäftszweck"]
[null,null,null,null,null," 1 = Land- und Forstwirtschaft, 2 = Gewerbliche Herstellung und Verarbeitung,\n 3 = Kreditinstitut oder Versicherungsunternehmen, 4 = Handel, 5 = Überlassung von Rechten, Plänen, Mustern,\n 6 = Vermietung und Verpachtung von Grundstücken, 7 = Vermietung und Verpachtung von beweglichen Sachen,\n 8 = Verwaltung, 9 = Kapitalanlage, 10 = Finanzierung, 11 = Sonstige Dienstleistungen, 12 = Holding,\n 13 = Sonstiges (10)"]
[]
[]
[]
[]
[]
[]
[]
[]
[]
[null,null,null,"Im Inland steuerlich erfasst beim Finanzamt (6)"]
[]
[]
[null,null,null,"Steuer-Identifikationsnummer bzw.",null,null,null,null,null,null,null,null,null,null,null,null,null,null,null,null,null,null,"Steuernummer"]
[null,null,null,"Wirtschafts-Identifikationsnummer"]
[]
[]
[]
[]
[null,null,null,"*",null,"Nur auszufüllen, wenn der Registersitz vom Ort/Sitz/Ort der Geschäftsleitung/Wohnort abweicht."]
[null,null,null,"**",null,"Nur bei ausländischen Kapitalgesellschaften anzugeben."]
[null,null,null,"***",null,"Nur bei Beteiligungen an ausländischen Personengesellschaften anzugeben."]
[]
[null,null,"Anlage: Ausländische Gesellschaft/ausländische Betriebsstätte/ausländischer Betrieb; Seite 1"]
[]
[]
[null,null,"010003 - BZSt 2 Mitteilungen nach § 138 Abs. 2 AO - 11/2020"]

{"sheet":"Gesellschaft 5","index":5,"n_rows":74,"n_cols":32,"rows_kept":74,"cut":false,"hidden":true,"merged":[[73,2,73,33],[54,3,54,31],[57,3,57,16],[58,3,58,31],[64,3,64,21],[64,22,64,31],[70,2,70,33],[47,3,47,4],[47,5,50,32],[38,3,38,8],[38,10,38,31],[39,3,39,7],[40,3,40,31],[42,3,42,21],[42,26,42,31],[43,3,43,24],[43,26,43,31],[44,3,44,7],[45,3,45,9],[46,3,46,19],[32,3,32,6],[33,3,33,31],[35,3,35,13],[36,3,36,31],[37,3,37,9],[37,10,37,15],[28,3,28,11],[29,3,29,31],[30,3,30,7],[30,10,30,20],[31,3,31,8],[31,10,31,31],[27,3,27,24],[27,26,27,31],[15,5,15,15],[17,5,17,16],[17,18,17,26],[17,27,17,29],[17,30,17,31],[20,5,20,26],[20,27,20,29],[20,30,20,31],[23,5,23,26],[23,27,23,29],[23,30,23,31],[26,3,26,13],[26,26,26,31],[13,3,13,21],[13,22,13,31],[2,2,2,32],[3,2,4,32],[5,2,5,32],[6,3,6,16],[7,3,7,29]]}
[]
[]
[null,null,{"$f":"Header","v":""}]
[null,null,"Anlage: Ausländische Gesellschaft / ausländische Betriebsstätte / ausländischer Betrieb"]
[]
[null,null,""]
[null,null,null,"Name / Firma der steuerpflichtigen Person"]
[null,null,null,null,null,null,null,null,null,null,null,null,null,null,null,null,null,null,null,null,null,null,null,null,null,null,null,null,null,null,"20",{"$f":"IF(Jahr=\"\",\"\",Jahr)","v":""}]
[]
[null,null,null,"Steuer-Identifikationsnummer bzw.",null,null,null,null,null,null,null,null,null,null,null,null,null,null,null,null,null,null,"Steuernummer der"]
[null,null,null,"Wirtschafts-Identifikationsnummer der steuerpflichtigen Person",null,null,null,null,null,null,null,null,null,null,null,null,null,null,null,null,null,null,"steuerpflichtigen Person"]
[]
[]
[]
[]
[]
[null,null,null,null,"zutreffendes bitte ankreuzen"]
[null,null,null,null,null," Ausländische Betriebsstätte",null,null,null,null,null,null,null,null,null,null,null,null," Ausländischer Betrieb",null,null,null,null,null,null,null,null,"Lfd. Nr. (3)"]
[]
[]
[null,null,null,null,null," Ausländische Personengesellschaft",null,null,null,null,null,null,null,null,null,null,null,null,null,null,null,null,null,null,null,null,null,"Lfd. Nr. (3)"]
[]
[]
[null,null,null,null,null," Ausländische Kapitalgesellschaft, Vermögensmasse, Personenvereinigung",null,null,null,null,null,null,null,null,null,null,null,null,null,null,null,null,null,null,null,null,null,"Lfd. Nr. (3)"]
[]
[]
[null,null,null,"Firmenname (4)",null,null,null,null,null,null,null,null,null,null,null,null,null,null,null,null,null,null,null,null,null,null,"Rechtsform"]
[]
[null,null,null,"Straße/Hausnummer"]
[]
[null,null,null,"Postleitzahl",null,null,null,null,null,null,"Ort/Sitz/Ort der Geschäftsleitung/Wohnort"]
[]
[null,null,null,"Staat"]
[]
[]
[null,null,null,"Sitz: Straße/Hausnummer*"]
[]
[null,null,null,"Sitz: Postleitzahl*",null,null,null,null,null,null,"Sitz: Ort*"]
[]
[null,null,null,"Sitz: Staat*"]
[]
[]
[null,null,null,"Nominalkapital** / Kapital (Höhe der Geschäftseinlage)***",null,null,null,null,null,null,null,null,null,null,null,null,null,null,null,null,null,null,null,null,null,null,"Währung (5)"]
[]
[null,null,null,"Gründung am"]
[]
[null,null,null,"Art der wirtschaftlichen Tätigkeit / Geschäftszweck"]
[null,null,null,null,null," 1 = Land- und Forstwirtschaft, 2 = Gewerbliche Herstellung und Verarbeitung,\n 3 = Kreditinstitut oder Versicherungsunternehmen, 4 = Handel, 5 = Überlassung von Rechten, Plänen, Mustern,\n 6 = Vermietung und Verpachtung von Grundstücken, 7 = Vermietung und Verpachtung von beweglichen Sachen,\n 8 = Verwaltung, 9 = Kapitalanlage, 10 = Finanzierung, 11 = Sonstige Dienstleistungen, 12 = Holding,\n 13 = Sonstiges (10)"]
[]
[]
[]
[]
[]
[]
[]
[]
[]
[null,null,null,"Im Inland steuerlich erfasst beim Finanzamt (6)"]
[]
[]
[null,null,null,"Steuer-Identifikationsnummer bzw.",null,null,null,null,null,null,null,null,null,null,null,null,null,null,null,null,null,null,"Steuernummer"]
[null,null,null,"Wirtschafts-Identifikationsnummer"]
[]
[]
[]
[]
[null,null,null,"*",null,"Nur auszufüllen, wenn der Registersitz vom Ort/Sitz/Ort der Geschäftsleitung/Wohnort abweicht."]
[null,null,null,"**",null,"Nur bei ausländischen Kapitalgesellschaften anzugeben."]
[null,null,null,"***",null,"Nur bei Beteiligungen an ausländischen Personengesellschaften anzugeben."]
[]
[null,null,"Anlage: Ausländische Gesellschaft/ausländische Betriebsstätte/ausländischer Betrieb; Seite 1"]
[]
[]
[null,null,"010003 - BZSt 2 Mitteilungen nach § 138 Abs. 2 AO - 11/2020"]

{"sheet":"Gesellschaft 6","index":6,"n_rows":74,"n_cols":32,"rows_kept":74,"cut":false,"hidden":true,"merged":[[73,2,73,33],[54,3,54,31],[57,3,57,16],[58,3,58,31],[64,3,64,21],[64,22,64,31],[70,2,70,33],[47,3,47,4],[47,5,50,32],[38,3,38,8],[38,10,38,31],[39,3,39,7],[40,3,40,31],[42,3,42,21],[42,26,42,31],[43,3,43,24],[43,26,43,31],[44,3,44,7],[45,3,45,9],[46,3,46,19],[32,3,32,6],[33,3,33,31],[35,3,35,13],[36,3,36,31],[37,3,37,9],[37,10,37,15],[28,3,28,11],[29,3,29,31],[30,3,30,7],[30,10,30,20],[31,3,31,8],[31,10,31,31],[27,3,27,24],[27,26,27,31],[15,5,15,15],[17,5,17,16],[17,18,17,26],[17,27,17,29],[17,30,17,31],[20,5,20,26],[20,27,20,29],[20,30,20,31],[23,5,23,26],[23,27,23,29],[23,30,23,31],[26,3,26,13],[26,26,26,31],[13,3,13,21],[13,22,13,31],[2,2,2,32],[3,2,4,32],[5,2,5,32],[6,3,6,16],[7,3,7,29]]}
[]
[]
[null,null,{"$f":"Header","v":""}]
[null,null,"Anlage: Ausländische Gesellschaft / ausländische Betriebsstätte / ausländischer Betrieb"]
[]
[null,null,""]
[null,null,null,"Name / Firma der steuerpflichtigen Person"]
[null,null,null,null,null,null,null,null,null,null,null,null,null,null,null,null,null,null,null,null,null,null,null,null,null,null,null,null,null,null,"20",{"$f":"IF(Jahr=\"\",\"\",Jahr)","v":""}]
[]
[null,null,null,"Steuer-Identifikationsnummer bzw.",null,null,null,null,null,null,null,null,null,null,null,null,null,null,null,null,null,null,"Steuernummer der"]
[null,null,null,"Wirtschafts-Identifikationsnummer der steuerpflichtigen Person",null,null,null,null,null,null,null,null,null,null,null,null,null,null,null,null,null,null,"steuerpflichtigen Person"]
[]
[]
[]
[]
[]
[null,null,null,null,"zutreffendes bitte ankreuzen"]
[null,null,null,null,null," Ausländische Betriebsstätte",null,null,null,null,null,null,null,null,null,null,null,null," Ausländischer Betrieb",null,null,null,null,null,null,null,null,"Lfd. Nr. (3)"]
[]
[]
[null,null,null,null,null," Ausländische Personengesellschaft",null,null,null,null,null,null,null,null,null,null,null,null,null,null,null,null,null,null,null,null,null,"Lfd. Nr. (3)"]
[]
[]
[null,null,null,null,null," Ausländische Kapitalgesellschaft, Vermögensmasse, Personenvereinigung",null,null,null,null,null,null,null,null,null,null,null,null,null,null,null,null,null,null,null,null,null,"Lfd. Nr. (3)"]
[]
[]
[null,null,null,"Firmenname (4)",null,null,null,null,null,null,null,null,null,null,null,null,null,null,null,null,null,null,null,null,null,null,"Rechtsform"]
[]
[null,null,null,"Straße/Hausnummer"]
[]
[null,null,null,"Postleitzahl",null,null,null,null,null,null,"Ort/Sitz/Ort der Geschäftsleitung/Wohnort"]
[]
[null,null,null,"Staat"]
[]
[]
[null,null,null,"Sitz: Straße/Hausnummer*"]
[]
[null,null,null,"Sitz: Postleitzahl*",null,null,null,null,null,null,"Sitz: Ort*"]
[]
[null,null,null,"Sitz: Staat*"]
[]
[]
[null,null,null,"Nominalkapital** / Kapital (Höhe der Geschäftseinlage)***",null,null,null,null,null,null,null,null,null,null,null,null,null,null,null,null,null,null,null,null,null,null,"Währung (5)"]
[]
[null,null,null,"Gründung am"]
[]
[null,null,null,"Art der wirtschaftlichen Tätigkeit / Geschäftszweck"]
[null,null,null,null,null," 1 = Land- und Forstwirtschaft, 2 = Gewerbliche Herstellung und Verarbeitung,\n 3 = Kreditinstitut oder Versicherungsunternehmen, 4 = Handel, 5 = Überlassung von Rechten, Plänen, Mustern,\n 6 = Vermietung und Verpachtung von Grundstücken, 7 = Vermietung und Verpachtung von beweglichen Sachen,\n 8 = Verwaltung, 9 = Kapitalanlage, 10 = Finanzierung, 11 = Sonstige Dienstleistungen, 12 = Holding,\n 13 = Sonstiges (10)"]
[]
[]
[]
[]
[]
[]
[]
[]
[]
[null,null,null,"Im Inland steuerlich erfasst beim Finanzamt (6)"]
[]
[]
[null,null,null,"Steuer-Identifikationsnummer bzw.",null,null,null,null,null,null,null,null,null,null,null,null,null,null,null,null,null,null,"Steuernummer"]
[null,null,null,"Wirtschafts-Identifikationsnummer"]
[]
[]
[]
[]
[null,null,null,"*",null,"Nur auszufüllen, wenn der Registersitz vom Ort/Sitz/Ort der Geschäftsleitung/Wohnort abweicht."]
[null,null,null,"**",null,"Nur bei ausländischen Kapitalgesellschaften anzugeben."]
[null,null,null,"***",null,"Nur bei Beteiligungen an ausländischen Personengesellschaften anzugeben."]
[]
[null,null,"Anlage: Ausländische Gesellschaft/ausländische Betriebsstätte/ausländischer Betrieb; Seite 1"]
[]
[]
[null,null,"010003 - BZSt 2 Mitteilungen nach § 138 Abs. 2 AO - 11/2020"]

{"sheet":"Gesellschaft 7","index":7,"n_rows":74,"n_cols":32,"rows_kept":74,"cut":false,"hidden":true,"merged":[[73,2,73,33],[54,3,54,31],[57,3,57,16],[58,3,58,31],[64,3,64,21],[64,22,64,31],[70,2,70,33],[47,3,47,4],[47,5,50,32],[38,3,38,8],[38,10,38,31],[39,3,39,7],[40,3,40,31],[42,3,42,21],[42,26,42,31],[43,3,43,24],[43,26,43,31],[44,3,44,7],[45,3,45,9],[46,3,46,19],[32,3,32,6],[33,3,33,31],[35,3,35,13],[36,3,36,31],[37,3,37,9],[37,10,37,15],[28,3,28,11],[29,3,29,31],[30,3,30,7],[30,10,30,20],[31,3,31,8],[31,10,31,31],[27,3,27,24],[27,26,27,31],[15,5,15,15],[17,5,17,16],[17,18,17,26],[17,27,17,29],[17,30,17,31],[20,5,20,26],[20,27,20,29],[20,30,20,31],[23,5,23,26],[23,27,23,29],[23,30,23,31],[26,3,26,13],[26,26,26,31],[13,3,13,21],[13,22,13,31],[2,2,2,32],[3,2,4,32],[5,2,5,32],[6,3,6,16],[7,3,7,29]]}
[]
[]
[null,null,{"$f":"Header","v":""}]
[null,null,"Anlage: Ausländische Gesellschaft / ausländische Betriebsstätte / ausländischer Betrieb"]
[]
[null,null,""]
[null,null,null,"Name / Firma der steuerpflichtigen Person"]
[null,null,null,null,null,null,null,null,null,null,null,null,null,null,null,null,null,null,null,null,null,null,null,null,null,null,null,null,null,null,"20",{"$f":"IF(Jahr=\"\",\"\",Jahr)","v":""}]
[]
[null,null,null,"Steuer-Identifikationsnummer bzw.",null,null,null,null,null,null,null,null,null,null,null,null,null,null,null,null,null,null,"Steuernummer der"]
[null,null,null,"Wirtschafts-Identifikationsnummer der steuerpflichtigen Person",null,null,null,null,null,null,null,null,null,null,null,null,null,null,null,null,null,null,"steuerpflichtigen Person"]
[]
[]
[]
[]
[]
[null,null,null,null,"zutreffendes bitte ankreuzen"]
[null,null,null,null,null," Ausländische Betriebsstätte",null,null,null,null,null,null,null,null,null,null,null,null," Ausländischer Betrieb",null,null,null,null,null,null,null,null,"Lfd. Nr. (3)"]
[]
[]
[null,null,null,null,null," Ausländische Personengesellschaft",null,null,null,null,null,null,null,null,null,null,null,null,null,null,null,null,null,null,null,null,null,"Lfd. Nr. (3)"]
[]
[]
[null,null,null,null,null," Ausländische Kapitalgesellschaft, Vermögensmasse, Personenvereinigung",null,null,null,null,null,null,null,null,null,null,null,null,null,null,null,null,null,null,null,null,null,"Lfd. Nr. (3)"]
[]
[]
[null,null,null,"Firmenname (4)",null,null,null,null,null,null,null,null,null,null,null,null,null,null,null,null,null,null,null,null,null,null,"Rechtsform"]
[]
[null,null,null,"Straße/Hausnummer"]
[]
[null,null,null,"Postleitzahl",null,null,null,null,null,null,"Ort/Sitz/Ort der Geschäftsleitung/Wohnort"]
[]
[null,null,null,"Staat"]
[]
[]
[null,null,null,"Sitz: Straße/Hausnummer*"]
[]
[null,null,null,"Sitz: Postleitzahl*",null,null,null,null,null,null,"Sitz: Ort*"]
[]
[null,null,null,"Sitz: Staat*"]
[]
[]
[null,null,null,"Nominalkapital** / Kapital (Höhe der Geschäftseinlage)***",null,null,null,null,null,null,null,null,null,null,null,null,null,null,null,null,null,null,null,null,null,null,"Währung (5)"]
[]
[null,null,null,"Gründung am"]
[]
[null,null,null,"Art der wirtschaftlichen Tätigkeit / Geschäftszweck"]
[null,null,null,null,null," 1 = Land- und Forstwirtschaft, 2 = Gewerbliche Herstellung und Verarbeitung,\n 3 = Kreditinstitut oder Versicherungsunternehmen, 4 = Handel, 5 = Überlassung von Rechten, Plänen, Mustern,\n 6 = Vermietung und Verpachtung von Grundstücken, 7 = Vermietung und Verpachtung von beweglichen Sachen,\n 8 = Verwaltung, 9 = Kapitalanlage, 10 = Finanzierung, 11 = Sonstige Dienstleistungen, 12 = Holding,\n 13 = Sonstiges (10)"]
[]
[]
[]
[]
[]
[]
[]
[]
[]
[null,null,null,"Im Inland steuerlich erfasst beim Finanzamt (6)"]
[]
[]
[null,null,null,"Steuer-Identifikationsnummer bzw.",null,null,null,null,null,null,null,null,null,null,null,null,null,null,null,null,null,null,"Steuernummer"]
[null,null,null,"Wirtschafts-Identifikationsnummer"]
[]
[]
[]
[]
[null,null,null,"*",null,"Nur auszufüllen, wenn der Registersitz vom Ort/Sitz/Ort der Geschäftsleitung/Wohnort abweicht."]
[null,null,null,"**",null,"Nur bei ausländischen Kapitalgesellschaften anzugeben."]
[null,null,null,"***",null,"Nur bei Beteiligungen an ausländischen Personengesellschaften anzugeben."]
[]
[null,null,"Anlage: Ausländische Gesellschaft/ausländische Betriebsstätte/ausländischer Betrieb; Seite 1"]
[]
[]
[null,null,"010003 - BZSt 2 Mitteilungen nach § 138 Abs. 2 AO - 11/2020"]

{"sheet":"Gesellschaft 8","index":8,"n_rows":74,"n_cols":32,"rows_kept":74,"cut":false,"hidden":true,"merged":[[73,2,73,33],[54,3,54,31],[57,3,57,16],[58,3,58,31],[64,3,64,21],[64,22,64,31],[70,2,70,33],[47,3,47,4],[47,5,50,32],[38,3,38,8],[38,10,38,31],[39,3,39,7],[40,3,40,31],[42,3,42,21],[42,26,42,31],[43,3,43,24],[43,26,43,31],[44,3,44,7],[45,3,45,9],[46,3,46,19],[32,3,32,6],[33,3,33,31],[35,3,35,13],[36,3,36,31],[37,3,37,9],[37,10,37,15],[28,3,28,11],[29,3,29,31],[30,3,30,7],[30,10,30,20],[31,3,31,8],[31,10,31,31],[27,3,27,24],[27,26,27,31],[15,5,15,15],[17,5,17,16],[17,18,17,26],[17,27,17,29],[17,30,17,31],[20,5,20,26],[20,27,20,29],[20,30,20,31],[23,5,23,26],[23,27,23,29],[23,30,23,31],[26,3,26,13],[26,26,26,31],[13,3,13,21],[13,22,13,31],[2,2,2,32],[3,2,4,32],[5,2,5,32],[6,3,6,16],[7,3,7,29]]}
[]
[]
[null,null,{"$f":"Header","v":""}]
[null,null,"Anlage: Ausländische Gesellschaft / ausländische Betriebsstätte / ausländischer Betrieb"]
[]
[null,null,""]
[null,null,null,"Name / Firma der steuerpflichtigen Person"]
[null,null,null,null,null,null,null,null,null,null,null,null,null,null,null,null,null,null,null,null,null,null,null,null,null,null,null,null,null,null,"20",{"$f":"IF(Jahr=\"\",\"\",Jahr)","v":""}]
[]
[null,null,null,"Steuer-Identifikationsnummer bzw.",null,null,null,null,null,null,null,null,null,null,null,null,null,null,null,null,null,null,"Steuernummer der"]
[null,null,null,"Wirtschafts-Identifikationsnummer der steuerpflichtigen Person",null,null,null,null,null,null,null,null,null,null,null,null,null,null,null,null,null,null,"steuerpflichtigen Person"]
[]
[]
[]
[]
[]
[null,null,null,null,"zutreffendes bitte ankreuzen"]
[null,null,null,null,null," Ausländische Betriebsstätte",null,null,null,null,null,null,null,null,null,null,null,null," Ausländischer Betrieb",null,null,null,null,null,null,null,null,"Lfd. Nr. (3)"]
[]
[]
[null,null,null,null,null," Ausländische Personengesellschaft",null,null,null,null,null,null,null,null,null,null,null,null,null,null,null,null,null,null,null,null,null,"Lfd. Nr. (3)"]
[]
[]
[null,null,null,null,null," Ausländische Kapitalgesellschaft, Vermögensmasse, Personenvereinigung",null,null,null,null,null,null,null,null,null,null,null,null,null,null,null,null,null,null,null,null,null,"Lfd. Nr. (3)"]
[]
[]
[null,null,null,"Firmenname (4)",null,null,null,null,null,null,null,null,null,null,null,null,null,null,null,null,null,null,null,null,null,null,"Rechtsform"]
[]
[null,null,null,"Straße/Hausnummer"]
[]
[null,null,null,"Postleitzahl",null,null,null,null,null,null,"Ort/Sitz/Ort der Geschäftsleitung/Wohnort"]
[]
[null,null,null,"Staat"]
[]
[]
[null,null,null,"Sitz: Straße/Hausnummer*"]
[]
[null,null,null,"Sitz: Postleitzahl*",null,null,null,null,null,null,"Sitz: Ort*"]
[]
[null,null,null,"Sitz: Staat*"]
[]
[]
[null,null,null,"Nominalkapital** / Kapital (Höhe der Geschäftseinlage)***",null,null,null,null,null,null,null,null,null,null,null,null,null,null,null,null,null,null,null,null,null,null,"Währung (5)"]
[]
[null,null,null,"Gründung am"]
[]
[null,null,null,"Art der wirtschaftlichen Tätigkeit / Geschäftszweck"]
[null,null,null,null,null," 1 = Land- und Forstwirtschaft, 2 = Gewerbliche Herstellung und Verarbeitung,\n 3 = Kreditinstitut oder Versicherungsunternehmen, 4 = Handel, 5 = Überlassung von Rechten, Plänen, Mustern,\n 6 = Vermietung und Verpachtung von Grundstücken, 7 = Vermietung und Verpachtung von beweglichen Sachen,\n 8 = Verwaltung, 9 = Kapitalanlage, 10 = Finanzierung, 11 = Sonstige Dienstleistungen, 12 = Holding,\n 13 = Sonstiges (10)"]
[]
[]
[]
[]
[]
[]
[]
[]
[]
[null,null,null,"Im Inland steuerlich erfasst beim Finanzamt (6)"]
[]
[]
[null,null,null,"Steuer-Identifikationsnummer bzw.",null,null,null,null,null,null,null,null,null,null,null,null,null,null,null,null,null,null,"Steuernummer"]
[null,null,null,"Wirtschafts-Identifikationsnummer"]
[]
[]
[]
[]
[null,null,null,"*",null,"Nur auszufüllen, wenn der Registersitz vom Ort/Sitz/Ort der Geschäftsleitung/Wohnort abweicht."]
[null,null,null,"**",null,"Nur bei ausländischen Kapitalgesellschaften anzugeben."]
[null,null,null,"***",null,"Nur bei Beteiligungen an ausländischen Personengesellschaften anzugeben."]
[]
[null,null,"Anlage: Ausländische Gesellschaft/ausländische Betriebsstätte/ausländischer Betrieb; Seite 1"]
[]
[]
[null,null,"010003 - BZSt 2 Mitteilungen nach § 138 Abs. 2 AO - 11/2020"]

{"sheet":"Gesellschaft 9","index":9,"n_rows":74,"n_cols":32,"rows_kept":74,"cut":false,"hidden":true,"merged":[[73,2,73,33],[54,3,54,31],[57,3,57,16],[58,3,58,31],[64,3,64,21],[64,22,64,31],[70,2,70,33],[47,3,47,4],[47,5,50,32],[38,3,38,8],[38,10,38,31],[39,3,39,7],[40,3,40,31],[42,3,42,21],[42,26,42,31],[43,3,43,24],[43,26,43,31],[44,3,44,7],[45,3,45,9],[46,3,46,19],[32,3,32,6],[33,3,33,31],[35,3,35,13],[36,3,36,31],[37,3,37,9],[37,10,37,15],[28,3,28,11],[29,3,29,31],[30,3,30,7],[30,10,30,20],[31,3,31,8],[31,10,31,31],[27,3,27,24],[27,26,27,31],[15,5,15,15],[17,5,17,16],[17,18,17,26],[17,27,17,29],[17,30,17,31],[20,5,20,26],[20,27,20,29],[20,30,20,31],[23,5,23,26],[23,27,23,29],[23,30,23,31],[26,3,26,13],[26,26,26,31],[13,3,13,21],[13,22,13,31],[2,2,2,32],[3,2,4,32],[5,2,5,32],[6,3,6,16],[7,3,7,29]]}
[]
[]
[null,null,{"$f":"Header","v":""}]
[null,null,"Anlage: Ausländische Gesellschaft / ausländische Betriebsstätte / ausländischer Betrieb"]
[]
[null,null,""]
[null,null,null,"Name / Firma der steuerpflichtigen Person"]
[null,null,null,null,null,null,null,null,null,null,null,null,null,null,null,null,null,null,null,null,null,null,null,null,null,null,null,null,null,null,"20",{"$f":"IF(Jahr=\"\",\"\",Jahr)","v":""}]
[]
[null,null,null,"Steuer-Identifikationsnummer bzw.",null,null,null,null,null,null,null,null,null,null,null,null,null,null,null,null,null,null,"Steuernummer der"]
[null,null,null,"Wirtschafts-Identifikationsnummer der steuerpflichtigen Person",null,null,null,null,null,null,null,null,null,null,null,null,null,null,null,null,null,null,"steuerpflichtigen Person"]
[]
[]
[]
[]
[]
[null,null,null,null,"zutreffendes bitte ankreuzen"]
[null,null,null,null,null," Ausländische Betriebsstätte",null,null,null,null,null,null,null,null,null,null,null,null," Ausländischer Betrieb",null,null,null,null,null,null,null,null,"Lfd. Nr. (3)"]
[]
[]
[null,null,null,null,null," Ausländische Personengesellschaft",null,null,null,null,null,null,null,null,null,null,null,null,null,null,null,null,null,null,null,null,null,"Lfd. Nr. (3)"]
[]
[]
[null,null,null,null,null," Ausländische Kapitalgesellschaft, Vermögensmasse, Personenvereinigung",null,null,null,null,null,null,null,null,null,null,null,null,null,null,null,null,null,null,null,null,null,"Lfd. Nr. (3)"]
[]
[]
[null,null,null,"Firmenname (4)",null,null,null,null,null,null,null,null,null,null,null,null,null,null,null,null,null,null,null,null,null,null,"Rechtsform"]
[]
[null,null,null,"Straße/Hausnummer"]
[]
[null,null,null,"Postleitzahl",null,null,null,null,null,null,"Ort/Sitz/Ort der Geschäftsleitung/Wohnort"]
[]
[null,null,null,"Staat"]
[]
[]
[null,null,null,"Sitz: Straße/Hausnummer*"]
[]
[null,null,null,"Sitz: Postleitzahl*",null,null,null,null,null,null,"Sitz: Ort*"]
[]
[null,null,null,"Sitz: Staat*"]
[]
[]
[null,null,null,"Nominalkapital** / Kapital (Höhe der Geschäftseinlage)***",null,null,null,null,null,null,null,null,null,null,null,null,null,null,null,null,null,null,null,null,null,null,"Währung (5)"]
[]
[null,null,null,"Gründung am"]
[]
[null,null,null,"Art der wirtschaftlichen Tätigkeit / Geschäftszweck"]
[null,null,null,null,null," 1 = Land- und Forstwirtschaft, 2 = Gewerbliche Herstellung und Verarbeitung,\n 3 = Kreditinstitut oder Versicherungsunternehmen, 4 = Handel, 5 = Überlassung von Rechten, Plänen, Mustern,\n 6 = Vermietung und Verpachtung von Grundstücken, 7 = Vermietung und Verpachtung von beweglichen Sachen,\n 8 = Verwaltung, 9 = Kapitalanlage, 10 = Finanzierung, 11 = Sonstige Dienstleistungen, 12 = Holding,\n 13 = Sonstiges (10)"]
[]
[]
[]
[]
[]
[]
[]
[]
[]
[null,null,null,"Im Inland steuerlich erfasst beim Finanzamt (6)"]
[]
[]
[null,null,null,"Steuer-Identifikationsnummer bzw.",null,null,null,null,null,null,null,null,null,null,null,null,null,null,null,null,null,null,"Steuernummer"]
[null,null,null,"Wirtschafts-Identifikationsnummer"]
[]
[]
[]
[]
[null,null,null,"*",null,"Nur auszufüllen, wenn der Registersitz vom Ort/Sitz/Ort der Geschäftsleitung/Wohnort abweicht."]
[null,null,null,"**",null,"Nur bei ausländischen Kapitalgesellschaften anzugeben."]
[null,null,null,"***",null,"Nur bei Beteiligungen an ausländischen Personengesellschaften anzugeben."]
[]
[null,null,"Anlage: Ausländische Gesellschaft/ausländische Betriebsstätte/ausländischer Betrieb; Seite 1"]
[]
[]
[null,null,"010003 - BZSt 2 Mitteilungen nach § 138 Abs. 2 AO - 11/2020"]

{"sheet":"Gesellschaft 10","index":10,"n_rows":74,"n_cols":32,"rows_kept":74,"cut":false,"hidden":true,"merged":[[73,2,73,33],[54,3,54,31],[57,3,57,16],[58,3,58,31],[64,3,64,21],[64,22,64,31],[70,2,70,33],[47,3,47,4],[47,5,50,32],[38,3,38,8],[38,10,38,31],[39,3,39,7],[40,3,40,31],[42,3,42,21],[42,26,42,31],[43,3,43,24],[43,26,43,31],[44,3,44,7],[45,3,45,9],[46,3,46,19],[32,3,32,6],[33,3,33,31],[35,3,35,13],[36,3,36,31],[37,3,37,9],[37,10,37,15],[28,3,28,11],[29,3,29,31],[30,3,30,7],[30,10,30,20],[31,3,31,8],[31,10,31,31],[27,3,27,24],[27,26,27,31],[15,5,15,15],[17,5,17,16],[17,18,17,26],[17,27,17,29],[17,30,17,31],[20,5,20,26],[20,27,20,29],[20,30,20,31],[23,5,23,26],[23,27,23,29],[23,30,23,31],[26,3,26,13],[26,26,26,31],[13,3,13,21],[13,22,13,31],[2,2,2,32],[3,2,4,32],[5,2,5,32],[6,3,6,16],[7,3,7,29]]}
[]
[]
[null,null,{"$f":"Header","v":""}]
[null,null,"Anlage: Ausländische Gesellschaft / ausländische Betriebsstätte / ausländischer Betrieb"]
[]
[null,null,""]
[null,null,null,"Name / Firma der steuerpflichtigen Person"]
[null,null,null,null,null,null,null,null,null,null,null,null,null,null,null,null,null,null,null,null,null,null,null,null,null,null,null,null,null,null,"20",{"$f":"IF(Jahr=\"\",\"\",Jahr)","v":""}]
[]
[null,null,null,"Steuer-Identifikationsnummer bzw.",null,null,null,null,null,null,null,null,null,null,null,null,null,null,null,null,null,null,"Steuernummer der"]
[null,null,null,"Wirtschafts-Identifikationsnummer der steuerpflichtigen Person",null,null,null,null,null,null,null,null,null,null,null,null,null,null,null,null,null,null,"steuerpflichtigen Person"]
[]
[]
[]
[]
[]
[null,null,null,null,"zutreffendes bitte ankreuzen"]
[null,null,null,null,null," Ausländische Betriebsstätte",null,null,null,null,null,null,null,null,null,null,null,null," Ausländischer Betrieb",null,null,null,null,null,null,null,null,"Lfd. Nr. (3)"]
[]
[]
[null,null,null,null,null," Ausländische Personengesellschaft",null,null,null,null,null,null,null,null,null,null,null,null,null,null,null,null,null,null,null,null,null,"Lfd. Nr. (3)"]
[]
[]
[null,null,null,null,null," Ausländische Kapitalgesellschaft, Vermögensmasse, Personenvereinigung",null,null,null,null,null,null,null,null,null,null,null,null,null,null,null,null,null,null,null,null,null,"Lfd. Nr. (3)"]
[]
[]
[null,null,null,"Firmenname (4)",null,null,null,null,null,null,null,null,null,null,null,null,null,null,null,null,null,null,null,null,null,null,"Rechtsform"]
[]
[null,null,null,"Straße/Hausnummer"]
[]
[null,null,null,"Postleitzahl",null,null,null,null,null,null,"Ort/Sitz/Ort der Geschäftsleitung/Wohnort"]
[]
[null,null,null,"Staat"]
[]
[]
[null,null,null,"Sitz: Straße/Hausnummer*"]
[]
[null,null,null,"Sitz: Postleitzahl*",null,null,null,null,null,null,"Sitz: Ort*"]
[]
[null,null,null,"Sitz: Staat*"]
[]
[]
[null,null,null,"Nominalkapital** / Kapital (Höhe der Geschäftseinlage)***",null,null,null,null,null,null,null,null,null,null,null,null,null,null,null,null,null,null,null,null,null,null,"Währung (5)"]
[]
[null,null,null,"Gründung am"]
[]
[null,null,null,"Art der wirtschaftlichen Tätigkeit / Geschäftszweck"]
[null,null,null,null,null," 1 = Land- und Forstwirtschaft, 2 = Gewerbliche Herstellung und Verarbeitung,\n 3 = Kreditinstitut oder Versicherungsunternehmen, 4 = Handel, 5 = Überlassung von Rechten, Plänen, Mustern,\n 6 = Vermietung und Verpachtung von Grundstücken, 7 = Vermietung und Verpachtung von beweglichen Sachen,\n 8 = Verwaltung, 9 = Kapitalanlage, 10 = Finanzierung, 11 = Sonstige Dienstleistungen, 12 = Holding,\n 13 = Sonstiges (10)"]
[]
[]
[]
[]
[]
[]
[]
[]
[]
[null,null,null,"Im Inland steuerlich erfasst beim Finanzamt (6)"]
[]
[]
[null,null,null,"Steuer-Identifikationsnummer bzw.",null,null,null,null,null,null,null,null,null,null,null,null,null,null,null,null,null,null,"Steuernummer"]
[null,null,null,"Wirtschafts-Identifikationsnummer"]
[]
[]
[]
[]
[null,null,null,"*",null,"Nur auszufüllen, wenn der Registersitz vom Ort/Sitz/Ort der Geschäftsleitung/Wohnort abweicht."]
[null,null,null,"**",null,"Nur bei ausländischen Kapitalgesellschaften anzugeben."]
[null,null,null,"***",null,"Nur bei Beteiligungen an ausländischen Personengesellschaften anzugeben."]
[]
[null,null,"Anlage: Ausländische Gesellschaft/ausländische Betriebsstätte/ausländischer Betrieb; Seite 1"]
[]
[]
[null,null,"010003 - BZSt 2 Mitteilungen nach § 138 Abs. 2 AO - 11/2020"]

{"sheet":"Gesellschaft 11","index":11,"n_rows":74,"n_cols":32,"rows_kept":74,"cut":false,"hidden":true,"merged":[[73,2,73,33],[54,3,54,31],[57,3,57,16],[58,3,58,31],[64,3,64,21],[64,22,64,31],[70,2,70,33],[47,3,47,4],[47,5,50,32],[38,3,38,8],[38,10,38,31],[39,3,39,7],[40,3,40,31],[42,3,42,21],[42,26,42,31],[43,3,43,24],[43,26,43,31],[44,3,44,7],[45,3,45,9],[46,3,46,19],[32,3,32,6],[33,3,33,31],[35,3,35,13],[36,3,36,31],[37,3,37,9],[37,10,37,15],[28,3,28,11],[29,3,29,31],[30,3,30,7],[30,10,30,20],[31,3,31,8],[31,10,31,31],[27,3,27,24],[27,26,27,31],[15,5,15,15],[17,5,17,16],[17,18,17,26],[17,27,17,29],[17,30,17,31],[20,5,20,26],[20,27,20,29],[20,30,20,31],[23,5,23,26],[23,27,23,29],[23,30,23,31],[26,3,26,13],[26,26,26,31],[13,3,13,21],[13,22,13,31],[2,2,2,32],[3,2,4,32],[5,2,5,32],[6,3,6,16],[7,3,7,29]]}
[]
[]
[null,null,{"$f":"Header","v":""}]
[null,null,"Anlage: Ausländische Gesellschaft / ausländische Betriebsstätte / ausländischer Betrieb"]
[]
[null,null,""]
[null,null,null,"Name / Firma der steuerpflichtigen Person"]
[null,null,null,null,null,null,null,null,null,null,null,null,null,null,null,null,null,null,null,null,null,null,null,null,null,null,null,null,null,null,"20",{"$f":"IF(Jahr=\"\",\"\",Jahr)","v":""}]
[]
[null,null,null,"Steuer-Identifikationsnummer bzw.",null,null,null,null,null,null,null,null,null,null,null,null,null,null,null,null,null,null,"Steuernummer der"]
[null,null,null,"Wirtschafts-Identifikationsnummer der steuerpflichtigen Person",null,null,null,null,null,null,null,null,null,null,null,null,null,null,null,null,null,null,"steuerpflichtigen Person"]
[]
[]
[]
[]
[]
[null,null,null,null,"zutreffendes bitte ankreuzen"]
[null,null,null,null,null," Ausländische Betriebsstätte",null,null,null,null,null,null,null,null,null,null,null,null," Ausländischer Betrieb",null,null,null,null,null,null,null,null,"Lfd. Nr. (3)"]
[]
[]
[null,null,null,null,null," Ausländische Personengesellschaft",null,null,null,null,null,null,null,null,null,null,null,null,null,null,null,null,null,null,null,null,null,"Lfd. Nr. (3)"]
[]
[]
[null,null,null,null,null," Ausländische Kapitalgesellschaft, Vermögensmasse, Personenvereinigung",null,null,null,null,null,null,null,null,null,null,null,null,null,null,null,null,null,null,null,null,null,"Lfd. Nr. (3)"]
[]
[]
[null,null,null,"Firmenname (4)",null,null,null,null,null,null,null,null,null,null,null,null,null,null,null,null,null,null,null,null,null,null,"Rechtsform"]
[]
[null,null,null,"Straße/Hausnummer"]
[]
[null,null,null,"Postleitzahl",null,null,null,null,null,null,"Ort/Sitz/Ort der Geschäftsleitung/Wohnort"]
[]
[null,null,null,"Staat"]
[]
[]
[null,null,null,"Sitz: Straße/Hausnummer*"]
[]
[null,null,null,"Sitz: Postleitzahl*",null,null,null,null,null,null,"Sitz: Ort*"]
[]
[null,null,null,"Sitz: Staat*"]
[]
[]
[null,null,null,"Nominalkapital** / Kapital (Höhe der Geschäftseinlage)***",null,null,null,null,null,null,null,null,null,null,null,null,null,null,null,null,null,null,null,null,null,null,"Währung (5)"]
[]
[null,null,null,"Gründung am"]
[]
[null,null,null,"Art der wirtschaftlichen Tätigkeit / Geschäftszweck"]
[null,null,null,null,null," 1 = Land- und Forstwirtschaft, 2 = Gewerbliche Herstellung und Verarbeitung,\n 3 = Kreditinstitut oder Versicherungsunternehmen, 4 = Handel, 5 = Überlassung von Rechten, Plänen, Mustern,\n 6 = Vermietung und Verpachtung von Grundstücken, 7 = Vermietung und Verpachtung von beweglichen Sachen,\n 8 = Verwaltung, 9 = Kapitalanlage, 10 = Finanzierung, 11 = Sonstige Dienstleistungen, 12 = Holding,\n 13 = Sonstiges (10)"]
[]
[]
[]
[]
[]
[]
[]
[]
[]
[null,null,null,"Im Inland steuerlich erfasst beim Finanzamt (6)"]
[]
[]
[null,null,null,"Steuer-Identifikationsnummer bzw.",null,null,null,null,null,null,null,null,null,null,null,null,null,null,null,null,null,null,"Steuernummer"]
[null,null,null,"Wirtschafts-Identifikationsnummer"]
[]
[]
[]
[]
[null,null,null,"*",null,"Nur auszufüllen, wenn der Registersitz vom Ort/Sitz/Ort der Geschäftsleitung/Wohnort abweicht."]
[null,null,null,"**",null,"Nur bei ausländischen Kapitalgesellschaften anzugeben."]
[null,null,null,"***",null,"Nur bei Beteiligungen an ausländischen Personengesellschaften anzugeben."]
[]
[null,null,"Anlage: Ausländische Gesellschaft/ausländische Betriebsstätte/ausländischer Betrieb; Seite 1"]
[]
[]
[null,null,"010003 - BZSt 2 Mitteilungen nach § 138 Abs. 2 AO - 11/2020"]

{"sheet":"Gesellschaft 12","index":12,"n_rows":74,"n_cols":32,"rows_kept":74,"cut":false,"hidden":true,"merged":[[73,2,73,33],[54,3,54,31],[57,3,57,16],[58,3,58,31],[64,3,64,21],[64,22,64,31],[70,2,70,33],[47,3,47,4],[47,5,50,32],[38,3,38,8],[38,10,38,31],[39,3,39,7],[40,3,40,31],[42,3,42,21],[42,26,42,31],[43,3,43,24],[43,26,43,31],[44,3,44,7],[45,3,45,9],[46,3,46,19],[32,3,32,6],[33,3,33,31],[35,3,35,13],[36,3,36,31],[37,3,37,9],[37,10,37,15],[28,3,28,11],[29,3,29,31],[30,3,30,7],[30,10,30,20],[31,3,31,8],[31,10,31,31],[27,3,27,24],[27,26,27,31],[15,5,15,15],[17,5,17,16],[17,18,17,26],[17,27,17,29],[17,30,17,31],[20,5,20,26],[20,27,20,29],[20,30,20,31],[23,5,23,26],[23,27,23,29],[23,30,23,31],[26,3,26,13],[26,26,26,31],[13,3,13,21],[13,22,13,31],[2,2,2,32],[3,2,4,32],[5,2,5,32],[6,3,6,16],[7,3,7,29]]}
[]
[]
[null,null,{"$f":"Header","v":""}]
[null,null,"Anlage: Ausländische Gesellschaft / ausländische Betriebsstätte / ausländischer Betrieb"]
[]
[null,null,""]
[null,null,null,"Name / Firma der steuerpflichtigen Person"]
[null,null,null,null,null,null,null,null,null,null,null,null,null,null,null,null,null,null,null,null,null,null,null,null,null,null,null,null,null,null,"20",{"$f":"IF(Jahr=\"\",\"\",Jahr)","v":""}]
[]
[null,null,null,"Steuer-Identifikationsnummer bzw.",null,null,null,null,null,null,null,null,null,null,null,null,null,null,null,null,null,null,"Steuernummer der"]
[null,null,null,"Wirtschafts-Identifikationsnummer der steuerpflichtigen Person",null,null,null,null,null,null,null,null,null,null,null,null,null,null,null,null,null,null,"steuerpflichtigen Person"]
[]
[]
[]
[]
[]
[null,null,null,null,"zutreffendes bitte ankreuzen"]
[null,null,null,null,null," Ausländische Betriebsstätte",null,null,null,null,null,null,null,null,null,null,null,null," Ausländischer Betrieb",null,null,null,null,null,null,null,null,"Lfd. Nr. (3)"]
[]
[]
[null,null,null,null,null," Ausländische Personengesellschaft",null,null,null,null,null,null,null,null,null,null,null,null,null,null,null,null,null,null,null,null,null,"Lfd. Nr. (3)"]
[]
[]
[null,null,null,null,null," Ausländische Kapitalgesellschaft, Vermögensmasse, Personenvereinigung",null,null,null,null,null,null,null,null,null,null,null,null,null,null,null,null,null,null,null,null,null,"Lfd. Nr. (3)"]
[]
[]
[null,null,null,"Firmenname (4)",null,null,null,null,null,null,null,null,null,null,null,null,null,null,null,null,null,null,null,null,null,null,"Rechtsform"]
[]
[null,null,null,"Straße/Hausnummer"]
[]
[null,null,null,"Postleitzahl",null,null,null,null,null,null,"Ort/Sitz/Ort der Geschäftsleitung/Wohnort"]
[]
[null,null,null,"Staat"]
[]
[]
[null,null,null,"Sitz: Straße/Hausnummer*"]
[]
[null,null,null,"Sitz: Postleitzahl*",null,null,null,null,null,null,"Sitz: Ort*"]
[]
[null,null,null,"Sitz: Staat*"]
[]
[]
[null,null,null,"Nominalkapital** / Kapital (Höhe der Geschäftseinlage)***",null,null,null,null,null,null,null,null,null,null,null,null,null,null,null,null,null,null,null,null,null,null,"Währung (5)"]
[]
[null,null,null,"Gründung am"]
[]
[null,null,null,"Art der wirtschaftlichen Tätigkeit / Geschäftszweck"]
[null,null,null,null,null," 1 = Land- und Forstwirtschaft, 2 = Gewerbliche Herstellung und Verarbeitung,\n 3 = Kreditinstitut oder Versicherungsunternehmen, 4 = Handel, 5 = Überlassung von Rechten, Plänen, Mustern,\n 6 = Vermietung und Verpachtung von Grundstücken, 7 = Vermietung und Verpachtung von beweglichen Sachen,\n 8 = Verwaltung, 9 = Kapitalanlage, 10 = Finanzierung, 11 = Sonstige Dienstleistungen, 12 = Holding,\n 13 = Sonstiges (10)"]
[]
[]
[]
[]
[]
[]
[]
[]
[]
[null,null,null,"Im Inland steuerlich erfasst beim Finanzamt (6)"]
[]
[]
[null,null,null,"Steuer-Identifikationsnummer bzw.",null,null,null,null,null,null,null,null,null,null,null,null,null,null,null,null,null,null,"Steuernummer"]
[null,null,null,"Wirtschafts-Identifikationsnummer"]
[]
[]
[]
[]
[null,null,null,"*",null,"Nur auszufüllen, wenn der Registersitz vom Ort/Sitz/Ort der Geschäftsleitung/Wohnort abweicht."]
[null,null,null,"**",null,"Nur bei ausländischen Kapitalgesellschaften anzugeben."]
[null,null,null,"***",null,"Nur bei Beteiligungen an ausländischen Personengesellschaften anzugeben."]
[]
[null,null,"Anlage: Ausländische Gesellschaft/ausländische Betriebsstätte/ausländischer Betrieb; Seite 1"]
[]
[]
[null,null,"010003 - BZSt 2 Mitteilungen nach § 138 Abs. 2 AO - 11/2020"]

{"sheet":"Gesellschaft 13","index":13,"n_rows":74,"n_cols":32,"rows_kept":74,"cut":false,"hidden":true,"merged":[[73,2,73,33],[54,3,54,31],[57,3,57,16],[58,3,58,31],[64,3,64,21],[64,22,64,31],[70,2,70,33],[47,3,47,4],[47,5,50,32],[38,3,38,8],[38,10,38,31],[39,3,39,7],[40,3,40,31],[42,3,42,21],[42,26,42,31],[43,3,43,24],[43,26,43,31],[44,3,44,7],[45,3,45,9],[46,3,46,19],[32,3,32,6],[33,3,33,31],[35,3,35,13],[36,3,36,31],[37,3,37,9],[37,10,37,15],[28,3,28,11],[29,3,29,31],[30,3,30,7],[30,10,30,20],[31,3,31,8],[31,10,31,31],[27,3,27,24],[27,26,27,31],[15,5,15,15],[17,5,17,16],[17,18,17,26],[17,27,17,29],[17,30,17,31],[20,5,20,26],[20,27,20,29],[20,30,20,31],[23,5,23,26],[23,27,23,29],[23,30,23,31],[26,3,26,13],[26,26,26,31],[13,3,13,21],[13,22,13,31],[2,2,2,32],[3,2,4,32],[5,2,5,32],[6,3,6,16],[7,3,7,29]]}
[]
[]
[null,null,{"$f":"Header","v":""}]
[null,null,"Anlage: Ausländische Gesellschaft / ausländische Betriebsstätte / ausländischer Betrieb"]
[]
[null,null,""]
[null,null,null,"Name / Firma der steuerpflichtigen Person"]
[null,null,null,null,null,null,null,null,null,null,null,null,null,null,null,null,null,null,null,null,null,null,null,null,null,null,null,null,null,null,"20",{"$f":"IF(Jahr=\"\",\"\",Jahr)","v":""}]
[]
[null,null,null,"Steuer-Identifikationsnummer bzw.",null,null,null,null,null,null,null,null,null,null,null,null,null,null,null,null,null,null,"Steuernummer der"]
[null,null,null,"Wirtschafts-Identifikationsnummer der steuerpflichtigen Person",null,null,null,null,null,null,null,null,null,null,null,null,null,null,null,null,null,null,"steuerpflichtigen Person"]
[]
[]
[]
[]
[]
[null,null,null,null,"zutreffendes bitte ankreuzen"]
[null,null,null,null,null," Ausländische Betriebsstätte",null,null,null,null,null,null,null,null,null,null,null,null," Ausländischer Betrieb",null,null,null,null,null,null,null,null,"Lfd. Nr. (3)"]
[]
[]
[null,null,null,null,null," Ausländische Personengesellschaft",null,null,null,null,null,null,null,null,null,null,null,null,null,null,null,null,null,null,null,null,null,"Lfd. Nr. (3)"]
[]
[]
[null,null,null,null,null," Ausländische Kapitalgesellschaft, Vermögensmasse, Personenvereinigung",null,null,null,null,null,null,null,null,null,null,null,null,null,null,null,null,null,null,null,null,null,"Lfd. Nr. (3)"]
[]
[]
[null,null,null,"Firmenname (4)",null,null,null,null,null,null,null,null,null,null,null,null,null,null,null,null,null,null,null,null,null,null,"Rechtsform"]
[]
[null,null,null,"Straße/Hausnummer"]
[]
[null,null,null,"Postleitzahl",null,null,null,null,null,null,"Ort/Sitz/Ort der Geschäftsleitung/Wohnort"]
[]
[null,null,null,"Staat"]
[]
[]
[null,null,null,"Sitz: Straße/Hausnummer*"]
[]
[null,null,null,"Sitz: Postleitzahl*",null,null,null,null,null,null,"Sitz: Ort*"]
[]
[null,null,null,"Sitz: Staat*"]
[]
[]
[null,null,null,"Nominalkapital** / Kapital (Höhe der Geschäftseinlage)***",null,null,null,null,null,null,null,null,null,null,null,null,null,null,null,null,null,null,null,null,null,null,"Währung (5)"]
[]
[null,null,null,"Gründung am"]
[]
[null,null,null,"Art der wirtschaftlichen Tätigkeit / Geschäftszweck"]
[null,null,null,null,null," 1 = Land- und Forstwirtschaft, 2 = Gewerbliche Herstellung und Verarbeitung,\n 3 = Kreditinstitut oder Versicherungsunternehmen, 4 = Handel, 5 = Überlassung von Rechten, Plänen, Mustern,\n 6 = Vermietung und Verpachtung von Grundstücken, 7 = Vermietung und Verpachtung von beweglichen Sachen,\n 8 = Verwaltung, 9 = Kapitalanlage, 10 = Finanzierung, 11 = Sonstige Dienstleistungen, 12 = Holding,\n 13 = Sonstiges (10)"]
[]
[]
[]
[]
[]
[]
[]
[]
[]
[null,null,null,"Im Inland steuerlich erfasst beim Finanzamt (6)"]
[]
[]
[null,null,null,"Steuer-Identifikationsnummer bzw.",null,null,null,null,null,null,null,null,null,null,null,null,null,null,null,null,null,null,"Steuernummer"]
[null,null,null,"Wirtschafts-Identifikationsnummer"]
[]
[]
[]
[]
[null,null,null,"*",null,"Nur auszufüllen, wenn der Registersitz vom Ort/Sitz/Ort der Geschäftsleitung/Wohnort abweicht."]
[null,null,null,"**",null,"Nur bei ausländischen Kapitalgesellschaften anzugeben."]
[null,null,null,"***",null,"Nur bei Beteiligungen an ausländischen Personengesellschaften anzugeben."]
[]
[null,null,"Anlage: Ausländische Gesellschaft/ausländische Betriebsstätte/ausländischer Betrieb; Seite 1"]
[]
[]
[null,null,"010003 - BZSt 2 Mitteilungen nach § 138 Abs. 2 AO - 11/2020"]

{"sheet":"Gesellschaft 14","index":14,"n_rows":74,"n_cols":32,"rows_kept":74,"cut":false,"hidden":true,"merged":[[73,2,73,33],[54,3,54,31],[57,3,57,16],[58,3,58,31],[64,3,64,21],[64,22,64,31],[70,2,70,33],[47,3,47,4],[47,5,50,32],[38,3,38,8],[38,10,38,31],[39,3,39,7],[40,3,40,31],[42,3,42,21],[42,26,42,31],[43,3,43,24],[43,26,43,31],[44,3,44,7],[45,3,45,9],[46,3,46,19],[32,3,32,6],[33,3,33,31],[35,3,35,13],[36,3,36,31],[37,3,37,9],[37,10,37,15],[28,3,28,11],[29,3,29,31],[30,3,30,7],[30,10,30,20],[31,3,31,8],[31,10,31,31],[27,3,27,24],[27,26,27,31],[15,5,15,15],[17,5,17,16],[17,18,17,26],[17,27,17,29],[17,30,17,31],[20,5,20,26],[20,27,20,29],[20,30,20,31],[23,5,23,26],[23,27,23,29],[23,30,23,31],[26,3,26,13],[26,26,26,31],[13,3,13,21],[13,22,13,31],[2,2,2,32],[3,2,4,32],[5,2,5,32],[6,3,6,16],[7,3,7,29]]}
[]
[]
[null,null,{"$f":"Header","v":""}]
[null,null,"Anlage: Ausländische Gesellschaft / ausländische Betriebsstätte / ausländischer Betrieb"]
[]
[null,null,""]
[null,null,null,"Name / Firma der steuerpflichtigen Person"]
[null,null,null,null,null,null,null,null,null,null,null,null,null,null,null,null,null,null,null,null,null,null,null,null,null,null,null,null,null,null,"20",{"$f":"IF(Jahr=\"\",\"\",Jahr)","v":""}]
[]
[null,null,null,"Steuer-Identifikationsnummer bzw.",null,null,null,null,null,null,null,null,null,null,null,null,null,null,null,null,null,null,"Steuernummer der"]
[null,null,null,"Wirtschafts-Identifikationsnummer der steuerpflichtigen Person",null,null,null,null,null,null,null,null,null,null,null,null,null,null,null,null,null,null,"steuerpflichtigen Person"]
[]
[]
[]
[]
[]
[null,null,null,null,"zutreffendes bitte ankreuzen"]
[null,null,null,null,null," Ausländische Betriebsstätte",null,null,null,null,null,null,null,null,null,null,null,null," Ausländischer Betrieb",null,null,null,null,null,null,null,null,"Lfd. Nr. (3)"]
[]
[]
[null,null,null,null,null," Ausländische Personengesellschaft",null,null,null,null,null,null,null,null,null,null,null,null,null,null,null,null,null,null,null,null,null,"Lfd. Nr. (3)"]
[]
[]
[null,null,null,null,null," Ausländische Kapitalgesellschaft, Vermögensmasse, Personenvereinigung",null,null,null,null,null,null,null,null,null,null,null,null,null,null,null,null,null,null,null,null,null,"Lfd. Nr. (3)"]
[]
[]
[null,null,null,"Firmenname (4)",null,null,null,null,null,null,null,null,null,null,null,null,null,null,null,null,null,null,null,null,null,null,"Rechtsform"]
[]
[null,null,null,"Straße/Hausnummer"]
[]
[null,null,null,"Postleitzahl",null,null,null,null,null,null,"Ort/Sitz/Ort der Geschäftsleitung/Wohnort"]
[]
[null,null,null,"Staat"]
[]
[]
[null,null,null,"Sitz: Straße/Hausnummer*"]
[]
[null,null,null,"Sitz: Postleitzahl*",null,null,null,null,null,null,"Sitz: Ort*"]
[]
[null,null,null,"Sitz: Staat*"]
[]
[]
[null,null,null,"Nominalkapital** / Kapital (Höhe der Geschäftseinlage)***",null,null,null,null,null,null,null,null,null,null,null,null,null,null,null,null,null,null,null,null,null,null,"Währung (5)"]
[]
[null,null,null,"Gründung am"]
[]
[null,null,null,"Art der wirtschaftlichen Tätigkeit / Geschäftszweck"]
[null,null,null,null,null," 1 = Land- und Forstwirtschaft, 2 = Gewerbliche Herstellung und Verarbeitung,\n 3 = Kreditinstitut oder Versicherungsunternehmen, 4 = Handel, 5 = Überlassung von Rechten, Plänen, Mustern,\n 6 = Vermietung und Verpachtung von Grundstücken, 7 = Vermietung und Verpachtung von beweglichen Sachen,\n 8 = Verwaltung, 9 = Kapitalanlage, 10 = Finanzierung, 11 = Sonstige Dienstleistungen, 12 = Holding,\n 13 = Sonstiges (10)"]
[]
[]
[]
[]
[]
[]
[]
[]
[]
[null,null,null,"Im Inland steuerlich erfasst beim Finanzamt (6)"]
[]
[]
[null,null,null,"Steuer-Identifikationsnummer bzw.",null,null,null,null,null,null,null,null,null,null,null,null,null,null,null,null,null,null,"Steuernummer"]
[null,null,null,"Wirtschafts-Identifikationsnummer"]
[]
[]
[]
[]
[null,null,null,"*",null,"Nur auszufüllen, wenn der Registersitz vom Ort/Sitz/Ort der Geschäftsleitung/Wohnort abweicht."]
[null,null,null,"**",null,"Nur bei ausländischen Kapitalgesellschaften anzugeben."]
[null,null,null,"***",null,"Nur bei Beteiligungen an ausländischen Personengesellschaften anzugeben."]
[]
[null,null,"Anlage: Ausländische Gesellschaft/ausländische Betriebsstätte/ausländischer Betrieb; Seite 1"]
[]
[]
[null,null,"010003 - BZSt 2 Mitteilungen nach § 138 Abs. 2 AO - 11/2020"]

{"sheet":"Gesellschaft 15","index":15,"n_rows":74,"n_cols":32,"rows_kept":74,"cut":false,"hidden":true,"merged":[[73,2,73,33],[54,3,54,31],[57,3,57,16],[58,3,58,31],[64,3,64,21],[64,22,64,31],[70,2,70,33],[47,3,47,4],[47,5,50,32],[38,3,38,8],[38,10,38,31],[39,3,39,7],[40,3,40,31],[42,3,42,21],[42,26,42,31],[43,3,43,24],[43,26,43,31],[44,3,44,7],[45,3,45,9],[46,3,46,19],[32,3,32,6],[33,3,33,31],[35,3,35,13],[36,3,36,31],[37,3,37,9],[37,10,37,15],[28,3,28,11],[29,3,29,31],[30,3,30,7],[30,10,30,20],[31,3,31,8],[31,10,31,31],[27,3,27,24],[27,26,27,31],[15,5,15,15],[17,5,17,16],[17,18,17,26],[17,27,17,29],[17,30,17,31],[20,5,20,26],[20,27,20,29],[20,30,20,31],[23,5,23,26],[23,27,23,29],[23,30,23,31],[26,3,26,13],[26,26,26,31],[13,3,13,21],[13,22,13,31],[2,2,2,32],[3,2,4,32],[5,2,5,32],[6,3,6,16],[7,3,7,29]]}
[]
[]
[null,null,{"$f":"Header","v":""}]
[null,null,"Anlage: Ausländische Gesellschaft / ausländische Betriebsstätte / ausländischer Betrieb"]
[]
[null,null,""]
[null,null,null,"Name / Firma der steuerpflichtigen Person"]
[null,null,null,null,null,null,null,null,null,null,null,null,null,null,null,null,null,null,null,null,null,null,null,null,null,null,null,null,null,null,"20",{"$f":"IF(Jahr=\"\",\"\",Jahr)","v":""}]
[]
[null,null,null,"Steuer-Identifikationsnummer bzw.",null,null,null,null,null,null,null,null,null,null,null,null,null,null,null,null,null,null,"Steuernummer der"]
[null,null,null,"Wirtschafts-Identifikationsnummer der steuerpflichtigen Person",null,null,null,null,null,null,null,null,null,null,null,null,null,null,null,null,null,null,"steuerpflichtigen Person"]
[]
[]
[]
[]
[]
[null,null,null,null,"zutreffendes bitte ankreuzen"]
[null,null,null,null,null," Ausländische Betriebsstätte",null,null,null,null,null,null,null,null,null,null,null,null," Ausländischer Betrieb",null,null,null,null,null,null,null,null,"Lfd. Nr. (3)"]
[]
[]
[null,null,null,null,null," Ausländische Personengesellschaft",null,null,null,null,null,null,null,null,null,null,null,null,null,null,null,null,null,null,null,null,null,"Lfd. Nr. (3)"]
[]
[]
[null,null,null,null,null," Ausländische Kapitalgesellschaft, Vermögensmasse, Personenvereinigung",null,null,null,null,null,null,null,null,null,null,null,null,null,null,null,null,null,null,null,null,null,"Lfd. Nr. (3)"]
[]
[]
[null,null,null,"Firmenname (4)",null,null,null,null,null,null,null,null,null,null,null,null,null,null,null,null,null,null,null,null,null,null,"Rechtsform"]
[]
[null,null,null,"Straße/Hausnummer"]
[]
[null,null,null,"Postleitzahl",null,null,null,null,null,null,"Ort/Sitz/Ort der Geschäftsleitung/Wohnort"]
[]
[null,null,null,"Staat"]
[]
[]
[null,null,null,"Sitz: Straße/Hausnummer*"]
[]
[null,null,null,"Sitz: Postleitzahl*",null,null,null,null,null,null,"Sitz: Ort*"]
[]
[null,null,null,"Sitz: Staat*"]
[]
[]
[null,null,null,"Nominalkapital** / Kapital (Höhe der Geschäftseinlage)***",null,null,null,null,null,null,null,null,null,null,null,null,null,null,null,null,null,null,null,null,null,null,"Währung (5)"]
[]
[null,null,null,"Gründung am"]
[]
[null,null,null,"Art der wirtschaftlichen Tätigkeit / Geschäftszweck"]
[null,null,null,null,null," 1 = Land- und Forstwirtschaft, 2 = Gewerbliche Herstellung und Verarbeitung,\n 3 = Kreditinstitut oder Versicherungsunternehmen, 4 = Handel, 5 = Überlassung von Rechten, Plänen, Mustern,\n 6 = Vermietung und Verpachtung von Grundstücken, 7 = Vermietung und Verpachtung von beweglichen Sachen,\n 8 = Verwaltung, 9 = Kapitalanlage, 10 = Finanzierung, 11 = Sonstige Dienstleistungen, 12 = Holding,\n 13 = Sonstiges (10)"]
[]
[]
[]
[]
[]
[]
[]
[]
[]
[null,null,null,"Im Inland steuerlich erfasst beim Finanzamt (6)"]
[]
[]
[null,null,null,"Steuer-Identifikationsnummer bzw.",null,null,null,null,null,null,null,null,null,null,null,null,null,null,null,null,null,null,"Steuernummer"]
[null,null,null,"Wirtschafts-Identifikationsnummer"]
[]
[]
[]
[]
[null,null,null,"*",null,"Nur auszufüllen, wenn der Registersitz vom Ort/Sitz/Ort der Geschäftsleitung/Wohnort abweicht."]
[null,null,null,"**",null,"Nur bei ausländischen Kapitalgesellschaften anzugeben."]
[null,null,null,"***",null,"Nur bei Beteiligungen an ausländischen Personengesellschaften anzugeben."]
[]
[null,null,"Anlage: Ausländische Gesellschaft/ausländische Betriebsstätte/ausländischer Betrieb; Seite 1"]
[]
[]
[null,null,"010003 - BZSt 2 Mitteilungen nach § 138 Abs. 2 AO - 11/2020"]

{"sheet":"Gesellschaft 16","index":16,"n_rows":74,"n_cols":32,"rows_kept":74,"cut":false,"hidden":true,"merged":[[73,2,73,33],[54,3,54,31],[57,3,57,16],[58,3,58,31],[64,3,64,21],[64,22,64,31],[70,2,70,33],[47,3,47,4],[47,5,50,32],[38,3,38,8],[38,10,38,31],[39,3,39,7],[40,3,40,31],[42,3,42,21],[42,26,42,31],[43,3,43,24],[43,26,43,31],[44,3,44,7],[45,3,45,9],[46,3,46,19],[32,3,32,6],[33,3,33,31],[35,3,35,13],[36,3,36,31],[37,3,37,9],[37,10,37,15],[28,3,28,11],[29,3,29,31],[30,3,30,7],[30,10,30,20],[31,3,31,8],[31,10,31,31],[27,3,27,24],[27,26,27,31],[15,5,15,15],[17,5,17,16],[17,18,17,26],[17,27,17,29],[17,30,17,31],[20,5,20,26],[20,27,20,29],[20,30,20,31],[23,5,23,26],[23,27,23,29],[23,30,23,31],[26,3,26,13],[26,26,26,31],[13,3,13,21],[13,22,13,31],[2,2,2,32],[3,2,4,32],[5,2,5,32],[6,3,6,16],[7,3,7,29]]}
[]
[]
[null,null,{"$f":"Header","v":""}]
[null,null,"Anlage: Ausländische Gesellschaft / ausländische Betriebsstätte / ausländischer Betrieb"]
[]
[null,null,""]
[null,null,null,"Name / Firma der steuerpflichtigen Person"]
[null,null,null,null,null,null,null,null,null,null,null,null,null,null,null,null,null,null,null,null,null,null,null,null,null,null,null,null,null,null,"20",{"$f":"IF(Jahr=\"\",\"\",Jahr)","v":""}]
[]
[null,null,null,"Steuer-Identifikationsnummer bzw.",null,null,null,null,null,null,null,null,null,null,null,null,null,null,null,null,null,null,"Steuernummer der"]
[null,null,null,"Wirtschafts-Identifikationsnummer der steuerpflichtigen Person",null,null,null,null,null,null,null,null,null,null,null,null,null,null,null,null,null,null,"steuerpflichtigen Person"]
[]
[]
[]
[]
[]
[null,null,null,null,"zutreffendes bitte ankreuzen"]
[null,null,null,null,null," Ausländische Betriebsstätte",null,null,null,null,null,null,null,null,null,null,null,null," Ausländischer Betrieb",null,null,null,null,null,null,null,null,"Lfd. Nr. (3)"]
[]
[]
[null,null,null,null,null," Ausländische Personengesellschaft",null,null,null,null,null,null,null,null,null,null,null,null,null,null,null,null,null,null,null,null,null,"Lfd. Nr. (3)"]
[]
[]
[null,null,null,null,null," Ausländische Kapitalgesellschaft, Vermögensmasse, Personenvereinigung",null,null,null,null,null,null,null,null,null,null,null,null,null,null,null,null,null,null,null,null,null,"Lfd. Nr. (3)"]
[]
[]
[null,null,null,"Firmenname (4)",null,null,null,null,null,null,null,null,null,null,null,null,null,null,null,null,null,null,null,null,null,null,"Rechtsform"]
[]
[null,null,null,"Straße/Hausnummer"]
[]
[null,null,null,"Postleitzahl",null,null,null,null,null,null,"Ort/Sitz/Ort der Geschäftsleitung/Wohnort"]
[]
[null,null,null,"Staat"]
[]
[]
[null,null,null,"Sitz: Straße/Hausnummer*"]
[]
[null,null,null,"Sitz: Postleitzahl*",null,null,null,null,null,null,"Sitz: Ort*"]
[]
[null,null,null,"Sitz: Staat*"]
[]
[]
[null,null,null,"Nominalkapital** / Kapital (Höhe der Geschäftseinlage)***",null,null,null,null,null,null,null,null,null,null,null,null,null,null,null,null,null,null,null,null,null,null,"Währung (5)"]
[]
[null,null,null,"Gründung am"]
[]
[null,null,null,"Art der wirtschaftlichen Tätigkeit / Geschäftszweck"]
[null,null,null,null,null," 1 = Land- und Forstwirtschaft, 2 = Gewerbliche Herstellung und Verarbeitung,\n 3 = Kreditinstitut oder Versicherungsunternehmen, 4 = Handel, 5 = Überlassung von Rechten, Plänen, Mustern,\n 6 = Vermietung und Verpachtung von Grundstücken, 7 = Vermietung und Verpachtung von beweglichen Sachen,\n 8 = Verwaltung, 9 = Kapitalanlage, 10 = Finanzierung, 11 = Sonstige Dienstleistungen, 12 = Holding,\n 13 = Sonstiges (10)"]
[]
[]
[]
[]
[]
[]
[]
[]
[]
[null,null,null,"Im Inland steuerlich erfasst beim Finanzamt (6)"]
[]
[]
[null,null,null,"Steuer-Identifikationsnummer bzw.",null,null,null,null,null,null,null,null,null,null,null,null,null,null,null,null,null,null,"Steuernummer"]
[null,null,null,"Wirtschafts-Identifikationsnummer"]
[]
[]
[]
[]
[null,null,null,"*",null,"Nur auszufüllen, wenn der Registersitz vom Ort/Sitz/Ort der Geschäftsleitung/Wohnort abweicht."]
[null,null,null,"**",null,"Nur bei ausländischen Kapitalgesellschaften anzugeben."]
[null,null,null,"***",null,"Nur bei Beteiligungen an ausländischen Personengesellschaften anzugeben."]
[]
[null,null,"Anlage: Ausländische Gesellschaft/ausländische Betriebsstätte/ausländischer Betrieb; Seite 1"]
[]
[]
[null,null,"010003 - BZSt 2 Mitteilungen nach § 138 Abs. 2 AO - 11/2020"]

{"sheet":"Gesellschaft 17","index":17,"n_rows":74,"n_cols":32,"rows_kept":74,"cut":false,"hidden":true,"merged":[[73,2,73,33],[54,3,54,31],[57,3,57,16],[58,3,58,31],[64,3,64,21],[64,22,64,31],[70,2,70,33],[47,3,47,4],[47,5,50,32],[38,3,38,8],[38,10,38,31],[39,3,39,7],[40,3,40,31],[42,3,42,21],[42,26,42,31],[43,3,43,24],[43,26,43,31],[44,3,44,7],[45,3,45,9],[46,3,46,19],[32,3,32,6],[33,3,33,31],[35,3,35,13],[36,3,36,31],[37,3,37,9],[37,10,37,15],[28,3,28,11],[29,3,29,31],[30,3,30,7],[30,10,30,20],[31,3,31,8],[31,10,31,31],[27,3,27,24],[27,26,27,31],[15,5,15,15],[17,5,17,16],[17,18,17,26],[17,27,17,29],[17,30,17,31],[20,5,20,26],[20,27,20,29],[20,30,20,31],[23,5,23,26],[23,27,23,29],[23,30,23,31],[26,3,26,13],[26,26,26,31],[13,3,13,21],[13,22,13,31],[2,2,2,32],[3,2,4,32],[5,2,5,32],[6,3,6,16],[7,3,7,29]]}
[]
[]
[null,null,{"$f":"Header","v":""}]
[null,null,"Anlage: Ausländische Gesellschaft / ausländische Betriebsstätte / ausländischer Betrieb"]
[]
[null,null,""]
[null,null,null,"Name / Firma der steuerpflichtigen Person"]
[null,null,null,null,null,null,null,null,null,null,null,null,null,null,null,null,null,null,null,null,null,null,null,null,null,null,null,null,null,null,"20",{"$f":"IF(Jahr=\"\",\"\",Jahr)","v":""}]
[]
[null,null,null,"Steuer-Identifikationsnummer bzw.",null,null,null,null,null,null,null,null,null,null,null,null,null,null,null,null,null,null,"Steuernummer der"]
[null,null,null,"Wirtschafts-Identifikationsnummer der steuerpflichtigen Person",null,null,null,null,null,null,null,null,null,null,null,null,null,null,null,null,null,null,"steuerpflichtigen Person"]
[]
[]
[]
[]
[]
[null,null,null,null,"zutreffendes bitte ankreuzen"]
[null,null,null,null,null," Ausländische Betriebsstätte",null,null,null,null,null,null,null,null,null,null,null,null," Ausländischer Betrieb",null,null,null,null,null,null,null,null,"Lfd. Nr. (3)"]
[]
[]
[null,null,null,null,null," Ausländische Personengesellschaft",null,null,null,null,null,null,null,null,null,null,null,null,null,null,null,null,null,null,null,null,null,"Lfd. Nr. (3)"]
[]
[]
[null,null,null,null,null," Ausländische Kapitalgesellschaft, Vermögensmasse, Personenvereinigung",null,null,null,null,null,null,null,null,null,null,null,null,null,null,null,null,null,null,null,null,null,"Lfd. Nr. (3)"]
[]
[]
[null,null,null,"Firmenname (4)",null,null,null,null,null,null,null,null,null,null,null,null,null,null,null,null,null,null,null,null,null,null,"Rechtsform"]
[]
[null,null,null,"Straße/Hausnummer"]
[]
[null,null,null,"Postleitzahl",null,null,null,null,null,null,"Ort/Sitz/Ort der Geschäftsleitung/Wohnort"]
[]
[null,null,null,"Staat"]
[]
[]
[null,null,null,"Sitz: Straße/Hausnummer*"]
[]
[null,null,null,"Sitz: Postleitzahl*",null,null,null,null,null,null,"Sitz: Ort*"]
[]
[null,null,null,"Sitz: Staat*"]
[]
[]
[null,null,null,"Nominalkapital** / Kapital (Höhe der Geschäftseinlage)***",null,null,null,null,null,null,null,null,null,null,null,null,null,null,null,null,null,null,null,null,null,null,"Währung (5)"]
[]
[null,null,null,"Gründung am"]
[]
[null,null,null,"Art der wirtschaftlichen Tätigkeit / Geschäftszweck"]
[null,null,null,null,null," 1 = Land- und Forstwirtschaft, 2 = Gewerbliche Herstellung und Verarbeitung,\n 3 = Kreditinstitut oder Versicherungsunternehmen, 4 = Handel, 5 = Überlassung von Rechten, Plänen, Mustern,\n 6 = Vermietung und Verpachtung von Grundstücken, 7 = Vermietung und Verpachtung von beweglichen Sachen,\n 8 = Verwaltung, 9 = Kapitalanlage, 10 = Finanzierung, 11 = Sonstige Dienstleistungen, 12 = Holding,\n 13 = Sonstiges (10)"]
[]
[]
[]
[]
[]
[]
[]
[]
[]
[null,null,null,"Im Inland steuerlich erfasst beim Finanzamt (6)"]
[]
[]
[null,null,null,"Steuer-Identifikationsnummer bzw.",null,null,null,null,null,null,null,null,null,null,null,null,null,null,null,null,null,null,"Steuernummer"]
[null,null,null,"Wirtschafts-Identifikationsnummer"]
[]
[]
[]
[]
[null,null,null,"*",null,"Nur auszufüllen, wenn der Registersitz vom Ort/Sitz/Ort der Geschäftsleitung/Wohnort abweicht."]
[null,null,null,"**",null,"Nur bei ausländischen Kapitalgesellschaften anzugeben."]
[null,null,null,"***",null,"Nur bei Beteiligungen an ausländischen Personengesellschaften anzugeben."]
[]
[null,null,"Anlage: Ausländische Gesellschaft/ausländische Betriebsstätte/ausländischer Betrieb; Seite 1"]
[]
[]
[null,null,"010003 - BZSt 2 Mitteilungen nach § 138 Abs. 2 AO - 11/2020"]

{"sheet":"Gesellschaft 18","index":18,"n_rows":74,"n_cols":32,"rows_kept":74,"cut":false,"hidden":true,"merged":[[73,2,73,33],[54,3,54,31],[57,3,57,16],[58,3,58,31],[64,3,64,21],[64,22,64,31],[70,2,70,33],[47,3,47,4],[47,5,50,32],[38,3,38,8],[38,10,38,31],[39,3,39,7],[40,3,40,31],[42,3,42,21],[42,26,42,31],[43,3,43,24],[43,26,43,31],[44,3,44,7],[45,3,45,9],[46,3,46,19],[32,3,32,6],[33,3,33,31],[35,3,35,13],[36,3,36,31],[37,3,37,9],[37,10,37,15],[28,3,28,11],[29,3,29,31],[30,3,30,7],[30,10,30,20],[31,3,31,8],[31,10,31,31],[27,3,27,24],[27,26,27,31],[15,5,15,15],[17,5,17,16],[17,18,17,26],[17,27,17,29],[17,30,17,31],[20,5,20,26],[20,27,20,29],[20,30,20,31],[23,5,23,26],[23,27,23,29],[23,30,23,31],[26,3,26,13],[26,26,26,31],[13,3,13,21],[13,22,13,31],[2,2,2,32],[3,2,4,32],[5,2,5,32],[6,3,6,16],[7,3,7,29]]}
[]
[]
[null,null,{"$f":"Header","v":""}]
[null,null,"Anlage: Ausländische Gesellschaft / ausländische Betriebsstätte / ausländischer Betrieb"]
[]
[null,null,""]
[null,null,null,"Name / Firma der steuerpflichtigen Person"]
[null,null,null,null,null,null,null,null,null,null,null,null,null,null,null,null,null,null,null,null,null,null,null,null,null,null,null,null,null,null,"20",{"$f":"IF(Jahr=\"\",\"\",Jahr)","v":""}]
[]
[null,null,null,"Steuer-Identifikationsnummer bzw.",null,null,null,null,null,null,null,null,null,null,null,null,null,null,null,null,null,null,"Steuernummer der"]
[null,null,null,"Wirtschafts-Identifikationsnummer der steuerpflichtigen Person",null,null,null,null,null,null,null,null,null,null,null,null,null,null,null,null,null,null,"steuerpflichtigen Person"]
[]
[]
[]
[]
[]
[null,null,null,null,"zutreffendes bitte ankreuzen"]
[null,null,null,null,null," Ausländische Betriebsstätte",null,null,null,null,null,null,null,null,null,null,null,null," Ausländischer Betrieb",null,null,null,null,null,null,null,null,"Lfd. Nr. (3)"]
[]
[]
[null,null,null,null,null," Ausländische Personengesellschaft",null,null,null,null,null,null,null,null,null,null,null,null,null,null,null,null,null,null,null,null,null,"Lfd. Nr. (3)"]
[]
[]
[null,null,null,null,null," Ausländische Kapitalgesellschaft, Vermögensmasse, Personenvereinigung",null,null,null,null,null,null,null,null,null,null,null,null,null,null,null,null,null,null,null,null,null,"Lfd. Nr. (3)"]
[]
[]
[null,null,null,"Firmenname (4)",null,null,null,null,null,null,null,null,null,null,null,null,null,null,null,null,null,null,null,null,null,null,"Rechtsform"]
[]
[null,null,null,"Straße/Hausnummer"]
[]
[null,null,null,"Postleitzahl",null,null,null,null,null,null,"Ort/Sitz/Ort der Geschäftsleitung/Wohnort"]
[]
[null,null,null,"Staat"]
[]
[]
[null,null,null,"Sitz: Straße/Hausnummer*"]
[]
[null,null,null,"Sitz: Postleitzahl*",null,null,null,null,null,null,"Sitz: Ort*"]
[]
[null,null,null,"Sitz: Staat*"]
[]
[]
[null,null,null,"Nominalkapital** / Kapital (Höhe der Geschäftseinlage)***",null,null,null,null,null,null,null,null,null,null,null,null,null,null,null,null,null,null,null,null,null,null,"Währung (5)"]
[]
[null,null,null,"Gründung am"]
[]
[null,null,null,"Art der wirtschaftlichen Tätigkeit / Geschäftszweck"]
[null,null,null,null,null," 1 = Land- und Forstwirtschaft, 2 = Gewerbliche Herstellung und Verarbeitung,\n 3 = Kreditinstitut oder Versicherungsunternehmen, 4 = Handel, 5 = Überlassung von Rechten, Plänen, Mustern,\n 6 = Vermietung und Verpachtung von Grundstücken, 7 = Vermietung und Verpachtung von beweglichen Sachen,\n 8 = Verwaltung, 9 = Kapitalanlage, 10 = Finanzierung, 11 = Sonstige Dienstleistungen, 12 = Holding,\n 13 = Sonstiges (10)"]
[]
[]
[]
[]
[]
[]
[]
[]
[]
[null,null,null,"Im Inland steuerlich erfasst beim Finanzamt (6)"]
[]
[]
[null,null,null,"Steuer-Identifikationsnummer bzw.",null,null,null,null,null,null,null,null,null,null,null,null,null,null,null,null,null,null,"Steuernummer"]
[null,null,null,"Wirtschafts-Identifikationsnummer"]
[]
[]
[]
[]
[null,null,null,"*",null,"Nur auszufüllen, wenn der Registersitz vom Ort/Sitz/Ort der Geschäftsleitung/Wohnort abweicht."]
[null,null,null,"**",null,"Nur bei ausländischen Kapitalgesellschaften anzugeben."]
[null,null,null,"***",null,"Nur bei Beteiligungen an ausländischen Personengesellschaften anzugeben."]
[]
[null,null,"Anlage: Ausländische Gesellschaft/ausländische Betriebsstätte/ausländischer Betrieb; Seite 1"]
[]
[]
[null,null,"010003 - BZSt 2 Mitteilungen nach § 138 Abs. 2 AO - 11/2020"]

{"sheet":"Gesellschaft 19","index":19,"n_rows":74,"n_cols":32,"rows_kept":74,"cut":false,"hidden":true,"merged":[[73,2,73,33],[54,3,54,31],[57,3,57,16],[58,3,58,31],[64,3,64,21],[64,22,64,31],[70,2,70,33],[47,3,47,4],[47,5,50,32],[38,3,38,8],[38,10,38,31],[39,3,39,7],[40,3,40,31],[42,3,42,21],[42,26,42,31],[43,3,43,24],[43,26,43,31],[44,3,44,7],[45,3,45,9],[46,3,46,19],[32,3,32,6],[33,3,33,31],[35,3,35,13],[36,3,36,31],[37,3,37,9],[37,10,37,15],[28,3,28,11],[29,3,29,31],[30,3,30,7],[30,10,30,20],[31,3,31,8],[31,10,31,31],[27,3,27,24],[27,26,27,31],[15,5,15,15],[17,5,17,16],[17,18,17,26],[17,27,17,29],[17,30,17,31],[20,5,20,26],[20,27,20,29],[20,30,20,31],[23,5,23,26],[23,27,23,29],[23,30,23,31],[26,3,26,13],[26,26,26,31],[13,3,13,21],[13,22,13,31],[2,2,2,32],[3,2,4,32],[5,2,5,32],[6,3,6,16],[7,3,7,29]]}
[]
[]
[null,null,{"$f":"Header","v":""}]
[null,null,"Anlage: Ausländische Gesellschaft / ausländische Betriebsstätte / ausländischer Betrieb"]
[]
[null,null,""]
[null,null,null,"Name / Firma der steuerpflichtigen Person"]
[null,null,null,null,null,null,null,null,null,null,null,null,null,null,null,null,null,null,null,null,null,null,null,null,null,null,null,null,null,null,"20",{"$f":"IF(Jahr=\"\",\"\",Jahr)","v":""}]
[]
[null,null,null,"Steuer-Identifikationsnummer bzw.",null,null,null,null,null,null,null,null,null,null,null,null,null,null,null,null,null,null,"Steuernummer der"]
[null,null,null,"Wirtschafts-Identifikationsnummer der steuerpflichtigen Person",null,null,null,null,null,null,null,null,null,null,null,null,null,null,null,null,null,null,"steuerpflichtigen Person"]
[]
[]
[]
[]
[]
[null,null,null,null,"zutreffendes bitte ankreuzen"]
[null,null,null,null,null," Ausländische Betriebsstätte",null,null,null,null,null,null,null,null,null,null,null,null," Ausländischer Betrieb",null,null,null,null,null,null,null,null,"Lfd. Nr. (3)"]
[]
[]
[null,null,null,null,null," Ausländische Personengesellschaft",null,null,null,null,null,null,null,null,null,null,null,null,null,null,null,null,null,null,null,null,null,"Lfd. Nr. (3)"]
[]
[]
[null,null,null,null,null," Ausländische Kapitalgesellschaft, Vermögensmasse, Personenvereinigung",null,null,null,null,null,null,null,null,null,null,null,null,null,null,null,null,null,null,null,null,null,"Lfd. Nr. (3)"]
[]
[]
[null,null,null,"Firmenname (4)",null,null,null,null,null,null,null,null,null,null,null,null,null,null,null,null,null,null,null,null,null,null,"Rechtsform"]
[]
[null,null,null,"Straße/Hausnummer"]
[]
[null,null,null,"Postleitzahl",null,null,null,null,null,null,"Ort/Sitz/Ort der Geschäftsleitung/Wohnort"]
[]
[null,null,null,"Staat"]
[]
[]
[null,null,null,"Sitz: Straße/Hausnummer*"]
[]
[null,null,null,"Sitz: Postleitzahl*",null,null,null,null,null,null,"Sitz: Ort*"]
[]
[null,null,null,"Sitz: Staat*"]
[]
[]
[null,null,null,"Nominalkapital** / Kapital (Höhe der Geschäftseinlage)***",null,null,null,null,null,null,null,null,null,null,null,null,null,null,null,null,null,null,null,null,null,null,"Währung (5)"]
[]
[null,null,null,"Gründung am"]
[]
[null,null,null,"Art der wirtschaftlichen Tätigkeit / Geschäftszweck"]
[null,null,null,null,null," 1 = Land- und Forstwirtschaft, 2 = Gewerbliche Herstellung und Verarbeitung,\n 3 = Kreditinstitut oder Versicherungsunternehmen, 4 = Handel, 5 = Überlassung von Rechten, Plänen, Mustern,\n 6 = Vermietung und Verpachtung von Grundstücken, 7 = Vermietung und Verpachtung von beweglichen Sachen,\n 8 = Verwaltung, 9 = Kapitalanlage, 10 = Finanzierung, 11 = Sonstige Dienstleistungen, 12 = Holding,\n 13 = Sonstiges (10)"]
[]
[]
[]
[]
[]
[]
[]
[]
[]
[null,null,null,"Im Inland steuerlich erfasst beim Finanzamt (6)"]
[]
[]
[null,null,null,"Steuer-Identifikationsnummer bzw.",null,null,null,null,null,null,null,null,null,null,null,null,null,null,null,null,null,null,"Steuernummer"]
[null,null,null,"Wirtschafts-Identifikationsnummer"]
[]
[]
[]
[]
[null,null,null,"*",null,"Nur auszufüllen, wenn der Registersitz vom Ort/Sitz/Ort der Geschäftsleitung/Wohnort abweicht."]
[null,null,null,"**",null,"Nur bei ausländischen Kapitalgesellschaften anzugeben."]
[null,null,null,"***",null,"Nur bei Beteiligungen an ausländischen Personengesellschaften anzugeben."]
[]
[null,null,"Anlage: Ausländische Gesellschaft/ausländische Betriebsstätte/ausländischer Betrieb; Seite 1"]
[]
[]
[null,null,"010003 - BZSt 2 Mitteilungen nach § 138 Abs. 2 AO - 11/2020"]

{"sheet":"Gesellschaft 20","index":20,"n_rows":74,"n_cols":32,"rows_kept":74,"cut":false,"hidden":true,"merged":[[73,2,73,33],[54,3,54,31],[57,3,57,16],[58,3,58,31],[64,3,64,21],[64,22,64,31],[70,2,70,33],[47,3,47,4],[47,5,50,32],[38,3,38,8],[38,10,38,31],[39,3,39,7],[40,3,40,31],[42,3,42,21],[42,26,42,31],[43,3,43,24],[43,26,43,31],[44,3,44,7],[45,3,45,9],[46,3,46,19],[32,3,32,6],[33,3,33,31],[35,3,35,13],[36,3,36,31],[37,3,37,9],[37,10,37,15],[28,3,28,11],[29,3,29,31],[30,3,30,7],[30,10,30,20],[31,3,31,8],[31,10,31,31],[27,3,27,24],[27,26,27,31],[15,5,15,15],[17,5,17,16],[17,18,17,26],[17,27,17,29],[17,30,17,31],[20,5,20,26],[20,27,20,29],[20,30,20,31],[23,5,23,26],[23,27,23,29],[23,30,23,31],[26,3,26,13],[26,26,26,31],[13,3,13,21],[13,22,13,31],[2,2,2,32],[3,2,4,32],[5,2,5,32],[6,3,6,16],[7,3,7,29]]}
[]
[]
[null,null,{"$f":"Header","v":""}]
[null,null,"Anlage: Ausländische Gesellschaft / ausländische Betriebsstätte / ausländischer Betrieb"]
[]
[null,null,""]
[null,null,null,"Name / Firma der steuerpflichtigen Person"]
[null,null,null,null,null,null,null,null,null,null,null,null,null,null,null,null,null,null,null,null,null,null,null,null,null,null,null,null,null,null,"20",{"$f":"IF(Jahr=\"\",\"\",Jahr)","v":""}]
[]
[null,null,null,"Steuer-Identifikationsnummer bzw.",null,null,null,null,null,null,null,null,null,null,null,null,null,null,null,null,null,null,"Steuernummer der"]
[null,null,null,"Wirtschafts-Identifikationsnummer der steuerpflichtigen Person",null,null,null,null,null,null,null,null,null,null,null,null,null,null,null,null,null,null,"steuerpflichtigen Person"]
[]
[]
[]
[]
[]
[null,null,null,null,"zutreffendes bitte ankreuzen"]
[null,null,null,null,null," Ausländische Betriebsstätte",null,null,null,null,null,null,null,null,null,null,null,null," Ausländischer Betrieb",null,null,null,null,null,null,null,null,"Lfd. Nr. (3)"]
[]
[]
[null,null,null,null,null," Ausländische Personengesellschaft",null,null,null,null,null,null,null,null,null,null,null,null,null,null,null,null,null,null,null,null,null,"Lfd. Nr. (3)"]
[]
[]
[null,null,null,null,null," Ausländische Kapitalgesellschaft, Vermögensmasse, Personenvereinigung",null,null,null,null,null,null,null,null,null,null,null,null,null,null,null,null,null,null,null,null,null,"Lfd. Nr. (3)"]
[]
[]
[null,null,null,"Firmenname (4)",null,null,null,null,null,null,null,null,null,null,null,null,null,null,null,null,null,null,null,null,null,null,"Rechtsform"]
[]
[null,null,null,"Straße/Hausnummer"]
[]
[null,null,null,"Postleitzahl",null,null,null,null,null,null,"Ort/Sitz/Ort der Geschäftsleitung/Wohnort"]
[]
[null,null,null,"Staat"]
[]
[]
[null,null,null,"Sitz: Straße/Hausnummer*"]
[]
[null,null,null,"Sitz: Postleitzahl*",null,null,null,null,null,null,"Sitz: Ort*"]
[]
[null,null,null,"Sitz: Staat*"]
[]
[]
[null,null,null,"Nominalkapital** / Kapital (Höhe der Geschäftseinlage)***",null,null,null,null,null,null,null,null,null,null,null,null,null,null,null,null,null,null,null,null,null,null,"Währung (5)"]
[]
[null,null,null,"Gründung am"]
[]
[null,null,null,"Art der wirtschaftlichen Tätigkeit / Geschäftszweck"]
[null,null,null,null,null," 1 = Land- und Forstwirtschaft, 2 = Gewerbliche Herstellung und Verarbeitung,\n 3 = Kreditinstitut oder Versicherungsunternehmen, 4 = Handel, 5 = Überlassung von Rechten, Plänen, Mustern,\n 6 = Vermietung und Verpachtung von Grundstücken, 7 = Vermietung und Verpachtung von beweglichen Sachen,\n 8 = Verwaltung, 9 = Kapitalanlage, 10 = Finanzierung, 11 = Sonstige Dienstleistungen, 12 = Holding,\n 13 = Sonstiges (10)"]
[]
[]
[]
[]
[]
[]
[]
[]
[]
[null,null,null,"Im Inland steuerlich erfasst beim Finanzamt (6)"]
[]
[]
[null,null,null,"Steuer-Identifikationsnummer bzw.",null,null,null,null,null,null,null,null,null,null,null,null,null,null,null,null,null,null,"Steuernummer"]
[null,null,null,"Wirtschafts-Identifikationsnummer"]
[]
[]
[]
[]
[null,null,null,"*",null,"Nur auszufüllen, wenn der Registersitz vom Ort/Sitz/Ort der Geschäftsleitung/Wohnort abweicht."]
[null,null,null,"**",null,"Nur bei ausländischen Kapitalgesellschaften anzugeben."]
[null,null,null,"***",null,"Nur bei Beteiligungen an ausländischen Personengesellschaften anzugeben."]
[]
[null,null,"Anlage: Ausländische Gesellschaft/ausländische Betriebsstätte/ausländischer Betrieb; Seite 1"]
[]
[]
[null,null,"010003 - BZSt 2 Mitteilungen nach § 138 Abs. 2 AO - 11/2020"]

{"sheet":"Beteiligte 1","index":21,"n_rows":74,"n_cols":32,"rows_kept":74,"cut":false,"hidden":false,"merged":[[71,2,71,32],[2,2,2,32],[34,3,34,13],[36,3,36,31],[35,3,35,19],[42,3,42,21],[42,22,42,31],[3,3,4,31],[20,26,20,31],[27,3,27,17],[23,3,23,31],[25,9,25,31],[24,3,24,6],[21,26,21,31],[20,3,20,16],[22,3,22,11],[29,3,29,8],[25,3,25,7],[21,3,21,24],[16,30,16,31],[16,2,16,16],[16,17,16,29],[73,2,73,33],[33,15,33,18],[33,20,33,23],[33,24,33,27],[5,3,5,16],[6,3,6,29],[13,3,13,21],[13,22,13,31],[27,18,27,31],[30,3,30,7],[33,7,33,8],[33,3,33,6],[33,9,33,13],[19,3,19,9],[24,9,24,20],[26,3,26,20]]}
[]
[]
[null,null,{"$f":"Header","v":""}]
[null,null,null,"Anlage: Beteiligte"]
[]
[null,null,null,"Name / Firma"]
[null,null,null,null,null,null,null,null,null,null,null,null,null,null,null,null,null,null,null,null,null,null,null,null,null,null,null,null,null,null,"20",{"$f":"IF(Jahr=\"\",\"\",Jahr)","v":""}]
[]
[]
[null,null,null,"Steuer-Identifikationsnummer bzw.",null,null,null,null,null,null,null,null,null,null,null,null,null,null,null,null,null,null,"Steuernummer der steuerpflichtigen Person"]
[null,null,null,"Wirtschafts-Identifikationsnummer der steuerpflichtigen Person"]
[]
[]
[]
[]
[]
[null,null,"Anlage: Beteiligte",null,null,null,null,null,null,null,null,null,null,null,null,null,null,"Zur Anlage ausl. Gesellschaft lfd. Nr. "]
[]
[]
[null,null,null,"Beteiligte (7)"]
[null,null,null,"Name, Vorname / Firmenname (4)",null,null,null,null,null,null,null,null,null,null,null,null,null,null,null,null,null,null,null,null,null,null,"Rechtsform"]
[]
[null,null,null,"Straße / Hausnummer"]
[]
[null,null,null,"Postleitzahl",null,null,null,null,null,"Wohnort / Sitz / Ort der Geschäftsleitung"]
[]
[null,null,null,"Anteil am Nominalkapital */ Kapital **   (in Prozent)"]
[]
[]
[null,null,null,"Beteiligt seit dem"]
[]
[]
[]
[null,null,null,"Beteiligung",null,null,null,null,null," geändert **  /",null,null,null,null,null," aufgegeben **    /",null,null,null,null," veräußert *  / am"]
[null,null,null,"(zutreffendes bitte ankreuzen)"]
[null,null,null,"Im Inland steuerlich erfasst beim Finanzamt"]
[]
[]
[null,null,null,"Steuer-Identifikationsnummer bzw.",null,null,null,null,null,null,null,null,null,null,null,null,null,null,null,null,null,null,"Steuernummer ***"]
[null,null,null,"Wirtschafts-Identifikationsnummer ***"]
[]
[]
[]
[]
[]
[]
[]
[]
[]
[]
[]
[]
[]
[]
[]
[]
[]
[]
[]
[]
[]
[]
[]
[]
[]
[]
[]
[null,null,null,"*","Nur bei ausländischen Kapitalgesellschaften anzugeben."]
[null,null,null,"**","Nur bei Beteiligungen an ausländischen Personengesellschaften anzugeben."]
[null,null,null,"***","Angabe nur erforderlich, wenn nicht identisch mit der im Kopf angegebenen Steuer-/Wirtschafts-"]
[null,null,null,null,"identifikationsnummer bzw. Steuernummer."]
[null,null,"Anlage: Beteiligte; Seite 1"]
[]
[null,null,"010003 - BZSt 2 Mitteilungen nach § 138 Abs. 2 AO - 11/2020"]

{"sheet":"Beteiligte 2","index":22,"n_rows":74,"n_cols":32,"rows_kept":74,"cut":false,"hidden":true,"merged":[[71,2,71,32],[73,2,73,33],[33,24,33,27],[34,3,34,13],[35,3,35,19],[36,3,36,31],[42,3,42,21],[42,22,42,31],[33,20,33,23],[30,3,30,7],[33,3,33,6],[33,7,33,8],[33,9,33,13],[33,15,33,18],[29,3,29,8],[21,3,21,24],[21,26,21,31],[22,3,22,11],[23,3,23,31],[24,3,24,6],[24,9,24,20],[25,3,25,7],[25,9,25,31],[26,3,26,20],[27,3,27,17],[27,18,27,31],[16,2,16,16],[16,17,16,29],[16,30,16,31],[19,3,19,9],[20,3,20,16],[20,26,20,31],[2,2,2,32],[3,3,4,31],[5,3,5,16],[6,3,6,29],[13,3,13,21],[13,22,13,31]]}
[]
[]
[null,null,{"$f":"Header","v":""}]
[null,null,null,"Anlage: Beteiligte"]
[]
[null,null,null,"Name / Firma"]
[null,null,null,null,null,null,null,null,null,null,null,null,null,null,null,null,null,null,null,null,null,null,null,null,null,null,null,null,null,null,"20",{"$f":"IF(Jahr=\"\",\"\",Jahr)","v":""}]
[]
[]
[null,null,null,"Steuer-Identifikationsnummer bzw.",null,null,null,null,null,null,null,null,null,null,null,null,null,null,null,null,null,null,"Steuernummer der steuerpflichtigen Person"]
[null,null,null,"Wirtschafts-Identifikationsnummer der steuerpflichtigen Person"]
[]
[]
[]
[]
[]
[null,null,"Anlage: Beteiligte",null,null,null,null,null,null,null,null,null,null,null,null,null,null,"Zur Anlage ausl. Gesellschaft lfd. Nr. "]
[]
[]
[null,null,null,"Beteiligte (7)"]
[null,null,null,"Name, Vorname / Firmenname (4)",null,null,null,null,null,null,null,null,null,null,null,null,null,null,null,null,null,null,null,null,null,null,"Rechtsform"]
[]
[null,null,null,"Straße / Hausnummer"]
[]
[null,null,null,"Postleitzahl",null,null,null,null,null,"Wohnort / Sitz / Ort der Geschäftsleitung"]
[]
[null,null,null,"Anteil am Nominalkapital */ Kapital **   (in Prozent)"]
[]
[]
[null,null,null,"Beteiligt seit dem"]
[]
[]
[]
[null,null,null,"Beteiligung",null,null,null,null,null," geändert **  /",null,null,null,null,null," aufgegeben **    /",null,null,null,null," veräußert *  / am"]
[null,null,null,"(zutreffendes bitte ankreuzen)"]
[null,null,null,"Im Inland steuerlich erfasst beim Finanzamt"]
[]
[]
[null,null,null,"Steuer-Identifikationsnummer bzw.",null,null,null,null,null,null,null,null,null,null,null,null,null,null,null,null,null,null,"Steuernummer ***"]
[null,null,null,"Wirtschafts-Identifikationsnummer ***"]
[]
[]
[]
[]
[]
[]
[]
[]
[]
[]
[]
[]
[]
[]
[]
[]
[]
[]
[]
[]
[]
[]
[]
[]
[]
[]
[]
[null,null,null,"*","Nur bei ausländischen Kapitalgesellschaften anzugeben."]
[null,null,null,"**","Nur bei Beteiligungen an ausländischen Personengesellschaften anzugeben."]
[null,null,null,"***","Angabe nur erforderlich, wenn nicht identisch mit der im Kopf angegebenen Steuer-/Wirtschafts-"]
[null,null,null,null,"identifikationsnummer bzw. Steuernummer."]
[null,null,"Anlage: Beteiligte; Seite 1"]
[]
[null,null,"010003 - BZSt 2 Mitteilungen nach § 138 Abs. 2 AO - 11/2020"]

{"sheet":"Beteiligte 3","index":23,"n_rows":74,"n_cols":32,"rows_kept":74,"cut":false,"hidden":true,"merged":[[71,2,71,32],[73,2,73,33],[33,24,33,27],[34,3,34,13],[35,3,35,19],[36,3,36,31],[42,3,42,21],[42,22,42,31],[33,20,33,23],[30,3,30,7],[33,3,33,6],[33,7,33,8],[33,9,33,13],[33,15,33,18],[29,3,29,8],[21,3,21,24],[21,26,21,31],[22,3,22,11],[23,3,23,31],[24,3,24,6],[24,9,24,20],[25,3,25,7],[25,9,25,31],[26,3,26,20],[27,3,27,17],[27,18,27,31],[16,2,16,16],[16,17,16,29],[16,30,16,31],[19,3,19,9],[20,3,20,16],[20,26,20,31],[2,2,2,32],[3,3,4,31],[5,3,5,16],[6,3,6,29],[13,3,13,21],[13,22,13,31]]}
[]
[]
[null,null,{"$f":"Header","v":""}]
[null,null,null,"Anlage: Beteiligte"]
[]
[null,null,null,"Name / Firma"]
[null,null,null,null,null,null,null,null,null,null,null,null,null,null,null,null,null,null,null,null,null,null,null,null,null,null,null,null,null,null,"20",{"$f":"IF(Jahr=\"\",\"\",Jahr)","v":""}]
[]
[]
[null,null,null,"Steuer-Identifikationsnummer bzw.",null,null,null,null,null,null,null,null,null,null,null,null,null,null,null,null,null,null,"Steuernummer der steuerpflichtigen Person"]
[null,null,null,"Wirtschafts-Identifikationsnummer der steuerpflichtigen Person"]
[]
[]
[]
[]
[]
[null,null,"Anlage: Beteiligte",null,null,null,null,null,null,null,null,null,null,null,null,null,null,"Zur Anlage ausl. Gesellschaft lfd. Nr. "]
[]
[]
[null,null,null,"Beteiligte (7)"]
[null,null,null,"Name, Vorname / Firmenname (4)",null,null,null,null,null,null,null,null,null,null,null,null,null,null,null,null,null,null,null,null,null,null,"Rechtsform"]
[]
[null,null,null,"Straße / Hausnummer"]
[]
[null,null,null,"Postleitzahl",null,null,null,null,null,"Wohnort / Sitz / Ort der Geschäftsleitung"]
[]
[null,null,null,"Anteil am Nominalkapital */ Kapital **   (in Prozent)"]
[]
[]
[null,null,null,"Beteiligt seit dem"]
[]
[]
[]
[null,null,null,"Beteiligung",null,null,null,null,null," geändert **  /",null,null,null,null,null," aufgegeben **    /",null,null,null,null," veräußert *  / am"]
[null,null,null,"(zutreffendes bitte ankreuzen)"]
[null,null,null,"Im Inland steuerlich erfasst beim Finanzamt"]
[]
[]
[null,null,null,"Steuer-Identifikationsnummer bzw.",null,null,null,null,null,null,null,null,null,null,null,null,null,null,null,null,null,null,"Steuernummer ***"]
[null,null,null,"Wirtschafts-Identifikationsnummer ***"]
[]
[]
[]
[]
[]
[]
[]
[]
[]
[]
[]
[]
[]
[]
[]
[]
[]
[]
[]
[]
[]
[]
[]
[]
[]
[]
[]
[null,null,null,"*","Nur bei ausländischen Kapitalgesellschaften anzugeben."]
[null,null,null,"**","Nur bei Beteiligungen an ausländischen Personengesellschaften anzugeben."]
[null,null,null,"***","Angabe nur erforderlich, wenn nicht identisch mit der im Kopf angegebenen Steuer-/Wirtschafts-"]
[null,null,null,null,"identifikationsnummer bzw. Steuernummer."]
[null,null,"Anlage: Beteiligte; Seite 1"]
[]
[null,null,"010003 - BZSt 2 Mitteilungen nach § 138 Abs. 2 AO - 11/2020"]

{"sheet":"Beteiligte 4","index":24,"n_rows":74,"n_cols":32,"rows_kept":74,"cut":false,"hidden":true,"merged":[[71,2,71,32],[73,2,73,33],[33,24,33,27],[34,3,34,13],[35,3,35,19],[36,3,36,31],[42,3,42,21],[42,22,42,31],[33,20,33,23],[30,3,30,7],[33,3,33,6],[33,7,33,8],[33,9,33,13],[33,15,33,18],[29,3,29,8],[21,3,21,24],[21,26,21,31],[22,3,22,11],[23,3,23,31],[24,3,24,6],[24,9,24,20],[25,3,25,7],[25,9,25,31],[26,3,26,20],[27,3,27,17],[27,18,27,31],[16,2,16,16],[16,17,16,29],[16,30,16,31],[19,3,19,9],[20,3,20,16],[20,26,20,31],[2,2,2,32],[3,3,4,31],[5,3,5,16],[6,3,6,29],[13,3,13,21],[13,22,13,31]]}
[]
[]
[null,null,{"$f":"Header","v":""}]
[null,null,null,"Anlage: Beteiligte"]
[]
[null,null,null,"Name / Firma"]
[null,null,null,null,null,null,null,null,null,null,null,null,null,null,null,null,null,null,null,null,null,null,null,null,null,null,null,null,null,null,"20",{"$f":"IF(Jahr=\"\",\"\",Jahr)","v":""}]
[]
[]
[null,null,null,"Steuer-Identifikationsnummer bzw.",null,null,null,null,null,null,null,null,null,null,null,null,null,null,null,null,null,null,"Steuernummer der steuerpflichtigen Person"]
[null,null,null,"Wirtschafts-Identifikationsnummer der steuerpflichtigen Person"]
[]
[]
[]
[]
[]
[null,null,"Anlage: Beteiligte",null,null,null,null,null,null,null,null,null,null,null,null,null,null,"Zur Anlage ausl. Gesellschaft lfd. Nr. "]
[]
[]
[null,null,null,"Beteiligte (7)"]
[null,null,null,"Name, Vorname / Firmenname (4)",null,null,null,null,null,null,null,null,null,null,null,null,null,null,null,null,null,null,null,null,null,null,"Rechtsform"]
[]
[null,null,null,"Straße / Hausnummer"]
[]
[null,null,null,"Postleitzahl",null,null,null,null,null,"Wohnort / Sitz / Ort der Geschäftsleitung"]
[]
[null,null,null,"Anteil am Nominalkapital */ Kapital **   (in Prozent)"]
[]
[]
[null,null,null,"Beteiligt seit dem"]
[]
[]
[]
[null,null,null,"Beteiligung",null,null,null,null,null," geändert **  /",null,null,null,null,null," aufgegeben **    /",null,null,null,null," veräußert *  / am"]
[null,null,null,"(zutreffendes bitte ankreuzen)"]
[null,null,null,"Im Inland steuerlich erfasst beim Finanzamt"]
[]
[]
[null,null,null,"Steuer-Identifikationsnummer bzw.",null,null,null,null,null,null,null,null,null,null,null,null,null,null,null,null,null,null,"Steuernummer ***"]
[null,null,null,"Wirtschafts-Identifikationsnummer ***"]
[]
[]
[]
[]
[]
[]
[]
[]
[]
[]
[]
[]
[]
[]
[]
[]
[]
[]
[]
[]
[]
[]
[]
[]
[]
[]
[]
[null,null,null,"*","Nur bei ausländischen Kapitalgesellschaften anzugeben."]
[null,null,null,"**","Nur bei Beteiligungen an ausländischen Personengesellschaften anzugeben."]
[null,null,null,"***","Angabe nur erforderlich, wenn nicht identisch mit der im Kopf angegebenen Steuer-/Wirtschafts-"]
[null,null,null,null,"identifikationsnummer bzw. Steuernummer."]
[null,null,"Anlage: Beteiligte; Seite 1"]
[]
[null,null,"010003 - BZSt 2 Mitteilungen nach § 138 Abs. 2 AO - 11/2020"]

{"sheet":"Beteiligte 5","index":25,"n_rows":74,"n_cols":32,"rows_kept":74,"cut":false,"hidden":true,"merged":[[71,2,71,32],[73,2,73,33],[33,24,33,27],[34,3,34,13],[35,3,35,19],[36,3,36,31],[42,3,42,21],[42,22,42,31],[33,20,33,23],[30,3,30,7],[33,3,33,6],[33,7,33,8],[33,9,33,13],[33,15,33,18],[29,3,29,8],[21,3,21,24],[21,26,21,31],[22,3,22,11],[23,3,23,31],[24,3,24,6],[24,9,24,20],[25,3,25,7],[25,9,25,31],[26,3,26,20],[27,3,27,17],[27,18,27,31],[16,2,16,16],[16,17,16,29],[16,30,16,31],[19,3,19,9],[20,3,20,16],[20,26,20,31],[2,2,2,32],[3,3,4,31],[5,3,5,16],[6,3,6,29],[13,3,13,21],[13,22,13,31]]}
[]
[]
[null,null,{"$f":"Header","v":""}]
[null,null,null,"Anlage: Beteiligte"]
[]
[null,null,null,"Name / Firma"]
[null,null,null,null,null,null,null,null,null,null,null,null,null,null,null,null,null,null,null,null,null,null,null,null,null,null,null,null,null,null,"20",{"$f":"IF(Jahr=\"\",\"\",Jahr)","v":""}]
[]
[]
[null,null,null,"Steuer-Identifikationsnummer bzw.",null,null,null,null,null,null,null,null,null,null,null,null,null,null,null,null,null,null,"Steuernummer der steuerpflichtigen Person"]
[null,null,null,"Wirtschafts-Identifikationsnummer der steuerpflichtigen Person"]
[]
[]
[]
[]
[]
[null,null,"Anlage: Beteiligte",null,null,null,null,null,null,null,null,null,null,null,null,null,null,"Zur Anlage ausl. Gesellschaft lfd. Nr. "]
[]
[]
[null,null,null,"Beteiligte (7)"]
[null,null,null,"Name, Vorname / Firmenname (4)",null,null,null,null,null,null,null,null,null,null,null,null,null,null,null,null,null,null,null,null,null,null,"Rechtsform"]
[]
[null,null,null,"Straße / Hausnummer"]
[]
[null,null,null,"Postleitzahl",null,null,null,null,null,"Wohnort / Sitz / Ort der Geschäftsleitung"]
[]
[null,null,null,"Anteil am Nominalkapital */ Kapital **   (in Prozent)"]
[]
[]
[null,null,null,"Beteiligt seit dem"]
[]
[]
[]
[null,null,null,"Beteiligung",null,null,null,null,null," geändert **  /",null,null,null,null,null," aufgegeben **    /",null,null,null,null," veräußert *  / am"]
[null,null,null,"(zutreffendes bitte ankreuzen)"]
[null,null,null,"Im Inland steuerlich erfasst beim Finanzamt"]
[]
[]
[null,null,null,"Steuer-Identifikationsnummer bzw.",null,null,null,null,null,null,null,null,null,null,null,null,null,null,null,null,null,null,"Steuernummer ***"]
[null,null,null,"Wirtschafts-Identifikationsnummer ***"]
[]
[]
[]
[]
[]
[]
[]
[]
[]
[]
[]
[]
[]
[]
[]
[]
[]
[]
[]
[]
[]
[]
[]
[]
[]
[]
[]
[null,null,null,"*","Nur bei ausländischen Kapitalgesellschaften anzugeben."]
[null,null,null,"**","Nur bei Beteiligungen an ausländischen Personengesellschaften anzugeben."]
[null,null,null,"***","Angabe nur erforderlich, wenn nicht identisch mit der im Kopf angegebenen Steuer-/Wirtschafts-"]
[null,null,null,null,"identifikationsnummer bzw. Steuernummer."]
[null,null,"Anlage: Beteiligte; Seite 1"]
[]
[null,null,"010003 - BZSt 2 Mitteilungen nach § 138 Abs. 2 AO - 11/2020"]

{"sheet":"Beteiligte 6","index":26,"n_rows":74,"n_cols":32,"rows_kept":74,"cut":false,"hidden":true,"merged":[[71,2,71,32],[73,2,73,33],[33,24,33,27],[34,3,34,13],[35,3,35,19],[36,3,36,31],[42,3,42,21],[42,22,42,31],[33,20,33,23],[30,3,30,7],[33,3,33,6],[33,7,33,8],[33,9,33,13],[33,15,33,18],[29,3,29,8],[21,3,21,24],[21,26,21,31],[22,3,22,11],[23,3,23,31],[24,3,24,6],[24,9,24,20],[25,3,25,7],[25,9,25,31],[26,3,26,20],[27,3,27,17],[27,18,27,31],[16,2,16,16],[16,17,16,29],[16,30,16,31],[19,3,19,9],[20,3,20,16],[20,26,20,31],[2,2,2,32],[3,3,4,31],[5,3,5,16],[6,3,6,29],[13,3,13,21],[13,22,13,31]]}
[]
[]
[null,null,{"$f":"Header","v":""}]
[null,null,null,"Anlage: Beteiligte"]
[]
[null,null,null,"Name / Firma"]
[null,null,null,null,null,null,null,null,null,null,null,null,null,null,null,null,null,null,null,null,null,null,null,null,null,null,null,null,null,null,"20",{"$f":"IF(Jahr=\"\",\"\",Jahr)","v":""}]
[]
[]
[null,null,null,"Steuer-Identifikationsnummer bzw.",null,null,null,null,null,null,null,null,null,null,null,null,null,null,null,null,null,null,"Steuernummer der steuerpflichtigen Person"]
[null,null,null,"Wirtschafts-Identifikationsnummer der steuerpflichtigen Person"]
[]
[]
[]
[]
[]
[null,null,"Anlage: Beteiligte",null,null,null,null,null,null,null,null,null,null,null,null,null,null,"Zur Anlage ausl. Gesellschaft lfd. Nr. "]
[]
[]
[null,null,null,"Beteiligte (7)"]
[null,null,null,"Name, Vorname / Firmenname (4)",null,null,null,null,null,null,null,null,null,null,null,null,null,null,null,null,null,null,null,null,null,null,"Rechtsform"]
[]
[null,null,null,"Straße / Hausnummer"]
[]
[null,null,null,"Postleitzahl",null,null,null,null,null,"Wohnort / Sitz / Ort der Geschäftsleitung"]
[]
[null,null,null,"Anteil am Nominalkapital */ Kapital **   (in Prozent)"]
[]
[]
[null,null,null,"Beteiligt seit dem"]
[]
[]
[]
[null,null,null,"Beteiligung",null,null,null,null,null," geändert **  /",null,null,null,null,null," aufgegeben **    /",null,null,null,null," veräußert *  / am"]
[null,null,null,"(zutreffendes bitte ankreuzen)"]
[null,null,null,"Im Inland steuerlich erfasst beim Finanzamt"]
[]
[]
[null,null,null,"Steuer-Identifikationsnummer bzw.",null,null,null,null,null,null,null,null,null,null,null,null,null,null,null,null,null,null,"Steuernummer ***"]
[null,null,null,"Wirtschafts-Identifikationsnummer ***"]
[]
[]
[]
[]
[]
[]
[]
[]
[]
[]
[]
[]
[]
[]
[]
[]
[]
[]
[]
[]
[]
[]
[]
[]
[]
[]
[]
[null,null,null,"*","Nur bei ausländischen Kapitalgesellschaften anzugeben."]
[null,null,null,"**","Nur bei Beteiligungen an ausländischen Personengesellschaften anzugeben."]
[null,null,null,"***","Angabe nur erforderlich, wenn nicht identisch mit der im Kopf angegebenen Steuer-/Wirtschafts-"]
[null,null,null,null,"identifikationsnummer bzw. Steuernummer."]
[null,null,"Anlage: Beteiligte; Seite 1"]
[]
[null,null,"010003 - BZSt 2 Mitteilungen nach § 138 Abs. 2 AO - 11/2020"]

{"sheet":"Beteiligte 7","index":27,"n_rows":74,"n_cols":32,"rows_kept":74,"cut":false,"hidden":true,"merged":[[71,2,71,32],[73,2,73,33],[33,24,33,27],[34,3,34,13],[35,3,35,19],[36,3,36,31],[42,3,42,21],[42,22,42,31],[33,20,33,23],[30,3,30,7],[33,3,33,6],[33,7,33,8],[33,9,33,13],[33,15,33,18],[29,3,29,8],[21,3,21,24],[21,26,21,31],[22,3,22,11],[23,3,23,31],[24,3,24,6],[24,9,24,20],[25,3,25,7],[25,9,25,31],[26,3,26,20],[27,3,27,17],[27,18,27,31],[16,2,16,16],[16,17,16,29],[16,30,16,31],[19,3,19,9],[20,3,20,16],[20,26,20,31],[2,2,2,32],[3,3,4,31],[5,3,5,16],[6,3,6,29],[13,3,13,21],[13,22,13,31]]}
[]
[]
[null,null,{"$f":"Header","v":""}]
[null,null,null,"Anlage: Beteiligte"]
[]
[null,null,null,"Name / Firma"]
[null,null,null,null,null,null,null,null,null,null,null,null,null,null,null,null,null,null,null,null,null,null,null,null,null,null,null,null,null,null,"20",{"$f":"IF(Jahr=\"\",\"\",Jahr)","v":""}]
[]
[]
[null,null,null,"Steuer-Identifikationsnummer bzw.",null,null,null,null,null,null,null,null,null,null,null,null,null,null,null,null,null,null,"Steuernummer der steuerpflichtigen Person"]
[null,null,null,"Wirtschafts-Identifikationsnummer der steuerpflichtigen Person"]
[]
[]
[]
[]
[]
[null,null,"Anlage: Beteiligte",null,null,null,null,null,null,null,null,null,null,null,null,null,null,"Zur Anlage ausl. Gesellschaft lfd. Nr. "]
[]
[]
[null,null,null,"Beteiligte (7)"]
[null,null,null,"Name, Vorname / Firmenname (4)",null,null,null,null,null,null,null,null,null,null,null,null,null,null,null,null,null,null,null,null,null,null,"Rechtsform"]
[]
[null,null,null,"Straße / Hausnummer"]
[]
[null,null,null,"Postleitzahl",null,null,null,null,null,"Wohnort / Sitz / Ort der Geschäftsleitung"]
[]
[null,null,null,"Anteil am Nominalkapital */ Kapital **   (in Prozent)"]
[]
[]
[null,null,null,"Beteiligt seit dem"]
[]
[]
[]
[null,null,null,"Beteiligung",null,null,null,null,null," geändert **  /",null,null,null,null,null," aufgegeben **    /",null,null,null,null," veräußert *  / am"]
[null,null,null,"(zutreffendes bitte ankreuzen)"]
[null,null,null,"Im Inland steuerlich erfasst beim Finanzamt"]
[]
[]
[null,null,null,"Steuer-Identifikationsnummer bzw.",null,null,null,null,null,null,null,null,null,null,null,null,null,null,null,null,null,null,"Steuernummer ***"]
[null,null,null,"Wirtschafts-Identifikationsnummer ***"]
[]
[]
[]
[]
[]
[]
[]
[]
[]
[]
[]
[]
[]
[]
[]
[]
[]
[]
[]
[]
[]
[]
[]
[]
[]
[]
[]
[null,null,null,"*","Nur bei ausländischen Kapitalgesellschaften anzugeben."]
[null,null,null,"**","Nur bei Beteiligungen an ausländischen Personengesellschaften anzugeben."]
[null,null,null,"***","Angabe nur erforderlich, wenn nicht identisch mit der im Kopf angegebenen Steuer-/Wirtschafts-"]
[null,null,null,null,"identifikationsnummer bzw. Steuernummer."]
[null,null,"Anlage: Beteiligte; Seite 1"]
[]
[null,null,"010003 - BZSt 2 Mitteilungen nach § 138 Abs. 2 AO - 11/2020"]

{"sheet":"Beteiligte 8","index":28,"n_rows":74,"n_cols":32,"rows_kept":74,"cut":false,"hidden":true,"merged":[[71,2,71,32],[73,2,73,33],[33,24,33,27],[34,3,34,13],[35,3,35,19],[36,3,36,31],[42,3,42,21],[42,22,42,31],[33,20,33,23],[30,3,30,7],[33,3,33,6],[33,7,33,8],[33,9,33,13],[33,15,33,18],[29,3,29,8],[21,3,21,24],[21,26,21,31],[22,3,22,11],[23,3,23,31],[24,3,24,6],[24,9,24,20],[25,3,25,7],[25,9,25,31],[26,3,26,20],[27,3,27,17],[27,18,27,31],[16,2,16,16],[16,17,16,29],[16,30,16,31],[19,3,19,9],[20,3,20,16],[20,26,20,31],[2,2,2,32],[3,3,4,31],[5,3,5,16],[6,3,6,29],[13,3,13,21],[13,22,13,31]]}
[]
[]
[null,null,{"$f":"Header","v":""}]
[null,null,null,"Anlage: Beteiligte"]
[]
[null,null,null,"Name / Firma"]
[null,null,null,null,null,null,null,null,null,null,null,null,null,null,null,null,null,null,null,null,null,null,null,null,null,null,null,null,null,null,"20",{"$f":"IF(Jahr=\"\",\"\",Jahr)","v":""}]
[]
[]
[null,null,null,"Steuer-Identifikationsnummer bzw.",null,null,null,null,null,null,null,null,null,null,null,null,null,null,null,null,null,null,"Steuernummer der steuerpflichtigen Person"]
[null,null,null,"Wirtschafts-Identifikationsnummer der steuerpflichtigen Person"]
[]
[]
[]
[]
[]
[null,null,"Anlage: Beteiligte",null,null,null,null,null,null,null,null,null,null,null,null,null,null,"Zur Anlage ausl. Gesellschaft lfd. Nr. "]
[]
[]
[null,null,null,"Beteiligte (7)"]
[null,null,null,"Name, Vorname / Firmenname (4)",null,null,null,null,null,null,null,null,null,null,null,null,null,null,null,null,null,null,null,null,null,null,"Rechtsform"]
[]
[null,null,null,"Straße / Hausnummer"]
[]
[null,null,null,"Postleitzahl",null,null,null,null,null,"Wohnort / Sitz / Ort der Geschäftsleitung"]
[]
[null,null,null,"Anteil am Nominalkapital */ Kapital **   (in Prozent)"]
[]
[]
[null,null,null,"Beteiligt seit dem"]
[]
[]
[]
[null,null,null,"Beteiligung",null,null,null,null,null," geändert **  /",null,null,null,null,null," aufgegeben **    /",null,null,null,null," veräußert *  / am"]
[null,null,null,"(zutreffendes bitte ankreuzen)"]
[null,null,null,"Im Inland steuerlich erfasst beim Finanzamt"]
[]
[]
[null,null,null,"Steuer-Identifikationsnummer bzw.",null,null,null,null,null,null,null,null,null,null,null,null,null,null,null,null,null,null,"Steuernummer ***"]
[null,null,null,"Wirtschafts-Identifikationsnummer ***"]
[]
[]
[]
[]
[]
[]
[]
[]
[]
[]
[]
[]
[]
[]
[]
[]
[]
[]
[]
[]
[]
[]
[]
[]
[]
[]
[]
[null,null,null,"*","Nur bei ausländischen Kapitalgesellschaften anzugeben."]
[null,null,null,"**","Nur bei Beteiligungen an ausländischen Personengesellschaften anzugeben."]
[null,null,null,"***","Angabe nur erforderlich, wenn nicht identisch mit der im Kopf angegebenen Steuer-/Wirtschafts-"]
[null,null,null,null,"identifikationsnummer bzw. Steuernummer."]
[null,null,"Anlage: Beteiligte; Seite 1"]
[]
[null,null,"010003 - BZSt 2 Mitteilungen nach § 138 Abs. 2 AO - 11/2020"]

{"sheet":"Beteiligte 9","index":29,"n_rows":74,"n_cols":32,"rows_kept":74,"cut":false,"hidden":true,"merged":[[71,2,71,32],[73,2,73,33],[33,24,33,27],[34,3,34,13],[35,3,35,19],[36,3,36,31],[42,3,42,21],[42,22,42,31],[33,20,33,23],[30,3,30,7],[33,3,33,6],[33,7,33,8],[33,9,33,13],[33,15,33,18],[29,3,29,8],[21,3,21,24],[21,26,21,31],[22,3,22,11],[23,3,23,31],[24,3,24,6],[24,9,24,20],[25,3,25,7],[25,9,25,31],[26,3,26,20],[27,3,27,17],[27,18,27,31],[16,2,16,16],[16,17,16,29],[16,30,16,31],[19,3,19,9],[20,3,20,16],[20,26,20,31],[2,2,2,32],[3,3,4,31],[5,3,5,16],[6,3,6,29],[13,3,13,21],[13,22,13,31]]}
[]
[]
[null,null,{"$f":"Header","v":""}]
[null,null,null,"Anlage: Beteiligte"]
[]
[null,null,null,"Name / Firma"]
[null,null,null,null,null,null,null,null,null,null,null,null,null,null,null,null,null,null,null,null,null,null,null,null,null,null,null,null,null,null,"20",{"$f":"IF(Jahr=\"\",\"\",Jahr)","v":""}]
[]
[]
[null,null,null,"Steuer-Identifikationsnummer bzw.",null,null,null,null,null,null,null,null,null,null,null,null,null,null,null,null,null,null,"Steuernummer der steuerpflichtigen Person"]
[null,null,null,"Wirtschafts-Identifikationsnummer der steuerpflichtigen Person"]
[]
[]
[]
[]
[]
[null,null,"Anlage: Beteiligte",null,null,null,null,null,null,null,null,null,null,null,null,null,null,"Zur Anlage ausl. Gesellschaft lfd. Nr. "]
[]
[]
[null,null,null,"Beteiligte (7)"]
[null,null,null,"Name, Vorname / Firmenname (4)",null,null,null,null,null,null,null,null,null,null,null,null,null,null,null,null,null,null,null,null,null,null,"Rechtsform"]
[]
[null,null,null,"Straße / Hausnummer"]
[]
[null,null,null,"Postleitzahl",null,null,null,null,null,"Wohnort / Sitz / Ort der Geschäftsleitung"]
[]
[null,null,null,"Anteil am Nominalkapital */ Kapital **   (in Prozent)"]
[]
[]
[null,null,null,"Beteiligt seit dem"]
[]
[]
[]
[null,null,null,"Beteiligung",null,null,null,null,null," geändert **  /",null,null,null,null,null," aufgegeben **    /",null,null,null,null," veräußert *  / am"]
[null,null,null,"(zutreffendes bitte ankreuzen)"]
[null,null,null,"Im Inland steuerlich erfasst beim Finanzamt"]
[]
[]
[null,null,null,"Steuer-Identifikationsnummer bzw.",null,null,null,null,null,null,null,null,null,null,null,null,null,null,null,null,null,null,"Steuernummer ***"]
[null,null,null,"Wirtschafts-Identifikationsnummer ***"]
[]
[]
[]
[]
[]
[]
[]
[]
[]
[]
[]
[]
[]
[]
[]
[]
[]
[]
[]
[]
[]
[]
[]
[]
[]
[]
[]
[null,null,null,"*","Nur bei ausländischen Kapitalgesellschaften anzugeben."]
[null,null,null,"**","Nur bei Beteiligungen an ausländischen Personengesellschaften anzugeben."]
[null,null,null,"***","Angabe nur erforderlich, wenn nicht identisch mit der im Kopf angegebenen Steuer-/Wirtschafts-"]
[null,null,null,null,"identifikationsnummer bzw. Steuernummer."]
[null,null,"Anlage: Beteiligte; Seite 1"]
[]
[null,null,"010003 - BZSt 2 Mitteilungen nach § 138 Abs. 2 AO - 11/2020"]

{"sheet":"Beteiligte 10","index":30,"n_rows":74,"n_cols":32,"rows_kept":74,"cut":false,"hidden":true,"merged":[[71,2,71,32],[73,2,73,33],[33,24,33,27],[34,3,34,13],[35,3,35,19],[36,3,36,31],[42,3,42,21],[42,22,42,31],[33,20,33,23],[30,3,30,7],[33,3,33,6],[33,7,33,8],[33,9,33,13],[33,15,33,18],[29,3,29,8],[21,3,21,24],[21,26,21,31],[22,3,22,11],[23,3,23,31],[24,3,24,6],[24,9,24,20],[25,3,25,7],[25,9,25,31],[26,3,26,20],[27,3,27,17],[27,18,27,31],[16,2,16,16],[16,17,16,29],[16,30,16,31],[19,3,19,9],[20,3,20,16],[20,26,20,31],[2,2,2,32],[3,3,4,31],[5,3,5,16],[6,3,6,29],[13,3,13,21],[13,22,13,31]]}
[]
[]
[null,null,{"$f":"Header","v":""}]
[null,null,null,"Anlage: Beteiligte"]
[]
[null,null,null,"Name / Firma"]
[null,null,null,null,null,null,null,null,null,null,null,null,null,null,null,null,null,null,null,null,null,null,null,null,null,null,null,null,null,null,"20",{"$f":"IF(Jahr=\"\",\"\",Jahr)","v":""}]
[]
[]
[null,null,null,"Steuer-Identifikationsnummer bzw.",null,null,null,null,null,null,null,null,null,null,null,null,null,null,null,null,null,null,"Steuernummer der steuerpflichtigen Person"]
[null,null,null,"Wirtschafts-Identifikationsnummer der steuerpflichtigen Person"]
[]
[]
[]
[]
[]
[null,null,"Anlage: Beteiligte",null,null,null,null,null,null,null,null,null,null,null,null,null,null,"Zur Anlage ausl. Gesellschaft lfd. Nr. "]
[]
[]
[null,null,null,"Beteiligte (7)"]
[null,null,null,"Name, Vorname / Firmenname (4)",null,null,null,null,null,null,null,null,null,null,null,null,null,null,null,null,null,null,null,null,null,null,"Rechtsform"]
[]
[null,null,null,"Straße / Hausnummer"]
[]
[null,null,null,"Postleitzahl",null,null,null,null,null,"Wohnort / Sitz / Ort der Geschäftsleitung"]
[]
[null,null,null,"Anteil am Nominalkapital */ Kapital **   (in Prozent)"]
[]
[]
[null,null,null,"Beteiligt seit dem"]
[]
[]
[]
[null,null,null,"Beteiligung",null,null,null,null,null," geändert **  /",null,null,null,null,null," aufgegeben **    /",null,null,null,null," veräußert *  / am"]
[null,null,null,"(zutreffendes bitte ankreuzen)"]
[null,null,null,"Im Inland steuerlich erfasst beim Finanzamt"]
[]
[]
[null,null,null,"Steuer-Identifikationsnummer bzw.",null,null,null,null,null,null,null,null,null,null,null,null,null,null,null,null,null,null,"Steuernummer ***"]
[null,null,null,"Wirtschafts-Identifikationsnummer ***"]
[]
[]
[]
[]
[]
[]
[]
[]
[]
[]
[]
[]
[]
[]
[]
[]
[]
[]
[]
[]
[]
[]
[]
[]
[]
[]
[]
[null,null,null,"*","Nur bei ausländischen Kapitalgesellschaften anzugeben."]
[null,null,null,"**","Nur bei Beteiligungen an ausländischen Personengesellschaften anzugeben."]
[null,null,null,"***","Angabe nur erforderlich, wenn nicht identisch mit der im Kopf angegebenen Steuer-/Wirtschafts-"]
[null,null,null,null,"identifikationsnummer bzw. Steuernummer."]
[null,null,"Anlage: Beteiligte; Seite 1"]
[]
[null,null,"010003 - BZSt 2 Mitteilungen nach § 138 Abs. 2 AO - 11/2020"]

{"sheet":"Beteiligte 11","index":31,"n_rows":74,"n_cols":32,"rows_kept":74,"cut":false,"hidden":true,"merged":[[71,2,71,32],[73,2,73,33],[33,24,33,27],[34,3,34,13],[35,3,35,19],[36,3,36,31],[42,3,42,21],[42,22,42,31],[33,20,33,23],[30,3,30,7],[33,3,33,6],[33,7,33,8],[33,9,33,13],[33,15,33,18],[29,3,29,8],[21,3,21,24],[21,26,21,31],[22,3,22,11],[23,3,23,31],[24,3,24,6],[24,9,24,20],[25,3,25,7],[25,9,25,31],[26,3,26,20],[27,3,27,17],[27,18,27,31],[16,2,16,16],[16,17,16,29],[16,30,16,31],[19,3,19,9],[20,3,20,16],[20,26,20,31],[2,2,2,32],[3,3,4,31],[5,3,5,16],[6,3,6,29],[13,3,13,21],[13,22,13,31]]}
[]
[]
[null,null,{"$f":"Header","v":""}]
[null,null,null,"Anlage: Beteiligte"]
[]
[null,null,null,"Name / Firma"]
[null,null,null,null,null,null,null,null,null,null,null,null,null,null,null,null,null,null,null,null,null,null,null,null,null,null,null,null,null,null,"20",{"$f":"IF(Jahr=\"\",\"\",Jahr)","v":""}]
[]
[]
[null,null,null,"Steuer-Identifikationsnummer bzw.",null,null,null,null,null,null,null,null,null,null,null,null,null,null,null,null,null,null,"Steuernummer der steuerpflichtigen Person"]
[null,null,null,"Wirtschafts-Identifikationsnummer der steuerpflichtigen Person"]
[]
[]
[]
[]
[]
[null,null,"Anlage: Beteiligte",null,null,null,null,null,null,null,null,null,null,null,null,null,null,"Zur Anlage ausl. Gesellschaft lfd. Nr. "]
[]
[]
[null,null,null,"Beteiligte (7)"]
[null,null,null,"Name, Vorname / Firmenname (4)",null,null,null,null,null,null,null,null,null,null,null,null,null,null,null,null,null,null,null,null,null,null,"Rechtsform"]
[]
[null,null,null,"Straße / Hausnummer"]
[]
[null,null,null,"Postleitzahl",null,null,null,null,null,"Wohnort / Sitz / Ort der Geschäftsleitung"]
[]
[null,null,null,"Anteil am Nominalkapital */ Kapital **   (in Prozent)"]
[]
[]
[null,null,null,"Beteiligt seit dem"]
[]
[]
[]
[null,null,null,"Beteiligung",null,null,null,null,null," geändert **  /",null,null,null,null,null," aufgegeben **    /",null,null,null,null," veräußert *  / am"]
[null,null,null,"(zutreffendes bitte ankreuzen)"]
[null,null,null,"Im Inland steuerlich erfasst beim Finanzamt"]
[]
[]
[null,null,null,"Steuer-Identifikationsnummer bzw.",null,null,null,null,null,null,null,null,null,null,null,null,null,null,null,null,null,null,"Steuernummer ***"]
[null,null,null,"Wirtschafts-Identifikationsnummer ***"]
[]
[]
[]
[]
[]
[]
[]
[]
[]
[]
[]
[]
[]
[]
[]
[]
[]
[]
[]
[]
[]
[]
[]
[]
[]
[]
[]
[null,null,null,"*","Nur bei ausländischen Kapitalgesellschaften anzugeben."]
[null,null,null,"**","Nur bei Beteiligungen an ausländischen Personengesellschaften anzugeben."]
[null,null,null,"***","Angabe nur erforderlich, wenn nicht identisch mit der im Kopf angegebenen Steuer-/Wirtschafts-"]
[null,null,null,null,"identifikationsnummer bzw. Steuernummer."]
[null,null,"Anlage: Beteiligte; Seite 1"]
[]
[null,null,"010003 - BZSt 2 Mitteilungen nach § 138 Abs. 2 AO - 11/2020"]

{"sheet":"Beteiligte 12","index":32,"n_rows":74,"n_cols":32,"rows_kept":74,"cut":false,"hidden":true,"merged":[[71,2,71,32],[73,2,73,33],[33,24,33,27],[34,3,34,13],[35,3,35,19],[36,3,36,31],[42,3,42,21],[42,22,42,31],[33,20,33,23],[30,3,30,7],[33,3,33,6],[33,7,33,8],[33,9,33,13],[33,15,33,18],[29,3,29,8],[21,3,21,24],[21,26,21,31],[22,3,22,11],[23,3,23,31],[24,3,24,6],[24,9,24,20],[25,3,25,7],[25,9,25,31],[26,3,26,20],[27,3,27,17],[27,18,27,31],[16,2,16,16],[16,17,16,29],[16,30,16,31],[19,3,19,9],[20,3,20,16],[20,26,20,31],[2,2,2,32],[3,3,4,31],[5,3,5,16],[6,3,6,29],[13,3,13,21],[13,22,13,31]]}
[]
[]
[null,null,{"$f":"Header","v":""}]
[null,null,null,"Anlage: Beteiligte"]
[]
[null,null,null,"Name / Firma"]
[null,null,null,null,null,null,null,null,null,null,null,null,null,null,null,null,null,null,null,null,null,null,null,null,null,null,null,null,null,null,"20",{"$f":"IF(Jahr=\"\",\"\",Jahr)","v":""}]
[]
[]
[null,null,null,"Steuer-Identifikationsnummer bzw.",null,null,null,null,null,null,null,null,null,null,null,null,null,null,null,null,null,null,"Steuernummer der steuerpflichtigen Person"]
[null,null,null,"Wirtschafts-Identifikationsnummer der steuerpflichtigen Person"]
[]
[]
[]
[]
[]
[null,null,"Anlage: Beteiligte",null,null,null,null,null,null,null,null,null,null,null,null,null,null,"Zur Anlage ausl. Gesellschaft lfd. Nr. "]
[]
[]
[null,null,null,"Beteiligte (7)"]
[null,null,null,"Name, Vorname / Firmenname (4)",null,null,null,null,null,null,null,null,null,null,null,null,null,null,null,null,null,null,null,null,null,null,"Rechtsform"]
[]
[null,null,null,"Straße / Hausnummer"]
[]
[null,null,null,"Postleitzahl",null,null,null,null,null,"Wohnort / Sitz / Ort der Geschäftsleitung"]
[]
[null,null,null,"Anteil am Nominalkapital */ Kapital **   (in Prozent)"]
[]
[]
[null,null,null,"Beteiligt seit dem"]
[]
[]
[]
[null,null,null,"Beteiligung",null,null,null,null,null," geändert **  /",null,null,null,null,null," aufgegeben **    /",null,null,null,null," veräußert *  / am"]
[null,null,null,"(zutreffendes bitte ankreuzen)"]
[null,null,null,"Im Inland steuerlich erfasst beim Finanzamt"]
[]
[]
[null,null,null,"Steuer-Identifikationsnummer bzw.",null,null,null,null,null,null,null,null,null,null,null,null,null,null,null,null,null,null,"Steuernummer ***"]
[null,null,null,"Wirtschafts-Identifikationsnummer ***"]
[]
[]
[]
[]
[]
[]
[]
[]
[]
[]
[]
[]
[]
[]
[]
[]
[]
[]
[]
[]
[]
[]
[]
[]
[]
[]
[]
[null,null,null,"*","Nur bei ausländischen Kapitalgesellschaften anzugeben."]
[null,null,null,"**","Nur bei Beteiligungen an ausländischen Personengesellschaften anzugeben."]
[null,null,null,"***","Angabe nur erforderlich, wenn nicht identisch mit der im Kopf angegebenen Steuer-/Wirtschafts-"]
[null,null,null,null,"identifikationsnummer bzw. Steuernummer."]
[null,null,"Anlage: Beteiligte; Seite 1"]
[]
[null,null,"010003 - BZSt 2 Mitteilungen nach § 138 Abs. 2 AO - 11/2020"]

{"sheet":"Beteiligte 13","index":33,"n_rows":74,"n_cols":32,"rows_kept":74,"cut":false,"hidden":true,"merged":[[71,2,71,32],[73,2,73,33],[33,24,33,27],[34,3,34,13],[35,3,35,19],[36,3,36,31],[42,3,42,21],[42,22,42,31],[33,20,33,23],[30,3,30,7],[33,3,33,6],[33,7,33,8],[33,9,33,13],[33,15,33,18],[29,3,29,8],[21,3,21,24],[21,26,21,31],[22,3,22,11],[23,3,23,31],[24,3,24,6],[24,9,24,20],[25,3,25,7],[25,9,25,31],[26,3,26,20],[27,3,27,17],[27,18,27,31],[16,2,16,16],[16,17,16,29],[16,30,16,31],[19,3,19,9],[20,3,20,16],[20,26,20,31],[2,2,2,32],[3,3,4,31],[5,3,5,16],[6,3,6,29],[13,3,13,21],[13,22,13,31]]}
[]
[]
[null,null,{"$f":"Header","v":""}]
[null,null,null,"Anlage: Beteiligte"]
[]
[null,null,null,"Name / Firma"]
[null,null,null,null,null,null,null,null,null,null,null,null,null,null,null,null,null,null,null,null,null,null,null,null,null,null,null,null,null,null,"20",{"$f":"IF(Jahr=\"\",\"\",Jahr)","v":""}]
[]
[]
[null,null,null,"Steuer-Identifikationsnummer bzw.",null,null,null,null,null,null,null,null,null,null,null,null,null,null,null,null,null,null,"Steuernummer der steuerpflichtigen Person"]
[null,null,null,"Wirtschafts-Identifikationsnummer der steuerpflichtigen Person"]
[]
[]
[]
[]
[]
[null,null,"Anlage: Beteiligte",null,null,null,null,null,null,null,null,null,null,null,null,null,null,"Zur Anlage ausl. Gesellschaft lfd. Nr. "]
[]
[]
[null,null,null,"Beteiligte (7)"]
[null,null,null,"Name, Vorname / Firmenname (4)",null,null,null,null,null,null,null,null,null,null,null,null,null,null,null,null,null,null,null,null,null,null,"Rechtsform"]
[]
[null,null,null,"Straße / Hausnummer"]
[]
[null,null,null,"Postleitzahl",null,null,null,null,null,"Wohnort / Sitz / Ort der Geschäftsleitung"]
[]
[null,null,null,"Anteil am Nominalkapital */ Kapital **   (in Prozent)"]
[]
[]
[null,null,null,"Beteiligt seit dem"]
[]
[]
[]
[null,null,null,"Beteiligung",null,null,null,null,null," geändert **  /",null,null,null,null,null," aufgegeben **    /",null,null,null,null," veräußert *  / am"]
[null,null,null,"(zutreffendes bitte ankreuzen)"]
[null,null,null,"Im Inland steuerlich erfasst beim Finanzamt"]
[]
[]
[null,null,null,"Steuer-Identifikationsnummer bzw.",null,null,null,null,null,null,null,null,null,null,null,null,null,null,null,null,null,null,"Steuernummer ***"]
[null,null,null,"Wirtschafts-Identifikationsnummer ***"]
[]
[]
[]
[]
[]
[]
[]
[]
[]
[]
[]
[]
[]
[]
[]
[]
[]
[]
[]
[]
[]
[]
[]
[]
[]
[]
[]
[null,null,null,"*","Nur bei ausländischen Kapitalgesellschaften anzugeben."]
[null,null,null,"**","Nur bei Beteiligungen an ausländischen Personengesellschaften anzugeben."]
[null,null,null,"***","Angabe nur erforderlich, wenn nicht identisch mit der im Kopf angegebenen Steuer-/Wirtschafts-"]
[null,null,null,null,"identifikationsnummer bzw. Steuernummer."]
[null,null,"Anlage: Beteiligte; Seite 1"]
[]
[null,null,"010003 - BZSt 2 Mitteilungen nach § 138 Abs. 2 AO - 11/2020"]

{"sheet":"Beteiligte 14","index":34,"n_rows":74,"n_cols":32,"rows_kept":74,"cut":false,"hidden":true,"merged":[[71,2,71,32],[73,2,73,33],[33,24,33,27],[34,3,34,13],[35,3,35,19],[36,3,36,31],[42,3,42,21],[42,22,42,31],[33,20,33,23],[30,3,30,7],[33,3,33,6],[33,7,33,8],[33,9,33,13],[33,15,33,18],[29,3,29,8],[21,3,21,24],[21,26,21,31],[22,3,22,11],[23,3,23,31],[24,3,24,6],[24,9,24,20],[25,3,25,7],[25,9,25,31],[26,3,26,20],[27,3,27,17],[27,18,27,31],[16,2,16,16],[16,17,16,29],[16,30,16,31],[19,3,19,9],[20,3,20,16],[20,26,20,31],[2,2,2,32],[3,3,4,31],[5,3,5,16],[6,3,6,29],[13,3,13,21],[13,22,13,31]]}
[]
[]
[null,null,{"$f":"Header","v":""}]
[null,null,null,"Anlage: Beteiligte"]
[]
[null,null,null,"Name / Firma"]
[null,null,null,null,null,null,null,null,null,null,null,null,null,null,null,null,null,null,null,null,null,null,null,null,null,null,null,null,null,null,"20",{"$f":"IF(Jahr=\"\",\"\",Jahr)","v":""}]
[]
[]
[null,null,null,"Steuer-Identifikationsnummer bzw.",null,null,null,null,null,null,null,null,null,null,null,null,null,null,null,null,null,null,"Steuernummer der steuerpflichtigen Person"]
[null,null,null,"Wirtschafts-Identifikationsnummer der steuerpflichtigen Person"]
[]
[]
[]
[]
[]
[null,null,"Anlage: Beteiligte",null,null,null,null,null,null,null,null,null,null,null,null,null,null,"Zur Anlage ausl. Gesellschaft lfd. Nr. "]
[]
[]
[null,null,null,"Beteiligte (7)"]
[null,null,null,"Name, Vorname / Firmenname (4)",null,null,null,null,null,null,null,null,null,null,null,null,null,null,null,null,null,null,null,null,null,null,"Rechtsform"]
[]
[null,null,null,"Straße / Hausnummer"]
[]
[null,null,null,"Postleitzahl",null,null,null,null,null,"Wohnort / Sitz / Ort der Geschäftsleitung"]
[]
[null,null,null,"Anteil am Nominalkapital */ Kapital **   (in Prozent)"]
[]
[]
[null,null,null,"Beteiligt seit dem"]
[]
[]
[]
[null,null,null,"Beteiligung",null,null,null,null,null," geändert **  /",null,null,null,null,null," aufgegeben **    /",null,null,null,null," veräußert *  / am"]
[null,null,null,"(zutreffendes bitte ankreuzen)"]
[null,null,null,"Im Inland steuerlich erfasst beim Finanzamt"]
[]
[]
[null,null,null,"Steuer-Identifikationsnummer bzw.",null,null,null,null,null,null,null,null,null,null,null,null,null,null,null,null,null,null,"Steuernummer ***"]
[null,null,null,"Wirtschafts-Identifikationsnummer ***"]
[]
[]
[]
[]
[]
[]
[]
[]
[]
[]
[]
[]
[]
[]
[]
[]
[]
[]
[]
[]
[]
[]
[]
[]
[]
[]
[]
[null,null,null,"*","Nur bei ausländischen Kapitalgesellschaften anzugeben."]
[null,null,null,"**","Nur bei Beteiligungen an ausländischen Personengesellschaften anzugeben."]
[null,null,null,"***","Angabe nur erforderlich, wenn nicht identisch mit der im Kopf angegebenen Steuer-/Wirtschafts-"]
[null,null,null,null,"identifikationsnummer bzw. Steuernummer."]
[null,null,"Anlage: Beteiligte; Seite 1"]
[]
[null,null,"010003 - BZSt 2 Mitteilungen nach § 138 Abs. 2 AO - 11/2020"]

{"sheet":"Beteiligte 15","index":35,"n_rows":74,"n_cols":32,"rows_kept":74,"cut":false,"hidden":true,"merged":[[71,2,71,32],[73,2,73,33],[33,24,33,27],[34,3,34,13],[35,3,35,19],[36,3,36,31],[42,3,42,21],[42,22,42,31],[33,20,33,23],[30,3,30,7],[33,3,33,6],[33,7,33,8],[33,9,33,13],[33,15,33,18],[29,3,29,8],[21,3,21,24],[21,26,21,31],[22,3,22,11],[23,3,23,31],[24,3,24,6],[24,9,24,20],[25,3,25,7],[25,9,25,31],[26,3,26,20],[27,3,27,17],[27,18,27,31],[16,2,16,16],[16,17,16,29],[16,30,16,31],[19,3,19,9],[20,3,20,16],[20,26,20,31],[2,2,2,32],[3,3,4,31],[5,3,5,16],[6,3,6,29],[13,3,13,21],[13,22,13,31]]}
[]
[]
[null,null,{"$f":"Header","v":""}]
[null,null,null,"Anlage: Beteiligte"]
[]
[null,null,null,"Name / Firma"]
[null,null,null,null,null,null,null,null,null,null,null,null,null,null,null,null,null,null,null,null,null,null,null,null,null,null,null,null,null,null,"20",{"$f":"IF(Jahr=\"\",\"\",Jahr)","v":""}]
[]
[]
[null,null,null,"Steuer-Identifikationsnummer bzw.",null,null,null,null,null,null,null,null,null,null,null,null,null,null,null,null,null,null,"Steuernummer der steuerpflichtigen Person"]
[null,null,null,"Wirtschafts-Identifikationsnummer der steuerpflichtigen Person"]
[]
[]
[]
[]
[]
[null,null,"Anlage: Beteiligte",null,null,null,null,null,null,null,null,null,null,null,null,null,null,"Zur Anlage ausl. Gesellschaft lfd. Nr. "]
[]
[]
[null,null,null,"Beteiligte (7)"]
[null,null,null,"Name, Vorname / Firmenname (4)",null,null,null,null,null,null,null,null,null,null,null,null,null,null,null,null,null,null,null,null,null,null,"Rechtsform"]
[]
[null,null,null,"Straße / Hausnummer"]
[]
[null,null,null,"Postleitzahl",null,null,null,null,null,"Wohnort / Sitz / Ort der Geschäftsleitung"]
[]
[null,null,null,"Anteil am Nominalkapital */ Kapital **   (in Prozent)"]
[]
[]
[null,null,null,"Beteiligt seit dem"]
[]
[]
[]
[null,null,null,"Beteiligung",null,null,null,null,null," geändert **  /",null,null,null,null,null," aufgegeben **    /",null,null,null,null," veräußert *  / am"]
[null,null,null,"(zutreffendes bitte ankreuzen)"]
[null,null,null,"Im Inland steuerlich erfasst beim Finanzamt"]
[]
[]
[null,null,null,"Steuer-Identifikationsnummer bzw.",null,null,null,null,null,null,null,null,null,null,null,null,null,null,null,null,null,null,"Steuernummer ***"]
[null,null,null,"Wirtschafts-Identifikationsnummer ***"]
[]
[]
[]
[]
[]
[]
[]
[]
[]
[]
[]
[]
[]
[]
[]
[]
[]
[]
[]
[]
[]
[]
[]
[]
[]
[]
[]
[null,null,null,"*","Nur bei ausländischen Kapitalgesellschaften anzugeben."]
[null,null,null,"**","Nur bei Beteiligungen an ausländischen Personengesellschaften anzugeben."]
[null,null,null,"***","Angabe nur erforderlich, wenn nicht identisch mit der im Kopf angegebenen Steuer-/Wirtschafts-"]
[null,null,null,null,"identifikationsnummer bzw. Steuernummer."]
[null,null,"Anlage: Beteiligte; Seite 1"]
[]
[null,null,"010003 - BZSt 2 Mitteilungen nach § 138 Abs. 2 AO - 11/2020"]

{"sheet":"Beteiligte 16","index":36,"n_rows":74,"n_cols":32,"rows_kept":74,"cut":false,"hidden":true,"merged":[[71,2,71,32],[73,2,73,33],[33,24,33,27],[34,3,34,13],[35,3,35,19],[36,3,36,31],[42,3,42,21],[42,22,42,31],[33,20,33,23],[30,3,30,7],[33,3,33,6],[33,7,33,8],[33,9,33,13],[33,15,33,18],[29,3,29,8],[21,3,21,24],[21,26,21,31],[22,3,22,11],[23,3,23,31],[24,3,24,6],[24,9,24,20],[25,3,25,7],[25,9,25,31],[26,3,26,20],[27,3,27,17],[27,18,27,31],[16,2,16,16],[16,17,16,29],[16,30,16,31],[19,3,19,9],[20,3,20,16],[20,26,20,31],[2,2,2,32],[3,3,4,31],[5,3,5,16],[6,3,6,29],[13,3,13,21],[13,22,13,31]]}
[]
[]
[null,null,{"$f":"Header","v":""}]
[null,null,null,"Anlage: Beteiligte"]
[]
[null,null,null,"Name / Firma"]
[null,null,null,null,null,null,null,null,null,null,null,null,null,null,null,null,null,null,null,null,null,null,null,null,null,null,null,null,null,null,"20",{"$f":"IF(Jahr=\"\",\"\",Jahr)","v":""}]
[]
[]
[null,null,null,"Steuer-Identifikationsnummer bzw.",null,null,null,null,null,null,null,null,null,null,null,null,null,null,null,null,null,null,"Steuernummer der steuerpflichtigen Person"]
[null,null,null,"Wirtschafts-Identifikationsnummer der steuerpflichtigen Person"]
[]
[]
[]
[]
[]
[null,null,"Anlage: Beteiligte",null,null,null,null,null,null,null,null,null,null,null,null,null,null,"Zur Anlage ausl. Gesellschaft lfd. Nr. "]
[]
[]
[null,null,null,"Beteiligte (7)"]
[null,null,null,"Name, Vorname / Firmenname (4)",null,null,null,null,null,null,null,null,null,null,null,null,null,null,null,null,null,null,null,null,null,null,"Rechtsform"]
[]
[null,null,null,"Straße / Hausnummer"]
[]
[null,null,null,"Postleitzahl",null,null,null,null,null,"Wohnort / Sitz / Ort der Geschäftsleitung"]
[]
[null,null,null,"Anteil am Nominalkapital */ Kapital **   (in Prozent)"]
[]
[]
[null,null,null,"Beteiligt seit dem"]
[]
[]
[]
[null,null,null,"Beteiligung",null,null,null,null,null," geändert **  /",null,null,null,null,null," aufgegeben **    /",null,null,null,null," veräußert *  / am"]
[null,null,null,"(zutreffendes bitte ankreuzen)"]
[null,null,null,"Im Inland steuerlich erfasst beim Finanzamt"]
[]
[]
[null,null,null,"Steuer-Identifikationsnummer bzw.",null,null,null,null,null,null,null,null,null,null,null,null,null,null,null,null,null,null,"Steuernummer ***"]
[null,null,null,"Wirtschafts-Identifikationsnummer ***"]
[]
[]
[]
[]
[]
[]
[]
[]
[]
[]
[]
[]
[]
[]
[]
[]
[]
[]
[]
[]
[]
[]
[]
[]
[]
[]
[]
[null,null,null,"*","Nur bei ausländischen Kapitalgesellschaften anzugeben."]
[null,null,null,"**","Nur bei Beteiligungen an ausländischen Personengesellschaften anzugeben."]
[null,null,null,"***","Angabe nur erforderlich, wenn nicht identisch mit der im Kopf angegebenen Steuer-/Wirtschafts-"]
[null,null,null,null,"identifikationsnummer bzw. Steuernummer."]
[null,null,"Anlage: Beteiligte; Seite 1"]
[]
[null,null,"010003 - BZSt 2 Mitteilungen nach § 138 Abs. 2 AO - 11/2020"]

{"sheet":"Beteiligte 17","index":37,"n_rows":74,"n_cols":32,"rows_kept":74,"cut":false,"hidden":true,"merged":[[71,2,71,32],[73,2,73,33],[33,24,33,27],[34,3,34,13],[35,3,35,19],[36,3,36,31],[42,3,42,21],[42,22,42,31],[33,20,33,23],[30,3,30,7],[33,3,33,6],[33,7,33,8],[33,9,33,13],[33,15,33,18],[29,3,29,8],[21,3,21,24],[21,26,21,31],[22,3,22,11],[23,3,23,31],[24,3,24,6],[24,9,24,20],[25,3,25,7],[25,9,25,31],[26,3,26,20],[27,3,27,17],[27,18,27,31],[16,2,16,16],[16,17,16,29],[16,30,16,31],[19,3,19,9],[20,3,20,16],[20,26,20,31],[2,2,2,32],[3,3,4,31],[5,3,5,16],[6,3,6,29],[13,3,13,21],[13,22,13,31]]}
[]
[]
[null,null,{"$f":"Header","v":""}]
[null,null,null,"Anlage: Beteiligte"]
[]
[null,null,null,"Name / Firma"]
[null,null,null,null,null,null,null,null,null,null,null,null,null,null,null,null,null,null,null,null,null,null,null,null,null,null,null,null,null,null,"20",{"$f":"IF(Jahr=\"\",\"\",Jahr)","v":""}]
[]
[]
[null,null,null,"Steuer-Identifikationsnummer bzw.",null,null,null,null,null,null,null,null,null,null,null,null,null,null,null,null,null,null,"Steuernummer der steuerpflichtigen Person"]
[null,null,null,"Wirtschafts-Identifikationsnummer der steuerpflichtigen Person"]
[]
[]
[]
[]
[]
[null,null,"Anlage: Beteiligte",null,null,null,null,null,null,null,null,null,null,null,null,null,null,"Zur Anlage ausl. Gesellschaft lfd. Nr. "]
[]
[]
[null,null,null,"Beteiligte (7)"]
[null,null,null,"Name, Vorname / Firmenname (4)",null,null,null,null,null,null,null,null,null,null,null,null,null,null,null,null,null,null,null,null,null,null,"Rechtsform"]
[]
[null,null,null,"Straße / Hausnummer"]
[]
[null,null,null,"Postleitzahl",null,null,null,null,null,"Wohnort / Sitz / Ort der Geschäftsleitung"]
[]
[null,null,null,"Anteil am Nominalkapital */ Kapital **   (in Prozent)"]
[]
[]
[null,null,null,"Beteiligt seit dem"]
[]
[]
[]
[null,null,null,"Beteiligung",null,null,null,null,null," geändert **  /",null,null,null,null,null," aufgegeben **    /",null,null,null,null," veräußert *  / am"]
[null,null,null,"(zutreffendes bitte ankreuzen)"]
[null,null,null,"Im Inland steuerlich erfasst beim Finanzamt"]
[]
[]
[null,null,null,"Steuer-Identifikationsnummer bzw.",null,null,null,null,null,null,null,null,null,null,null,null,null,null,null,null,null,null,"Steuernummer ***"]
[null,null,null,"Wirtschafts-Identifikationsnummer ***"]
[]
[]
[]
[]
[]
[]
[]
[]
[]
[]
[]
[]
[]
[]
[]
[]
[]
[]
[]
[]
[]
[]
[]
[]
[]
[]
[]
[null,null,null,"*","Nur bei ausländischen Kapitalgesellschaften anzugeben."]
[null,null,null,"**","Nur bei Beteiligungen an ausländischen Personengesellschaften anzugeben."]
[null,null,null,"***","Angabe nur erforderlich, wenn nicht identisch mit der im Kopf angegebenen Steuer-/Wirtschafts-"]
[null,null,null,null,"identifikationsnummer bzw. Steuernummer."]
[null,null,"Anlage: Beteiligte; Seite 1"]
[]
[null,null,"010003 - BZSt 2 Mitteilungen nach § 138 Abs. 2 AO - 11/2020"]

{"sheet":"Beteiligte 18","index":38,"n_rows":74,"n_cols":32,"rows_kept":74,"cut":false,"hidden":true,"merged":[[71,2,71,32],[73,2,73,33],[33,24,33,27],[34,3,34,13],[35,3,35,19],[36,3,36,31],[42,3,42,21],[42,22,42,31],[33,20,33,23],[30,3,30,7],[33,3,33,6],[33,7,33,8],[33,9,33,13],[33,15,33,18],[29,3,29,8],[21,3,21,24],[21,26,21,31],[22,3,22,11],[23,3,23,31],[24,3,24,6],[24,9,24,20],[25,3,25,7],[25,9,25,31],[26,3,26,20],[27,3,27,17],[27,18,27,31],[16,2,16,16],[16,17,16,29],[16,30,16,31],[19,3,19,9],[20,3,20,16],[20,26,20,31],[2,2,2,32],[3,3,4,31],[5,3,5,16],[6,3,6,29],[13,3,13,21],[13,22,13,31]]}
[]
[]
[null,null,{"$f":"Header","v":""}]
[null,null,null,"Anlage: Beteiligte"]
[]
[null,null,null,"Name / Firma"]
[null,null,null,null,null,null,null,null,null,null,null,null,null,null,null,null,null,null,null,null,null,null,null,null,null,null,null,null,null,null,"20",{"$f":"IF(Jahr=\"\",\"\",Jahr)","v":""}]
[]
[]
[null,null,null,"Steuer-Identifikationsnummer bzw.",null,null,null,null,null,null,null,null,null,null,null,null,null,null,null,null,null,null,"Steuernummer der steuerpflichtigen Person"]
[null,null,null,"Wirtschafts-Identifikationsnummer der steuerpflichtigen Person"]
[]
[]
[]
[]
[]
[null,null,"Anlage: Beteiligte",null,null,null,null,null,null,null,null,null,null,null,null,null,null,"Zur Anlage ausl. Gesellschaft lfd. Nr. "]
[]
[]
[null,null,null,"Beteiligte (7)"]
[null,null,null,"Name, Vorname / Firmenname (4)",null,null,null,null,null,null,null,null,null,null,null,null,null,null,null,null,null,null,null,null,null,null,"Rechtsform"]
[]
[null,null,null,"Straße / Hausnummer"]
[]
[null,null,null,"Postleitzahl",null,null,null,null,null,"Wohnort / Sitz / Ort der Geschäftsleitung"]
[]
[null,null,null,"Anteil am Nominalkapital */ Kapital **   (in Prozent)"]
[]
[]
[null,null,null,"Beteiligt seit dem"]
[]
[]
[]
[null,null,null,"Beteiligung",null,null,null,null,null," geändert **  /",null,null,null,null,null," aufgegeben **    /",null,null,null,null," veräußert *  / am"]
[null,null,null,"(zutreffendes bitte ankreuzen)"]
[null,null,null,"Im Inland steuerlich erfasst beim Finanzamt"]
[]
[]
[null,null,null,"Steuer-Identifikationsnummer bzw.",null,null,null,null,null,null,null,null,null,null,null,null,null,null,null,null,null,null,"Steuernummer ***"]
[null,null,null,"Wirtschafts-Identifikationsnummer ***"]
[]
[]
[]
[]
[]
[]
[]
[]
[]
[]
[]
[]
[]
[]
[]
[]
[]
[]
[]
[]
[]
[]
[]
[]
[]
[]
[]
[null,null,null,"*","Nur bei ausländischen Kapitalgesellschaften anzugeben."]
[null,null,null,"**","Nur bei Beteiligungen an ausländischen Personengesellschaften anzugeben."]
[null,null,null,"***","Angabe nur erforderlich, wenn nicht identisch mit der im Kopf angegebenen Steuer-/Wirtschafts-"]
[null,null,null,null,"identifikationsnummer bzw. Steuernummer."]
[null,null,"Anlage: Beteiligte; Seite 1"]
[]
[null,null,"010003 - BZSt 2 Mitteilungen nach § 138 Abs. 2 AO - 11/2020"]

{"sheet":"Beteiligte 19","index":39,"n_rows":74,"n_cols":32,"rows_kept":74,"cut":false,"hidden":true,"merged":[[71,2,71,32],[73,2,73,33],[33,24,33,27],[34,3,34,13],[35,3,35,19],[36,3,36,31],[42,3,42,21],[42,22,42,31],[33,20,33,23],[30,3,30,7],[33,3,33,6],[33,7,33,8],[33,9,33,13],[33,15,33,18],[29,3,29,8],[21,3,21,24],[21,26,21,31],[22,3,22,11],[23,3,23,31],[24,3,24,6],[24,9,24,20],[25,3,25,7],[25,9,25,31],[26,3,26,20],[27,3,27,17],[27,18,27,31],[16,2,16,16],[16,17,16,29],[16,30,16,31],[19,3,19,9],[20,3,20,16],[20,26,20,31],[2,2,2,32],[3,3,4,31],[5,3,5,16],[6,3,6,29],[13,3,13,21],[13,22,13,31]]}
[]
[]
[null,null,{"$f":"Header","v":""}]
[null,null,null,"Anlage: Beteiligte"]
[]
[null,null,null,"Name / Firma"]
[null,null,null,null,null,null,null,null,null,null,null,null,null,null,null,null,null,null,null,null,null,null,null,null,null,null,null,null,null,null,"20",{"$f":"IF(Jahr=\"\",\"\",Jahr)","v":""}]
[]
[]
[null,null,null,"Steuer-Identifikationsnummer bzw.",null,null,null,null,null,null,null,null,null,null,null,null,null,null,null,null,null,null,"Steuernummer der steuerpflichtigen Person"]
[null,null,null,"Wirtschafts-Identifikationsnummer der steuerpflichtigen Person"]
[]
[]
[]
[]
[]
[null,null,"Anlage: Beteiligte",null,null,null,null,null,null,null,null,null,null,null,null,null,null,"Zur Anlage ausl. Gesellschaft lfd. Nr. "]
[]
[]
[null,null,null,"Beteiligte (7)"]
[null,null,null,"Name, Vorname / Firmenname (4)",null,null,null,null,null,null,null,null,null,null,null,null,null,null,null,null,null,null,null,null,null,null,"Rechtsform"]
[]
[null,null,null,"Straße / Hausnummer"]
[]
[null,null,null,"Postleitzahl",null,null,null,null,null,"Wohnort / Sitz / Ort der Geschäftsleitung"]
[]
[null,null,null,"Anteil am Nominalkapital */ Kapital **   (in Prozent)"]
[]
[]
[null,null,null,"Beteiligt seit dem"]
[]
[]
[]
[null,null,null,"Beteiligung",null,null,null,null,null," geändert **  /",null,null,null,null,null," aufgegeben **    /",null,null,null,null," veräußert *  / am"]
[null,null,null,"(zutreffendes bitte ankreuzen)"]
[null,null,null,"Im Inland steuerlich erfasst beim Finanzamt"]
[]
[]
[null,null,null,"Steuer-Identifikationsnummer bzw.",null,null,null,null,null,null,null,null,null,null,null,null,null,null,null,null,null,null,"Steuernummer ***"]
[null,null,null,"Wirtschafts-Identifikationsnummer ***"]
[]
[]
[]
[]
[]
[]
[]
[]
[]
[]
[]
[]
[]
[]
[]
[]
[]
[]
[]
[]
[]
[]
[]
[]
[]
[]
[]
[null,null,null,"*","Nur bei ausländischen Kapitalgesellschaften anzugeben."]
[null,null,null,"**","Nur bei Beteiligungen an ausländischen Personengesellschaften anzugeben."]
[null,null,null,"***","Angabe nur erforderlich, wenn nicht identisch mit der im Kopf angegebenen Steuer-/Wirtschafts-"]
[null,null,null,null,"identifikationsnummer bzw. Steuernummer."]
[null,null,"Anlage: Beteiligte; Seite 1"]
[]
[null,null,"010003 - BZSt 2 Mitteilungen nach § 138 Abs. 2 AO - 11/2020"]

{"sheet":"Beteiligte 20","index":40,"n_rows":74,"n_cols":32,"rows_kept":74,"cut":false,"hidden":true,"merged":[[71,2,71,32],[73,2,73,33],[33,24,33,27],[34,3,34,13],[35,3,35,19],[36,3,36,31],[42,3,42,21],[42,22,42,31],[33,20,33,23],[30,3,30,7],[33,3,33,6],[33,7,33,8],[33,9,33,13],[33,15,33,18],[29,3,29,8],[21,3,21,24],[21,26,21,31],[22,3,22,11],[23,3,23,31],[24,3,24,6],[24,9,24,20],[25,3,25,7],[25,9,25,31],[26,3,26,20],[27,3,27,17],[27,18,27,31],[16,2,16,16],[16,17,16,29],[16,30,16,31],[19,3,19,9],[20,3,20,16],[20,26,20,31],[2,2,2,32],[3,3,4,31],[5,3,5,16],[6,3,6,29],[13,3,13,21],[13,22,13,31]]}
[]
[]
[null,null,{"$f":"Header","v":""}]
[null,null,null,"Anlage: Beteiligte"]
[]
[null,null,null,"Name / Firma"]
[null,null,null,null,null,null,null,null,null,null,null,null,null,null,null,null,null,null,null,null,null,null,null,null,null,null,null,null,null,null,"20",{"$f":"IF(Jahr=\"\",\"\",Jahr)","v":""}]
[]
[]
[null,null,null,"Steuer-Identifikationsnummer bzw.",null,null,null,null,null,null,null,null,null,null,null,null,null,null,null,null,null,null,"Steuernummer der steuerpflichtigen Person"]
[null,null,null,"Wirtschafts-Identifikationsnummer der steuerpflichtigen Person"]
[]
[]
[]
[]
[]
[null,null,"Anlage: Beteiligte",null,null,null,null,null,null,null,null,null,null,null,null,null,null,"Zur Anlage ausl. Gesellschaft lfd. Nr. "]
[]
[]
[null,null,null,"Beteiligte (7)"]
[null,null,null,"Name, Vorname / Firmenname (4)",null,null,null,null,null,null,null,null,null,null,null,null,null,null,null,null,null,null,null,null,null,null,"Rechtsform"]
[]
[null,null,null,"Straße / Hausnummer"]
[]
[null,null,null,"Postleitzahl",null,null,null,null,null,"Wohnort / Sitz / Ort der Geschäftsleitung"]
[]
[null,null,null,"Anteil am Nominalkapital */ Kapital **   (in Prozent)"]
[]
[]
[null,null,null,"Beteiligt seit dem"]
[]
[]
[]
[null,null,null,"Beteiligung",null,null,null,null,null," geändert **  /",null,null,null,null,null," aufgegeben **    /",null,null,null,null," veräußert *  / am"]
[null,null,null,"(zutreffendes bitte ankreuzen)"]
[null,null,null,"Im Inland steuerlich erfasst beim Finanzamt"]
[]
[]
[null,null,null,"Steuer-Identifikationsnummer bzw.",null,null,null,null,null,null,null,null,null,null,null,null,null,null,null,null,null,null,"Steuernummer ***"]
[null,null,null,"Wirtschafts-Identifikationsnummer ***"]
[]
[]
[]
[]
[]
[]
[]
[]
[]
[]
[]
[]
[]
[]
[]
[]
[]
[]
[]
[]
[]
[]
[]
[]
[]
[]
[]
[null,null,null,"*","Nur bei ausländischen Kapitalgesellschaften anzugeben."]
[null,null,null,"**","Nur bei Beteiligungen an ausländischen Personengesellschaften anzugeben."]
[null,null,null,"***","Angabe nur erforderlich, wenn nicht identisch mit der im Kopf angegebenen Steuer-/Wirtschafts-"]
[null,null,null,null,"identifikationsnummer bzw. Steuernummer."]
[null,null,"Anlage: Beteiligte; Seite 1"]
[]
[null,null,"010003 - BZSt 2 Mitteilungen nach § 138 Abs. 2 AO - 11/2020"]

{"sheet":"Drittstaat 1","index":41,"n_rows":147,"n_cols":37,"rows_kept":147,"cut":false,"hidden":false,"merged":[[70,2,70,33],[73,2,73,33],[75,2,75,32],[146,2,146,33],[76,3,76,16],[77,3,77,31],[83,3,83,21],[83,22,83,31],[85,2,85,21],[88,5,88,9],[88,11,88,15],[89,3,89,13],[90,3,90,20],[91,3,91,17],[91,18,91,31],[93,3,93,8],[94,3,94,8],[142,2,142,33],[87,3,87,21],[42,3,42,8],[54,3,54,31],[41,3,41,7],[43,3,43,19],[37,3,37,8],[37,10,37,31],[39,3,39,31],[38,3,38,9],[44,3,44,4],[44,5,47,32],[31,3,31,6],[32,3,32,31],[34,3,34,13],[35,3,35,31],[36,3,36,9],[36,10,36,15],[27,3,27,11],[28,3,28,31],[29,3,29,7],[29,10,29,20],[30,3,30,8],[30,10,30,31],[26,3,26,24],[26,26,26,31],[16,5,16,15],[18,27,18,29],[18,30,18,31],[24,2,24,21],[21,27,21,29],[21,30,21,31],[25,3,25,13],[25,26,25,31],[18,5,18,26],[21,5,21,26],[14,3,14,21],[14,22,14,31],[2,2,2,32],[3,2,4,32],[6,3,6,16],[7,3,7,29]]}
[]
[]
[null,null,{"$f":"Header","v":""}]
[null,null,"Anlage: Drittstaat-Gesellschaft"]
[]
[]
[null,null,null,"Name / Firma der steuerpflichtigen Person"]
[null,null,null,null,null,null,null,null,null,null,null,null,null,null,null,null,null,null,null,null,null,null,null,null,null,null,null,null,null,null,"20",{"$f":"IF(Jahr=\"\",\"\",Jahr)","v":""}]
[]
[]
[null,null,null,"Steuer-Identifikationsnummer bzw.",null,null,null,null,null,null,null,null,null,null,null,null,null,null,null,null,null,null,"Steuernummer der steuerpflichtigen Person"]
[null,null,null,"Wirtschafts-Identifikationsnummer der steuerpflichtigen Person"]
[]
[]
[]
[]
[]
[]
[null,null,null,null,null," Ausländische Personengesellschaft",null,null,null,null,null,null,null,null,null,null,null,null,null,null,null,null,null,null,null,null,null,"Lfd. Nr. (3)"]
[]
[]
[null,null,null,null,null," Ausländische Kapitalgesellschaft, Vermögensmasse, Personenvereinigung (8)",null,null,null,null,null,null,null,null,null,null,null,null,null,null,null,null,null,null,null,null,null,"Lfd. Nr. (3)"]
[null,null,null,null,null,null,null,null,null,null,null,null,null,null,null,null,null,null,null,null,null,null,null,null,null,null,null,null,null,null,null,null,null,null,null,null," "]
[]
[null,null," Angaben zur Drittstaat-Gesellschaft"]
[null,null,null,"Firmenname (4)",null,null,null,null,null,null,null,null,null,null,null,null,null,null,null,null,null,null,null,null,null,null,"Rechtsform"]
[]
[null,null,null,"Straße / Hausnummer"]
[]
[null,null,null,"Postleitzahl",null,null,null,null,null,null,"Wohnort / Sitz / Ort der Geschäftsleitung"]
[]
[null,null,null,"Staat"]
[]
[]
[null,null,null,"Sitz: Straße / Hausnummer ****"]
[]
[null,null,null,"Sitz: Postleitzahl ****",null,null,null,null,null,null,"Sitz: Ort ****"]
[]
[null,null,null,"Sitz: Staat ****"]
[]
[]
[null,null,null,"Gründung am"]
[]
[null,null,null,"Art der wirtschaftlichen Tätigkeit / Geschäftszweck"]
[null,null,null,null,null," 1 = Land- und Forstwirtschaft, 2 = Gewerbliche Herstellung und Verarbeitung,\n 3 = Kreditinstitut oder Versicherungsunternehmen, 4 = Handel, 5 = Überlassung von Rechten, Plänen, Mustern,\n 6 = Vermietung und Verpachtung von Grundstücken, 7 = Vermietung und Verpachtung von beweglichen Sachen,\n 8 = Verwaltung, 9 = Kapitalanlage, 10 = Finanzierung, 11 = Sonstige Dienstleistungen, 12 = Holding,\n 13 = Sonstiges (10)"]
[]
[]
[]
[]
[null,null,null,null,"Erläuterungen"]
[]
[]
[]
[]
[]
[]
[]
[]
[]
[]
[]
[]
[]
[]
[]
[]
[]
[]
[]
[]
[null,null,"Anlage: Drittstaat-Gesellschaft; Seite 1"]
[]
[]
[null,null,"010003 - BZSt 2 Mitteilungen nach § 138 Abs. 2 AO - 11/2020"]
[]
[null,null,{"$f":"Header","v":""}]
[null,null,null,"Im Inland steuerlich erfasst beim Finanzamt (6)"]
[]
[]
[null,null,null,"Steuer-Identifikationsnummer bzw.",null,null,null,null,null,null,null,null,null,null,null,null,null,null,null,null,null,null,"Steuernummer ***"]
[null,null,null,"Wirtschafts-Identifikationsnummer ***"]
[]
[]
[]
[]
[null,null,"Bei Beteiligung an der Drittstaat-Gesellschaft (8)"]
[]
[null,null,null,"Ich habe eine Beteiligung an der Drittstaat-Gesellschaft:"]
[null,null,null,null,null," Ja              /",null,null,null,null,null," Nein"]
[null,null,null,"(zutreffendes bitte ankreuzen)"]
[null,null,null,"Anteil am Nominalkapital */ Kapital **   (in Prozent)"]
[]
[]
[null,null,null,"Beteiligt seit dem"]
[]
[]
[]
[]
[]
[]
[]
[]
[]
[]
[]
[]
[]
[]
[]
[]
[]
[]
[]
[]
[]
[]
[]
[]
[]
[]
[]
[]
[]
[]
[]
[]
[]
[]
[]
[]
[]
[]
[]
[]
[null,null,null,"*",null,"Nur bei ausländischen Kapitalgesellschaften anzugeben."]
[null,null,null,"**",null,"Nur bei Beteiligungen an ausländischen Personengesellschaften anzugeben."]
[null,null,null,"***",null,"Angabe nur erforderlich, wenn nicht identisch mit der im Kopf angegebenen Steuer-/Wirtschafts-"]
[null,null,null,null,null,"Identifikationsnummer bzw. Steuernummer."]
[]
[null,null,null,"****",null,"Nur auszufüllen, wenn der Ort des Sitzes vom Ort der Geschäftsleitung abweicht."]
[]
[]
[null,null,"Anlage: Drittstaat-Gesellschaft; Seite 1"]
[]
[]
[]
[null,null,"010003 - BZSt 2 Mitteilungen nach § 138 Abs. 2 AO - 11/2020"]

{"sheet":"Drittstaat 2","index":42,"n_rows":147,"n_cols":37,"rows_kept":147,"cut":false,"hidden":true,"merged":[[142,2,142,33],[146,2,146,33],[89,3,89,13],[90,3,90,20],[91,3,91,17],[91,18,91,31],[93,3,93,8],[94,3,94,8],[83,3,83,21],[83,22,83,31],[85,2,85,21],[87,3,87,21],[88,5,88,9],[88,11,88,15],[77,3,77,31],[38,3,38,9],[39,3,39,31],[41,3,41,7],[42,3,42,8],[43,3,43,19],[44,3,44,4],[44,5,47,32],[54,3,54,31],[70,2,70,33],[73,2,73,33],[75,2,75,32],[76,3,76,16],[37,3,37,8],[37,10,37,31],[28,3,28,31],[29,3,29,7],[29,10,29,20],[30,3,30,8],[30,10,30,31],[31,3,31,6],[32,3,32,31],[34,3,34,13],[35,3,35,31],[36,3,36,9],[36,10,36,15],[27,3,27,11],[16,5,16,15],[18,5,18,26],[18,27,18,29],[18,30,18,31],[21,5,21,26],[21,27,21,29],[21,30,21,31],[24,2,24,21],[25,3,25,13],[25,26,25,31],[26,3,26,24],[26,26,26,31],[2,2,2,32],[3,2,4,32],[6,3,6,16],[7,3,7,29],[14,3,14,21],[14,22,14,31]]}
[]
[]
[null,null,{"$f":"Header","v":""}]
[null,null,"Anlage: Drittstaat-Gesellschaft"]
[]
[]
[null,null,null,"Name / Firma der steuerpflichtigen Person"]
[null,null,null,null,null,null,null,null,null,null,null,null,null,null,null,null,null,null,null,null,null,null,null,null,null,null,null,null,null,null,"20",{"$f":"IF(Jahr=\"\",\"\",Jahr)","v":""}]
[]
[]
[null,null,null,"Steuer-Identifikationsnummer bzw.",null,null,null,null,null,null,null,null,null,null,null,null,null,null,null,null,null,null,"Steuernummer der steuerpflichtigen Person"]
[null,null,null,"Wirtschafts-Identifikationsnummer der steuerpflichtigen Person"]
[]
[]
[]
[]
[]
[]
[null,null,null,null,null," Ausländische Personengesellschaft",null,null,null,null,null,null,null,null,null,null,null,null,null,null,null,null,null,null,null,null,null,"Lfd. Nr. (3)"]
[]
[]
[null,null,null,null,null," Ausländische Kapitalgesellschaft, Vermögensmasse, Personenvereinigung (8)",null,null,null,null,null,null,null,null,null,null,null,null,null,null,null,null,null,null,null,null,null,"Lfd. Nr. (3)"]
[null,null,null,null,null,null,null,null,null,null,null,null,null,null,null,null,null,null,null,null,null,null,null,null,null,null,null,null,null,null,null,null,null,null,null,null," "]
[]
[null,null," Angaben zur Drittstaat-Gesellschaft"]
[null,null,null,"Firmenname (4)",null,null,null,null,null,null,null,null,null,null,null,null,null,null,null,null,null,null,null,null,null,null,"Rechtsform"]
[]
[null,null,null,"Straße / Hausnummer"]
[]
[null,null,null,"Postleitzahl",null,null,null,null,null,null,"Wohnort / Sitz / Ort der Geschäftsleitung"]
[]
[null,null,null,"Staat"]
[]
[]
[null,null,null,"Sitz: Straße / Hausnummer ****"]
[]
[null,null,null,"Sitz: Postleitzahl ****",null,null,null,null,null,null,"Sitz: Ort ****"]
[]
[null,null,null,"Sitz: Staat ****"]
[]
[]
[null,null,null,"Gründung am"]
[]
[null,null,null,"Art der wirtschaftlichen Tätigkeit / Geschäftszweck"]
[null,null,null,null,null," 1 = Land- und Forstwirtschaft, 2 = Gewerbliche Herstellung und Verarbeitung,\n 3 = Kreditinstitut oder Versicherungsunternehmen, 4 = Handel, 5 = Überlassung von Rechten, Plänen, Mustern,\n 6 = Vermietung und Verpachtung von Grundstücken, 7 = Vermietung und Verpachtung von beweglichen Sachen,\n 8 = Verwaltung, 9 = Kapitalanlage, 10 = Finanzierung, 11 = Sonstige Dienstleistungen, 12 = Holding,\n 13 = Sonstiges (10)"]
[]
[]
[]
[]
[null,null,null,null,"Erläuterungen"]
[]
[]
[]
[]
[]
[]
[]
[]
[]
[]
[]
[]
[]
[]
[]
[]
[]
[]
[]
[]
[null,null,"Anlage: Drittstaat-Gesellschaft; Seite 1"]
[]
[]
[null,null,"010003 - BZSt 2 Mitteilungen nach § 138 Abs. 2 AO - 11/2020"]
[]
[null,null,{"$f":"Header","v":""}]
[null,null,null,"Im Inland steuerlich erfasst beim Finanzamt (6)"]
[]
[]
[null,null,null,"Steuer-Identifikationsnummer bzw.",null,null,null,null,null,null,null,null,null,null,null,null,null,null,null,null,null,null,"Steuernummer ***"]
[null,null,null,"Wirtschafts-Identifikationsnummer ***"]
[]
[]
[]
[]
[null,null,"Bei Beteiligung an der Drittstaat-Gesellschaft (8)"]
[]
[null,null,null,"Ich habe eine Beteiligung an der Drittstaat-Gesellschaft:"]
[null,null,null,null,null," Ja              /",null,null,null,null,null," Nein"]
[null,null,null,"(zutreffendes bitte ankreuzen)"]
[null,null,null,"Anteil am Nominalkapital */ Kapital **   (in Prozent)"]
[]
[]
[null,null,null,"Beteiligt seit dem"]
[]
[]
[]
[]
[]
[]
[]
[]
[]
[]
[]
[]
[]
[]
[]
[]
[]
[]
[]
[]
[]
[]
[]
[]
[]
[]
[]
[]
[]
[]
[]
[]
[]
[]
[]
[]
[]
[]
[]
[]
[null,null,null,"*",null,"Nur bei ausländischen Kapitalgesellschaften anzugeben."]
[null,null,null,"**",null,"Nur bei Beteiligungen an ausländischen Personengesellschaften anzugeben."]
[null,null,null,"***",null,"Angabe nur erforderlich, wenn nicht identisch mit der im Kopf angegebenen Steuer-/Wirtschafts-"]
[null,null,null,null,null,"Identifikationsnummer bzw. Steuernummer."]
[]
[null,null,null,"****",null,"Nur auszufüllen, wenn der Ort des Sitzes vom Ort der Geschäftsleitung abweicht."]
[]
[]
[null,null,"Anlage: Drittstaat-Gesellschaft; Seite 1"]
[]
[]
[]
[null,null,"010003 - BZSt 2 Mitteilungen nach § 138 Abs. 2 AO - 11/2020"]

{"sheet":"Drittstaat 3","index":43,"n_rows":147,"n_cols":37,"rows_kept":147,"cut":false,"hidden":true,"merged":[[142,2,142,33],[146,2,146,33],[89,3,89,13],[90,3,90,20],[91,3,91,17],[91,18,91,31],[93,3,93,8],[94,3,94,8],[83,3,83,21],[83,22,83,31],[85,2,85,21],[87,3,87,21],[88,5,88,9],[88,11,88,15],[77,3,77,31],[38,3,38,9],[39,3,39,31],[41,3,41,7],[42,3,42,8],[43,3,43,19],[44,3,44,4],[44,5,47,32],[54,3,54,31],[70,2,70,33],[73,2,73,33],[75,2,75,32],[76,3,76,16],[37,3,37,8],[37,10,37,31],[28,3,28,31],[29,3,29,7],[29,10,29,20],[30,3,30,8],[30,10,30,31],[31,3,31,6],[32,3,32,31],[34,3,34,13],[35,3,35,31],[36,3,36,9],[36,10,36,15],[27,3,27,11],[16,5,16,15],[18,5,18,26],[18,27,18,29],[18,30,18,31],[21,5,21,26],[21,27,21,29],[21,30,21,31],[24,2,24,21],[25,3,25,13],[25,26,25,31],[26,3,26,24],[26,26,26,31],[2,2,2,32],[3,2,4,32],[6,3,6,16],[7,3,7,29],[14,3,14,21],[14,22,14,31]]}
[]
[]
[null,null,{"$f":"Header","v":""}]
[null,null,"Anlage: Drittstaat-Gesellschaft"]
[]
[]
[null,null,null,"Name / Firma der steuerpflichtigen Person"]
[null,null,null,null,null,null,null,null,null,null,null,null,null,null,null,null,null,null,null,null,null,null,null,null,null,null,null,null,null,null,"20",{"$f":"IF(Jahr=\"\",\"\",Jahr)","v":""}]
[]
[]
[null,null,null,"Steuer-Identifikationsnummer bzw.",null,null,null,null,null,null,null,null,null,null,null,null,null,null,null,null,null,null,"Steuernummer der steuerpflichtigen Person"]
[null,null,null,"Wirtschafts-Identifikationsnummer der steuerpflichtigen Person"]
[]
[]
[]
[]
[]
[]
[null,null,null,null,null," Ausländische Personengesellschaft",null,null,null,null,null,null,null,null,null,null,null,null,null,null,null,null,null,null,null,null,null,"Lfd. Nr. (3)"]
[]
[]
[null,null,null,null,null," Ausländische Kapitalgesellschaft, Vermögensmasse, Personenvereinigung (8)",null,null,null,null,null,null,null,null,null,null,null,null,null,null,null,null,null,null,null,null,null,"Lfd. Nr. (3)"]
[null,null,null,null,null,null,null,null,null,null,null,null,null,null,null,null,null,null,null,null,null,null,null,null,null,null,null,null,null,null,null,null,null,null,null,null," "]
[]
[null,null," Angaben zur Drittstaat-Gesellschaft"]
[null,null,null,"Firmenname (4)",null,null,null,null,null,null,null,null,null,null,null,null,null,null,null,null,null,null,null,null,null,null,"Rechtsform"]
[]
[null,null,null,"Straße / Hausnummer"]
[]
[null,null,null,"Postleitzahl",null,null,null,null,null,null,"Wohnort / Sitz / Ort der Geschäftsleitung"]
[]
[null,null,null,"Staat"]
[]
[]
[null,null,null,"Sitz: Straße / Hausnummer ****"]
[]
[null,null,null,"Sitz: Postleitzahl ****",null,null,null,null,null,null,"Sitz: Ort ****"]
[]
[null,null,null,"Sitz: Staat ****"]
[]
[]
[null,null,null,"Gründung am"]
[]
[null,null,null,"Art der wirtschaftlichen Tätigkeit / Geschäftszweck"]
[null,null,null,null,null," 1 = Land- und Forstwirtschaft, 2 = Gewerbliche Herstellung und Verarbeitung,\n 3 = Kreditinstitut oder Versicherungsunternehmen, 4 = Handel, 5 = Überlassung von Rechten, Plänen, Mustern,\n 6 = Vermietung und Verpachtung von Grundstücken, 7 = Vermietung und Verpachtung von beweglichen Sachen,\n 8 = Verwaltung, 9 = Kapitalanlage, 10 = Finanzierung, 11 = Sonstige Dienstleistungen, 12 = Holding,\n 13 = Sonstiges (10)"]
[]
[]
[]
[]
[null,null,null,null,"Erläuterungen"]
[]
[]
[]
[]
[]
[]
[]
[]
[]
[]
[]
[]
[]
[]
[]
[]
[]
[]
[]
[]
[null,null,"Anlage: Drittstaat-Gesellschaft; Seite 1"]
[]
[]
[null,null,"010003 - BZSt 2 Mitteilungen nach § 138 Abs. 2 AO - 11/2020"]
[]
[null,null,{"$f":"Header","v":""}]
[null,null,null,"Im Inland steuerlich erfasst beim Finanzamt (6)"]
[]
[]
[null,null,null,"Steuer-Identifikationsnummer bzw.",null,null,null,null,null,null,null,null,null,null,null,null,null,null,null,null,null,null,"Steuernummer ***"]
[null,null,null,"Wirtschafts-Identifikationsnummer ***"]
[]
[]
[]
[]
[null,null,"Bei Beteiligung an der Drittstaat-Gesellschaft (8)"]
[]
[null,null,null,"Ich habe eine Beteiligung an der Drittstaat-Gesellschaft:"]
[null,null,null,null,null," Ja              /",null,null,null,null,null," Nein"]
[null,null,null,"(zutreffendes bitte ankreuzen)"]
[null,null,null,"Anteil am Nominalkapital */ Kapital **   (in Prozent)"]
[]
[]
[null,null,null,"Beteiligt seit dem"]
[]
[]
[]
[]
[]
[]
[]
[]
[]
[]
[]
[]
[]
[]
[]
[]
[]
[]
[]
[]
[]
[]
[]
[]
[]
[]
[]
[]
[]
[]
[]
[]
[]
[]
[]
[]
[]
[]
[]
[]
[null,null,null,"*",null,"Nur bei ausländischen Kapitalgesellschaften anzugeben."]
[null,null,null,"**",null,"Nur bei Beteiligungen an ausländischen Personengesellschaften anzugeben."]
[null,null,null,"***",null,"Angabe nur erforderlich, wenn nicht identisch mit der im Kopf angegebenen Steuer-/Wirtschafts-"]
[null,null,null,null,null,"Identifikationsnummer bzw. Steuernummer."]
[]
[null,null,null,"****",null,"Nur auszufüllen, wenn der Ort des Sitzes vom Ort der Geschäftsleitung abweicht."]
[]
[]
[null,null,"Anlage: Drittstaat-Gesellschaft; Seite 1"]
[]
[]
[]
[null,null,"010003 - BZSt 2 Mitteilungen nach § 138 Abs. 2 AO - 11/2020"]

{"sheet":"Drittstaat 4","index":44,"n_rows":147,"n_cols":37,"rows_kept":147,"cut":false,"hidden":true,"merged":[[142,2,142,33],[146,2,146,33],[89,3,89,13],[90,3,90,20],[91,3,91,17],[91,18,91,31],[93,3,93,8],[94,3,94,8],[83,3,83,21],[83,22,83,31],[85,2,85,21],[87,3,87,21],[88,5,88,9],[88,11,88,15],[77,3,77,31],[38,3,38,9],[39,3,39,31],[41,3,41,7],[42,3,42,8],[43,3,43,19],[44,3,44,4],[44,5,47,32],[54,3,54,31],[70,2,70,33],[73,2,73,33],[75,2,75,32],[76,3,76,16],[37,3,37,8],[37,10,37,31],[28,3,28,31],[29,3,29,7],[29,10,29,20],[30,3,30,8],[30,10,30,31],[31,3,31,6],[32,3,32,31],[34,3,34,13],[35,3,35,31],[36,3,36,9],[36,10,36,15],[27,3,27,11],[16,5,16,15],[18,5,18,26],[18,27,18,29],[18,30,18,31],[21,5,21,26],[21,27,21,29],[21,30,21,31],[24,2,24,21],[25,3,25,13],[25,26,25,31],[26,3,26,24],[26,26,26,31],[2,2,2,32],[3,2,4,32],[6,3,6,16],[7,3,7,29],[14,3,14,21],[14,22,14,31]]}
[]
[]
[null,null,{"$f":"Header","v":""}]
[null,null,"Anlage: Drittstaat-Gesellschaft"]
[]
[]
[null,null,null,"Name / Firma der steuerpflichtigen Person"]
[null,null,null,null,null,null,null,null,null,null,null,null,null,null,null,null,null,null,null,null,null,null,null,null,null,null,null,null,null,null,"20",{"$f":"IF(Jahr=\"\",\"\",Jahr)","v":""}]
[]
[]
[null,null,null,"Steuer-Identifikationsnummer bzw.",null,null,null,null,null,null,null,null,null,null,null,null,null,null,null,null,null,null,"Steuernummer der steuerpflichtigen Person"]
[null,null,null,"Wirtschafts-Identifikationsnummer der steuerpflichtigen Person"]
[]
[]
[]
[]
[]
[]
[null,null,null,null,null," Ausländische Personengesellschaft",null,null,null,null,null,null,null,null,null,null,null,null,null,null,null,null,null,null,null,null,null,"Lfd. Nr. (3)"]
[]
[]
[null,null,null,null,null," Ausländische Kapitalgesellschaft, Vermögensmasse, Personenvereinigung (8)",null,null,null,null,null,null,null,null,null,null,null,null,null,null,null,null,null,null,null,null,null,"Lfd. Nr. (3)"]
[null,null,null,null,null,null,null,null,null,null,null,null,null,null,null,null,null,null,null,null,null,null,null,null,null,null,null,null,null,null,null,null,null,null,null,null," "]
[]
[null,null," Angaben zur Drittstaat-Gesellschaft"]
[null,null,null,"Firmenname (4)",null,null,null,null,null,null,null,null,null,null,null,null,null,null,null,null,null,null,null,null,null,null,"Rechtsform"]
[]
[null,null,null,"Straße / Hausnummer"]
[]
[null,null,null,"Postleitzahl",null,null,null,null,null,null,"Wohnort / Sitz / Ort der Geschäftsleitung"]
[]
[null,null,null,"Staat"]
[]
[]
[null,null,null,"Sitz: Straße / Hausnummer ****"]
[]
[null,null,null,"Sitz: Postleitzahl ****",null,null,null,null,null,null,"Sitz: Ort ****"]
[]
[null,null,null,"Sitz: Staat ****"]
[]
[]
[null,null,null,"Gründung am"]
[]
[null,null,null,"Art der wirtschaftlichen Tätigkeit / Geschäftszweck"]
[null,null,null,null,null," 1 = Land- und Forstwirtschaft, 2 = Gewerbliche Herstellung und Verarbeitung,\n 3 = Kreditinstitut oder Versicherungsunternehmen, 4 = Handel, 5 = Überlassung von Rechten, Plänen, Mustern,\n 6 = Vermietung und Verpachtung von Grundstücken, 7 = Vermietung und Verpachtung von beweglichen Sachen,\n 8 = Verwaltung, 9 = Kapitalanlage, 10 = Finanzierung, 11 = Sonstige Dienstleistungen, 12 = Holding,\n 13 = Sonstiges (10)"]
[]
[]
[]
[]
[null,null,null,null,"Erläuterungen"]
[]
[]
[]
[]
[]
[]
[]
[]
[]
[]
[]
[]
[]
[]
[]
[]
[]
[]
[]
[]
[null,null,"Anlage: Drittstaat-Gesellschaft; Seite 1"]
[]
[]
[null,null,"010003 - BZSt 2 Mitteilungen nach § 138 Abs. 2 AO - 11/2020"]
[]
[null,null,{"$f":"Header","v":""}]
[null,null,null,"Im Inland steuerlich erfasst beim Finanzamt (6)"]
[]
[]
[null,null,null,"Steuer-Identifikationsnummer bzw.",null,null,null,null,null,null,null,null,null,null,null,null,null,null,null,null,null,null,"Steuernummer ***"]
[null,null,null,"Wirtschafts-Identifikationsnummer ***"]
[]
[]
[]
[]
[null,null,"Bei Beteiligung an der Drittstaat-Gesellschaft (8)"]
[]
[null,null,null,"Ich habe eine Beteiligung an der Drittstaat-Gesellschaft:"]
[null,null,null,null,null," Ja              /",null,null,null,null,null," Nein"]
[null,null,null,"(zutreffendes bitte ankreuzen)"]
[null,null,null,"Anteil am Nominalkapital */ Kapital **   (in Prozent)"]
[]
[]
[null,null,null,"Beteiligt seit dem"]
[]
[]
[]
[]
[]
[]
[]
[]
[]
[]
[]
[]
[]
[]
[]
[]
[]
[]
[]
[]
[]
[]
[]
[]
[]
[]
[]
[]
[]
[]
[]
[]
[]
[]
[]
[]
[]
[]
[]
[]
[null,null,null,"*",null,"Nur bei ausländischen Kapitalgesellschaften anzugeben."]
[null,null,null,"**",null,"Nur bei Beteiligungen an ausländischen Personengesellschaften anzugeben."]
[null,null,null,"***",null,"Angabe nur erforderlich, wenn nicht identisch mit der im Kopf angegebenen Steuer-/Wirtschafts-"]
[null,null,null,null,null,"Identifikationsnummer bzw. Steuernummer."]
[]
[null,null,null,"****",null,"Nur auszufüllen, wenn der Ort des Sitzes vom Ort der Geschäftsleitung abweicht."]
[]
[]
[null,null,"Anlage: Drittstaat-Gesellschaft; Seite 1"]
[]
[]
[]
[null,null,"010003 - BZSt 2 Mitteilungen nach § 138 Abs. 2 AO - 11/2020"]

{"sheet":"Drittstaat 5","index":45,"n_rows":147,"n_cols":37,"rows_kept":147,"cut":false,"hidden":true,"merged":[[142,2,142,33],[146,2,146,33],[89,3,89,13],[90,3,90,20],[91,3,91,17],[91,18,91,31],[93,3,93,8],[94,3,94,8],[83,3,83,21],[83,22,83,31],[85,2,85,21],[87,3,87,21],[88,5,88,9],[88,11,88,15],[77,3,77,31],[38,3,38,9],[39,3,39,31],[41,3,41,7],[42,3,42,8],[43,3,43,19],[44,3,44,4],[44,5,47,32],[54,3,54,31],[70,2,70,33],[73,2,73,33],[75,2,75,32],[76,3,76,16],[37,3,37,8],[37,10,37,31],[28,3,28,31],[29,3,29,7],[29,10,29,20],[30,3,30,8],[30,10,30,31],[31,3,31,6],[32,3,32,31],[34,3,34,13],[35,3,35,31],[36,3,36,9],[36,10,36,15],[27,3,27,11],[16,5,16,15],[18,5,18,26],[18,27,18,29],[18,30,18,31],[21,5,21,26],[21,27,21,29],[21,30,21,31],[24,2,24,21],[25,3,25,13],[25,26,25,31],[26,3,26,24],[26,26,26,31],[2,2,2,32],[3,2,4,32],[6,3,6,16],[7,3,7,29],[14,3,14,21],[14,22,14,31]]}
[]
[]
[null,null,{"$f":"Header","v":""}]
[null,null,"Anlage: Drittstaat-Gesellschaft"]
[]
[]
[null,null,null,"Name / Firma der steuerpflichtigen Person"]
[null,null,null,null,null,null,null,null,null,null,null,null,null,null,null,null,null,null,null,null,null,null,null,null,null,null,null,null,null,null,"20",{"$f":"IF(Jahr=\"\",\"\",Jahr)","v":""}]
[]
[]
[null,null,null,"Steuer-Identifikationsnummer bzw.",null,null,null,null,null,null,null,null,null,null,null,null,null,null,null,null,null,null,"Steuernummer der steuerpflichtigen Person"]
[null,null,null,"Wirtschafts-Identifikationsnummer der steuerpflichtigen Person"]
[]
[]
[]
[]
[]
[]
[null,null,null,null,null," Ausländische Personengesellschaft",null,null,null,null,null,null,null,null,null,null,null,null,null,null,null,null,null,null,null,null,null,"Lfd. Nr. (3)"]
[]
[]
[null,null,null,null,null," Ausländische Kapitalgesellschaft, Vermögensmasse, Personenvereinigung (8)",null,null,null,null,null,null,null,null,null,null,null,null,null,null,null,null,null,null,null,null,null,"Lfd. Nr. (3)"]
[null,null,null,null,null,null,null,null,null,null,null,null,null,null,null,null,null,null,null,null,null,null,null,null,null,null,null,null,null,null,null,null,null,null,null,null," "]
[]
[null,null," Angaben zur Drittstaat-Gesellschaft"]
[null,null,null,"Firmenname (4)",null,null,null,null,null,null,null,null,null,null,null,null,null,null,null,null,null,null,null,null,null,null,"Rechtsform"]
[]
[null,null,null,"Straße / Hausnummer"]
[]
[null,null,null,"Postleitzahl",null,null,null,null,null,null,"Wohnort / Sitz / Ort der Geschäftsleitung"]
[]
[null,null,null,"Staat"]
[]
[]
[null,null,null,"Sitz: Straße / Hausnummer ****"]
[]
[null,null,null,"Sitz: Postleitzahl ****",null,null,null,null,null,null,"Sitz: Ort ****"]
[]
[null,null,null,"Sitz: Staat ****"]
[]
[]
[null,null,null,"Gründung am"]
[]
[null,null,null,"Art der wirtschaftlichen Tätigkeit / Geschäftszweck"]
[null,null,null,null,null," 1 = Land- und Forstwirtschaft, 2 = Gewerbliche Herstellung und Verarbeitung,\n 3 = Kreditinstitut oder Versicherungsunternehmen, 4 = Handel, 5 = Überlassung von Rechten, Plänen, Mustern,\n 6 = Vermietung und Verpachtung von Grundstücken, 7 = Vermietung und Verpachtung von beweglichen Sachen,\n 8 = Verwaltung, 9 = Kapitalanlage, 10 = Finanzierung, 11 = Sonstige Dienstleistungen, 12 = Holding,\n 13 = Sonstiges (10)"]
[]
[]
[]
[]
[null,null,null,null,"Erläuterungen"]
[]
[]
[]
[]
[]
[]
[]
[]
[]
[]
[]
[]
[]
[]
[]
[]
[]
[]
[]
[]
[null,null,"Anlage: Drittstaat-Gesellschaft; Seite 1"]
[]
[]
[null,null,"010003 - BZSt 2 Mitteilungen nach § 138 Abs. 2 AO - 11/2020"]
[]
[null,null,{"$f":"Header","v":""}]
[null,null,null,"Im Inland steuerlich erfasst beim Finanzamt (6)"]
[]
[]
[null,null,null,"Steuer-Identifikationsnummer bzw.",null,null,null,null,null,null,null,null,null,null,null,null,null,null,null,null,null,null,"Steuernummer ***"]
[null,null,null,"Wirtschafts-Identifikationsnummer ***"]
[]
[]
[]
[]
[null,null,"Bei Beteiligung an der Drittstaat-Gesellschaft (8)"]
[]
[null,null,null,"Ich habe eine Beteiligung an der Drittstaat-Gesellschaft:"]
[null,null,null,null,null," Ja              /",null,null,null,null,null," Nein"]
[null,null,null,"(zutreffendes bitte ankreuzen)"]
[null,null,null,"Anteil am Nominalkapital */ Kapital **   (in Prozent)"]
[]
[]
[null,null,null,"Beteiligt seit dem"]
[]
[]
[]
[]
[]
[]
[]
[]
[]
[]
[]
[]
[]
[]
[]
[]
[]
[]
[]
[]
[]
[]
[]
[]
[]
[]
[]
[]
[]
[]
[]
[]
[]
[]
[]
[]
[]
[]
[]
[]
[null,null,null,"*",null,"Nur bei ausländischen Kapitalgesellschaften anzugeben."]
[null,null,null,"**",null,"Nur bei Beteiligungen an ausländischen Personengesellschaften anzugeben."]
[null,null,null,"***",null,"Angabe nur erforderlich, wenn nicht identisch mit der im Kopf angegebenen Steuer-/Wirtschafts-"]
[null,null,null,null,null,"Identifikationsnummer bzw. Steuernummer."]
[]
[null,null,null,"****",null,"Nur auszufüllen, wenn der Ort des Sitzes vom Ort der Geschäftsleitung abweicht."]
[]
[]
[null,null,"Anlage: Drittstaat-Gesellschaft; Seite 1"]
[]
[]
[]
[null,null,"010003 - BZSt 2 Mitteilungen nach § 138 Abs. 2 AO - 11/2020"]

{"sheet":"Drittstaat 6","index":46,"n_rows":147,"n_cols":37,"rows_kept":147,"cut":false,"hidden":true,"merged":[[142,2,142,33],[146,2,146,33],[89,3,89,13],[90,3,90,20],[91,3,91,17],[91,18,91,31],[93,3,93,8],[94,3,94,8],[83,3,83,21],[83,22,83,31],[85,2,85,21],[87,3,87,21],[88,5,88,9],[88,11,88,15],[77,3,77,31],[38,3,38,9],[39,3,39,31],[41,3,41,7],[42,3,42,8],[43,3,43,19],[44,3,44,4],[44,5,47,32],[54,3,54,31],[70,2,70,33],[73,2,73,33],[75,2,75,32],[76,3,76,16],[37,3,37,8],[37,10,37,31],[28,3,28,31],[29,3,29,7],[29,10,29,20],[30,3,30,8],[30,10,30,31],[31,3,31,6],[32,3,32,31],[34,3,34,13],[35,3,35,31],[36,3,36,9],[36,10,36,15],[27,3,27,11],[16,5,16,15],[18,5,18,26],[18,27,18,29],[18,30,18,31],[21,5,21,26],[21,27,21,29],[21,30,21,31],[24,2,24,21],[25,3,25,13],[25,26,25,31],[26,3,26,24],[26,26,26,31],[2,2,2,32],[3,2,4,32],[6,3,6,16],[7,3,7,29],[14,3,14,21],[14,22,14,31]]}
[]
[]
[null,null,{"$f":"Header","v":""}]
[null,null,"Anlage: Drittstaat-Gesellschaft"]
[]
[]
[null,null,null,"Name / Firma der steuerpflichtigen Person"]
[null,null,null,null,null,null,null,null,null,null,null,null,null,null,null,null,null,null,null,null,null,null,null,null,null,null,null,null,null,null,"20",{"$f":"IF(Jahr=\"\",\"\",Jahr)","v":""}]
[]
[]
[null,null,null,"Steuer-Identifikationsnummer bzw.",null,null,null,null,null,null,null,null,null,null,null,null,null,null,null,null,null,null,"Steuernummer der steuerpflichtigen Person"]
[null,null,null,"Wirtschafts-Identifikationsnummer der steuerpflichtigen Person"]
[]
[]
[]
[]
[]
[]
[null,null,null,null,null," Ausländische Personengesellschaft",null,null,null,null,null,null,null,null,null,null,null,null,null,null,null,null,null,null,null,null,null,"Lfd. Nr. (3)"]
[]
[]
[null,null,null,null,null," Ausländische Kapitalgesellschaft, Vermögensmasse, Personenvereinigung (8)",null,null,null,null,null,null,null,null,null,null,null,null,null,null,null,null,null,null,null,null,null,"Lfd. Nr. (3)"]
[null,null,null,null,null,null,null,null,null,null,null,null,null,null,null,null,null,null,null,null,null,null,null,null,null,null,null,null,null,null,null,null,null,null,null,null," "]
[]
[null,null," Angaben zur Drittstaat-Gesellschaft"]
[null,null,null,"Firmenname (4)",null,null,null,null,null,null,null,null,null,null,null,null,null,null,null,null,null,null,null,null,null,null,"Rechtsform"]
[]
[null,null,null,"Straße / Hausnummer"]
[]
[null,null,null,"Postleitzahl",null,null,null,null,null,null,"Wohnort / Sitz / Ort der Geschäftsleitung"]
[]
[null,null,null,"Staat"]
[]
[]
[null,null,null,"Sitz: Straße / Hausnummer ****"]
[]
[null,null,null,"Sitz: Postleitzahl ****",null,null,null,null,null,null,"Sitz: Ort ****"]
[]
[null,null,null,"Sitz: Staat ****"]
[]
[]
[null,null,null,"Gründung am"]
[]
[null,null,null,"Art der wirtschaftlichen Tätigkeit / Geschäftszweck"]
[null,null,null,null,null," 1 = Land- und Forstwirtschaft, 2 = Gewerbliche Herstellung und Verarbeitung,\n 3 = Kreditinstitut oder Versicherungsunternehmen, 4 = Handel, 5 = Überlassung von Rechten, Plänen, Mustern,\n 6 = Vermietung und Verpachtung von Grundstücken, 7 = Vermietung und Verpachtung von beweglichen Sachen,\n 8 = Verwaltung, 9 = Kapitalanlage, 10 = Finanzierung, 11 = Sonstige Dienstleistungen, 12 = Holding,\n 13 = Sonstiges (10)"]
[]
[]
[]
[]
[null,null,null,null,"Erläuterungen"]
[]
[]
[]
[]
[]
[]
[]
[]
[]
[]
[]
[]
[]
[]
[]
[]
[]
[]
[]
[]
[null,null,"Anlage: Drittstaat-Gesellschaft; Seite 1"]
[]
[]
[null,null,"010003 - BZSt 2 Mitteilungen nach § 138 Abs. 2 AO - 11/2020"]
[]
[null,null,{"$f":"Header","v":""}]
[null,null,null,"Im Inland steuerlich erfasst beim Finanzamt (6)"]
[]
[]
[null,null,null,"Steuer-Identifikationsnummer bzw.",null,null,null,null,null,null,null,null,null,null,null,null,null,null,null,null,null,null,"Steuernummer ***"]
[null,null,null,"Wirtschafts-Identifikationsnummer ***"]
[]
[]
[]
[]
[null,null,"Bei Beteiligung an der Drittstaat-Gesellschaft (8)"]
[]
[null,null,null,"Ich habe eine Beteiligung an der Drittstaat-Gesellschaft:"]
[null,null,null,null,null," Ja              /",null,null,null,null,null," Nein"]
[null,null,null,"(zutreffendes bitte ankreuzen)"]
[null,null,null,"Anteil am Nominalkapital */ Kapital **   (in Prozent)"]
[]
[]
[null,null,null,"Beteiligt seit dem"]
[]
[]
[]
[]
[]
[]
[]
[]
[]
[]
[]
[]
[]
[]
[]
[]
[]
[]
[]
[]
[]
[]
[]
[]
[]
[]
[]
[]
[]
[]
[]
[]
[]
[]
[]
[]
[]
[]
[]
[]
[null,null,null,"*",null,"Nur bei ausländischen Kapitalgesellschaften anzugeben."]
[null,null,null,"**",null,"Nur bei Beteiligungen an ausländischen Personengesellschaften anzugeben."]
[null,null,null,"***",null,"Angabe nur erforderlich, wenn nicht identisch mit der im Kopf angegebenen Steuer-/Wirtschafts-"]
[null,null,null,null,null,"Identifikationsnummer bzw. Steuernummer."]
[]
[null,null,null,"****",null,"Nur auszufüllen, wenn der Ort des Sitzes vom Ort der Geschäftsleitung abweicht."]
[]
[]
[null,null,"Anlage: Drittstaat-Gesellschaft; Seite 1"]
[]
[]
[]
[null,null,"010003 - BZSt 2 Mitteilungen nach § 138 Abs. 2 AO - 11/2020"]

{"sheet":"Drittstaat 7","index":47,"n_rows":147,"n_cols":37,"rows_kept":147,"cut":false,"hidden":true,"merged":[[142,2,142,33],[146,2,146,33],[89,3,89,13],[90,3,90,20],[91,3,91,17],[91,18,91,31],[93,3,93,8],[94,3,94,8],[83,3,83,21],[83,22,83,31],[85,2,85,21],[87,3,87,21],[88,5,88,9],[88,11,88,15],[77,3,77,31],[38,3,38,9],[39,3,39,31],[41,3,41,7],[42,3,42,8],[43,3,43,19],[44,3,44,4],[44,5,47,32],[54,3,54,31],[70,2,70,33],[73,2,73,33],[75,2,75,32],[76,3,76,16],[37,3,37,8],[37,10,37,31],[28,3,28,31],[29,3,29,7],[29,10,29,20],[30,3,30,8],[30,10,30,31],[31,3,31,6],[32,3,32,31],[34,3,34,13],[35,3,35,31],[36,3,36,9],[36,10,36,15],[27,3,27,11],[16,5,16,15],[18,5,18,26],[18,27,18,29],[18,30,18,31],[21,5,21,26],[21,27,21,29],[21,30,21,31],[24,2,24,21],[25,3,25,13],[25,26,25,31],[26,3,26,24],[26,26,26,31],[2,2,2,32],[3,2,4,32],[6,3,6,16],[7,3,7,29],[14,3,14,21],[14,22,14,31]]}
[]
[]
[null,null,{"$f":"Header","v":""}]
[null,null,"Anlage: Drittstaat-Gesellschaft"]
[]
[]
[null,null,null,"Name / Firma der steuerpflichtigen Person"]
[null,null,null,null,null,null,null,null,null,null,null,null,null,null,null,null,null,null,null,null,null,null,null,null,null,null,null,null,null,null,"20",{"$f":"IF(Jahr=\"\",\"\",Jahr)","v":""}]
[]
[]
[null,null,null,"Steuer-Identifikationsnummer bzw.",null,null,null,null,null,null,null,null,null,null,null,null,null,null,null,null,null,null,"Steuernummer der steuerpflichtigen Person"]
[null,null,null,"Wirtschafts-Identifikationsnummer der steuerpflichtigen Person"]
[]
[]
[]
[]
[]
[]
[null,null,null,null,null," Ausländische Personengesellschaft",null,null,null,null,null,null,null,null,null,null,null,null,null,null,null,null,null,null,null,null,null,"Lfd. Nr. (3)"]
[]
[]
[null,null,null,null,null," Ausländische Kapitalgesellschaft, Vermögensmasse, Personenvereinigung (8)",null,null,null,null,null,null,null,null,null,null,null,null,null,null,null,null,null,null,null,null,null,"Lfd. Nr. (3)"]
[null,null,null,null,null,null,null,null,null,null,null,null,null,null,null,null,null,null,null,null,null,null,null,null,null,null,null,null,null,null,null,null,null,null,null,null," "]
[]
[null,null," Angaben zur Drittstaat-Gesellschaft"]
[null,null,null,"Firmenname (4)",null,null,null,null,null,null,null,null,null,null,null,null,null,null,null,null,null,null,null,null,null,null,"Rechtsform"]
[]
[null,null,null,"Straße / Hausnummer"]
[]
[null,null,null,"Postleitzahl",null,null,null,null,null,null,"Wohnort / Sitz / Ort der Geschäftsleitung"]
[]
[null,null,null,"Staat"]
[]
[]
[null,null,null,"Sitz: Straße / Hausnummer ****"]
[]
[null,null,null,"Sitz: Postleitzahl ****",null,null,null,null,null,null,"Sitz: Ort ****"]
[]
[null,null,null,"Sitz: Staat ****"]
[]
[]
[null,null,null,"Gründung am"]
[]
[null,null,null,"Art der wirtschaftlichen Tätigkeit / Geschäftszweck"]
[null,null,null,null,null," 1 = Land- und Forstwirtschaft, 2 = Gewerbliche Herstellung und Verarbeitung,\n 3 = Kreditinstitut oder Versicherungsunternehmen, 4 = Handel, 5 = Überlassung von Rechten, Plänen, Mustern,\n 6 = Vermietung und Verpachtung von Grundstücken, 7 = Vermietung und Verpachtung von beweglichen Sachen,\n 8 = Verwaltung, 9 = Kapitalanlage, 10 = Finanzierung, 11 = Sonstige Dienstleistungen, 12 = Holding,\n 13 = Sonstiges (10)"]
[]
[]
[]
[]
[null,null,null,null,"Erläuterungen"]
[]
[]
[]
[]
[]
[]
[]
[]
[]
[]
[]
[]
[]
[]
[]
[]
[]
[]
[]
[]
[null,null,"Anlage: Drittstaat-Gesellschaft; Seite 1"]
[]
[]
[null,null,"010003 - BZSt 2 Mitteilungen nach § 138 Abs. 2 AO - 11/2020"]
[]
[null,null,{"$f":"Header","v":""}]
[null,null,null,"Im Inland steuerlich erfasst beim Finanzamt (6)"]
[]
[]
[null,null,null,"Steuer-Identifikationsnummer bzw.",null,null,null,null,null,null,null,null,null,null,null,null,null,null,null,null,null,null,"Steuernummer ***"]
[null,null,null,"Wirtschafts-Identifikationsnummer ***"]
[]
[]
[]
[]
[null,null,"Bei Beteiligung an der Drittstaat-Gesellschaft (8)"]
[]
[null,null,null,"Ich habe eine Beteiligung an der Drittstaat-Gesellschaft:"]
[null,null,null,null,null," Ja              /",null,null,null,null,null," Nein"]
[null,null,null,"(zutreffendes bitte ankreuzen)"]
[null,null,null,"Anteil am Nominalkapital */ Kapital **   (in Prozent)"]
[]
[]
[null,null,null,"Beteiligt seit dem"]
[]
[]
[]
[]
[]
[]
[]
[]
[]
[]
[]
[]
[]
[]
[]
[]
[]
[]
[]
[]
[]
[]
[]
[]
[]
[]
[]
[]
[]
[]
[]
[]
[]
[]
[]
[]
[]
[]
[]
[]
[null,null,null,"*",null,"Nur bei ausländischen Kapitalgesellschaften anzugeben."]
[null,null,null,"**",null,"Nur bei Beteiligungen an ausländischen Personengesellschaften anzugeben."]
[null,null,null,"***",null,"Angabe nur erforderlich, wenn nicht identisch mit der im Kopf angegebenen Steuer-/Wirtschafts-"]
[null,null,null,null,null,"Identifikationsnummer bzw. Steuernummer."]
[]
[null,null,null,"****",null,"Nur auszufüllen, wenn der Ort des Sitzes vom Ort der Geschäftsleitung abweicht."]
[]
[]
[null,null,"Anlage: Drittstaat-Gesellschaft; Seite 1"]
[]
[]
[]
[null,null,"010003 - BZSt 2 Mitteilungen nach § 138 Abs. 2 AO - 11/2020"]

{"sheet":"Drittstaat 8","index":48,"n_rows":147,"n_cols":37,"rows_kept":147,"cut":false,"hidden":true,"merged":[[142,2,142,33],[146,2,146,33],[89,3,89,13],[90,3,90,20],[91,3,91,17],[91,18,91,31],[93,3,93,8],[94,3,94,8],[83,3,83,21],[83,22,83,31],[85,2,85,21],[87,3,87,21],[88,5,88,9],[88,11,88,15],[77,3,77,31],[38,3,38,9],[39,3,39,31],[41,3,41,7],[42,3,42,8],[43,3,43,19],[44,3,44,4],[44,5,47,32],[54,3,54,31],[70,2,70,33],[73,2,73,33],[75,2,75,32],[76,3,76,16],[37,3,37,8],[37,10,37,31],[28,3,28,31],[29,3,29,7],[29,10,29,20],[30,3,30,8],[30,10,30,31],[31,3,31,6],[32,3,32,31],[34,3,34,13],[35,3,35,31],[36,3,36,9],[36,10,36,15],[27,3,27,11],[16,5,16,15],[18,5,18,26],[18,27,18,29],[18,30,18,31],[21,5,21,26],[21,27,21,29],[21,30,21,31],[24,2,24,21],[25,3,25,13],[25,26,25,31],[26,3,26,24],[26,26,26,31],[2,2,2,32],[3,2,4,32],[6,3,6,16],[7,3,7,29],[14,3,14,21],[14,22,14,31]]}
[]
[]
[null,null,{"$f":"Header","v":""}]
[null,null,"Anlage: Drittstaat-Gesellschaft"]
[]
[]
[null,null,null,"Name / Firma der steuerpflichtigen Person"]
[null,null,null,null,null,null,null,null,null,null,null,null,null,null,null,null,null,null,null,null,null,null,null,null,null,null,null,null,null,null,"20",{"$f":"IF(Jahr=\"\",\"\",Jahr)","v":""}]
[]
[]
[null,null,null,"Steuer-Identifikationsnummer bzw.",null,null,null,null,null,null,null,null,null,null,null,null,null,null,null,null,null,null,"Steuernummer der steuerpflichtigen Person"]
[null,null,null,"Wirtschafts-Identifikationsnummer der steuerpflichtigen Person"]
[]
[]
[]
[]
[]
[]
[null,null,null,null,null," Ausländische Personengesellschaft",null,null,null,null,null,null,null,null,null,null,null,null,null,null,null,null,null,null,null,null,null,"Lfd. Nr. (3)"]
[]
[]
[null,null,null,null,null," Ausländische Kapitalgesellschaft, Vermögensmasse, Personenvereinigung (8)",null,null,null,null,null,null,null,null,null,null,null,null,null,null,null,null,null,null,null,null,null,"Lfd. Nr. (3)"]
[null,null,null,null,null,null,null,null,null,null,null,null,null,null,null,null,null,null,null,null,null,null,null,null,null,null,null,null,null,null,null,null,null,null,null,null," "]
[]
[null,null," Angaben zur Drittstaat-Gesellschaft"]
[null,null,null,"Firmenname (4)",null,null,null,null,null,null,null,null,null,null,null,null,null,null,null,null,null,null,null,null,null,null,"Rechtsform"]
[]
[null,null,null,"Straße / Hausnummer"]
[]
[null,null,null,"Postleitzahl",null,null,null,null,null,null,"Wohnort / Sitz / Ort der Geschäftsleitung"]
[]
[null,null,null,"Staat"]
[]
[]
[null,null,null,"Sitz: Straße / Hausnummer ****"]
[]
[null,null,null,"Sitz: Postleitzahl ****",null,null,null,null,null,null,"Sitz: Ort ****"]
[]
[null,null,null,"Sitz: Staat ****"]
[]
[]
[null,null,null,"Gründung am"]
[]
[null,null,null,"Art der wirtschaftlichen Tätigkeit / Geschäftszweck"]
[null,null,null,null,null," 1 = Land- und Forstwirtschaft, 2 = Gewerbliche Herstellung und Verarbeitung,\n 3 = Kreditinstitut oder Versicherungsunternehmen, 4 = Handel, 5 = Überlassung von Rechten, Plänen, Mustern,\n 6 = Vermietung und Verpachtung von Grundstücken, 7 = Vermietung und Verpachtung von beweglichen Sachen,\n 8 = Verwaltung, 9 = Kapitalanlage, 10 = Finanzierung, 11 = Sonstige Dienstleistungen, 12 = Holding,\n 13 = Sonstiges (10)"]
[]
[]
[]
[]
[null,null,null,null,"Erläuterungen"]
[]
[]
[]
[]
[]
[]
[]
[]
[]
[]
[]
[]
[]
[]
[]
[]
[]
[]
[]
[]
[null,null,"Anlage: Drittstaat-Gesellschaft; Seite 1"]
[]
[]
[null,null,"010003 - BZSt 2 Mitteilungen nach § 138 Abs. 2 AO - 11/2020"]
[]
[null,null,{"$f":"Header","v":""}]
[null,null,null,"Im Inland steuerlich erfasst beim Finanzamt (6)"]
[]
[]
[null,null,null,"Steuer-Identifikationsnummer bzw.",null,null,null,null,null,null,null,null,null,null,null,null,null,null,null,null,null,null,"Steuernummer ***"]
[null,null,null,"Wirtschafts-Identifikationsnummer ***"]
[]
[]
[]
[]
[null,null,"Bei Beteiligung an der Drittstaat-Gesellschaft (8)"]
[]
[null,null,null,"Ich habe eine Beteiligung an der Drittstaat-Gesellschaft:"]
[null,null,null,null,null," Ja              /",null,null,null,null,null," Nein"]
[null,null,null,"(zutreffendes bitte ankreuzen)"]
[null,null,null,"Anteil am Nominalkapital */ Kapital **   (in Prozent)"]
[]
[]
[null,null,null,"Beteiligt seit dem"]
[]
[]
[]
[]
[]
[]
[]
[]
[]
[]
[]
[]
[]
[]
[]
[]
[]
[]
[]
[]
[]
[]
[]
[]
[]
[]
[]
[]
[]
[]
[]
[]
[]
[]
[]
[]
[]
[]
[]
[]
[null,null,null,"*",null,"Nur bei ausländischen Kapitalgesellschaften anzugeben."]
[null,null,null,"**",null,"Nur bei Beteiligungen an ausländischen Personengesellschaften anzugeben."]
[null,null,null,"***",null,"Angabe nur erforderlich, wenn nicht identisch mit der im Kopf angegebenen Steuer-/Wirtschafts-"]
[null,null,null,null,null,"Identifikationsnummer bzw. Steuernummer."]
[]
[null,null,null,"****",null,"Nur auszufüllen, wenn der Ort des Sitzes vom Ort der Geschäftsleitung abweicht."]
[]
[]
[null,null,"Anlage: Drittstaat-Gesellschaft; Seite 1"]
[]
[]
[]
[null,null,"010003 - BZSt 2 Mitteilungen nach § 138 Abs. 2 AO - 11/2020"]

{"sheet":"Drittstaat 9","index":49,"n_rows":147,"n_cols":37,"rows_kept":147,"cut":false,"hidden":true,"merged":[[142,2,142,33],[146,2,146,33],[89,3,89,13],[90,3,90,20],[91,3,91,17],[91,18,91,31],[93,3,93,8],[94,3,94,8],[83,3,83,21],[83,22,83,31],[85,2,85,21],[87,3,87,21],[88,5,88,9],[88,11,88,15],[77,3,77,31],[38,3,38,9],[39,3,39,31],[41,3,41,7],[42,3,42,8],[43,3,43,19],[44,3,44,4],[44,5,47,32],[54,3,54,31],[70,2,70,33],[73,2,73,33],[75,2,75,32],[76,3,76,16],[37,3,37,8],[37,10,37,31],[28,3,28,31],[29,3,29,7],[29,10,29,20],[30,3,30,8],[30,10,30,31],[31,3,31,6],[32,3,32,31],[34,3,34,13],[35,3,35,31],[36,3,36,9],[36,10,36,15],[27,3,27,11],[16,5,16,15],[18,5,18,26],[18,27,18,29],[18,30,18,31],[21,5,21,26],[21,27,21,29],[21,30,21,31],[24,2,24,21],[25,3,25,13],[25,26,25,31],[26,3,26,24],[26,26,26,31],[2,2,2,32],[3,2,4,32],[6,3,6,16],[7,3,7,29],[14,3,14,21],[14,22,14,31]]}
[]
[]
[null,null,{"$f":"Header","v":""}]
[null,null,"Anlage: Drittstaat-Gesellschaft"]
[]
[]
[null,null,null,"Name / Firma der steuerpflichtigen Person"]
[null,null,null,null,null,null,null,null,null,null,null,null,null,null,null,null,null,null,null,null,null,null,null,null,null,null,null,null,null,null,"20",{"$f":"IF(Jahr=\"\",\"\",Jahr)","v":""}]
[]
[]
[null,null,null,"Steuer-Identifikationsnummer bzw.",null,null,null,null,null,null,null,null,null,null,null,null,null,null,null,null,null,null,"Steuernummer der steuerpflichtigen Person"]
[null,null,null,"Wirtschafts-Identifikationsnummer der steuerpflichtigen Person"]
[]
[]
[]
[]
[]
[]
[null,null,null,null,null," Ausländische Personengesellschaft",null,null,null,null,null,null,null,null,null,null,null,null,null,null,null,null,null,null,null,null,null,"Lfd. Nr. (3)"]
[]
[]
[null,null,null,null,null," Ausländische Kapitalgesellschaft, Vermögensmasse, Personenvereinigung (8)",null,null,null,null,null,null,null,null,null,null,null,null,null,null,null,null,null,null,null,null,null,"Lfd. Nr. (3)"]
[null,null,null,null,null,null,null,null,null,null,null,null,null,null,null,null,null,null,null,null,null,null,null,null,null,null,null,null,null,null,null,null,null,null,null,null," "]
[]
[null,null," Angaben zur Drittstaat-Gesellschaft"]
[null,null,null,"Firmenname (4)",null,null,null,null,null,null,null,null,null,null,null,null,null,null,null,null,null,null,null,null,null,null,"Rechtsform"]
[]
[null,null,null,"Straße / Hausnummer"]
[]
[null,null,null,"Postleitzahl",null,null,null,null,null,null,"Wohnort / Sitz / Ort der Geschäftsleitung"]
[]
[null,null,null,"Staat"]
[]
[]
[null,null,null,"Sitz: Straße / Hausnummer ****"]
[]
[null,null,null,"Sitz: Postleitzahl ****",null,null,null,null,null,null,"Sitz: Ort ****"]
[]
[null,null,null,"Sitz: Staat ****"]
[]
[]
[null,null,null,"Gründung am"]
[]
[null,null,null,"Art der wirtschaftlichen Tätigkeit / Geschäftszweck"]
[null,null,null,null,null," 1 = Land- und Forstwirtschaft, 2 = Gewerbliche Herstellung und Verarbeitung,\n 3 = Kreditinstitut oder Versicherungsunternehmen, 4 = Handel, 5 = Überlassung von Rechten, Plänen, Mustern,\n 6 = Vermietung und Verpachtung von Grundstücken, 7 = Vermietung und Verpachtung von beweglichen Sachen,\n 8 = Verwaltung, 9 = Kapitalanlage, 10 = Finanzierung, 11 = Sonstige Dienstleistungen, 12 = Holding,\n 13 = Sonstiges (10)"]
[]
[]
[]
[]
[null,null,null,null,"Erläuterungen"]
[]
[]
[]
[]
[]
[]
[]
[]
[]
[]
[]
[]
[]
[]
[]
[]
[]
[]
[]
[]
[null,null,"Anlage: Drittstaat-Gesellschaft; Seite 1"]
[]
[]
[null,null,"010003 - BZSt 2 Mitteilungen nach § 138 Abs. 2 AO - 11/2020"]
[]
[null,null,{"$f":"Header","v":""}]
[null,null,null,"Im Inland steuerlich erfasst beim Finanzamt (6)"]
[]
[]
[null,null,null,"Steuer-Identifikationsnummer bzw.",null,null,null,null,null,null,null,null,null,null,null,null,null,null,null,null,null,null,"Steuernummer ***"]
[null,null,null,"Wirtschafts-Identifikationsnummer ***"]
[]
[]
[]
[]
[null,null,"Bei Beteiligung an der Drittstaat-Gesellschaft (8)"]
[]
[null,null,null,"Ich habe eine Beteiligung an der Drittstaat-Gesellschaft:"]
[null,null,null,null,null," Ja              /",null,null,null,null,null," Nein"]
[null,null,null,"(zutreffendes bitte ankreuzen)"]
[null,null,null,"Anteil am Nominalkapital */ Kapital **   (in Prozent)"]
[]
[]
[null,null,null,"Beteiligt seit dem"]
[]
[]
[]
[]
[]
[]
[]
[]
[]
[]
[]
[]
[]
[]
[]
[]
[]
[]
[]
[]
[]
[]
[]
[]
[]
[]
[]
[]
[]
[]
[]
[]
[]
[]
[]
[]
[]
[]
[]
[]
[null,null,null,"*",null,"Nur bei ausländischen Kapitalgesellschaften anzugeben."]
[null,null,null,"**",null,"Nur bei Beteiligungen an ausländischen Personengesellschaften anzugeben."]
[null,null,null,"***",null,"Angabe nur erforderlich, wenn nicht identisch mit der im Kopf angegebenen Steuer-/Wirtschafts-"]
[null,null,null,null,null,"Identifikationsnummer bzw. Steuernummer."]
[]
[null,null,null,"****",null,"Nur auszufüllen, wenn der Ort des Sitzes vom Ort der Geschäftsleitung abweicht."]
[]
[]
[null,null,"Anlage: Drittstaat-Gesellschaft; Seite 1"]
[]
[]
[]
[null,null,"010003 - BZSt 2 Mitteilungen nach § 138 Abs. 2 AO - 11/2020"]

{"sheet":"Drittstaat 10","index":50,"n_rows":147,"n_cols":37,"rows_kept":147,"cut":false,"hidden":true,"merged":[[142,2,142,33],[146,2,146,33],[89,3,89,13],[90,3,90,20],[91,3,91,17],[91,18,91,31],[93,3,93,8],[94,3,94,8],[83,3,83,21],[83,22,83,31],[85,2,85,21],[87,3,87,21],[88,5,88,9],[88,11,88,15],[77,3,77,31],[38,3,38,9],[39,3,39,31],[41,3,41,7],[42,3,42,8],[43,3,43,19],[44,3,44,4],[44,5,47,32],[54,3,54,31],[70,2,70,33],[73,2,73,33],[75,2,75,32],[76,3,76,16],[37,3,37,8],[37,10,37,31],[28,3,28,31],[29,3,29,7],[29,10,29,20],[30,3,30,8],[30,10,30,31],[31,3,31,6],[32,3,32,31],[34,3,34,13],[35,3,35,31],[36,3,36,9],[36,10,36,15],[27,3,27,11],[16,5,16,15],[18,5,18,26],[18,27,18,29],[18,30,18,31],[21,5,21,26],[21,27,21,29],[21,30,21,31],[24,2,24,21],[25,3,25,13],[25,26,25,31],[26,3,26,24],[26,26,26,31],[2,2,2,32],[3,2,4,32],[6,3,6,16],[7,3,7,29],[14,3,14,21],[14,22,14,31]]}
[]
[]
[null,null,{"$f":"Header","v":""}]
[null,null,"Anlage: Drittstaat-Gesellschaft"]
[]
[]
[null,null,null,"Name / Firma der steuerpflichtigen Person"]
[null,null,null,null,null,null,null,null,null,null,null,null,null,null,null,null,null,null,null,null,null,null,null,null,null,null,null,null,null,null,"20",{"$f":"IF(Jahr=\"\",\"\",Jahr)","v":""}]
[]
[]
[null,null,null,"Steuer-Identifikationsnummer bzw.",null,null,null,null,null,null,null,null,null,null,null,null,null,null,null,null,null,null,"Steuernummer der steuerpflichtigen Person"]
[null,null,null,"Wirtschafts-Identifikationsnummer der steuerpflichtigen Person"]
[]
[]
[]
[]
[]
[]
[null,null,null,null,null," Ausländische Personengesellschaft",null,null,null,null,null,null,null,null,null,null,null,null,null,null,null,null,null,null,null,null,null,"Lfd. Nr. (3)"]
[]
[]
[null,null,null,null,null," Ausländische Kapitalgesellschaft, Vermögensmasse, Personenvereinigung (8)",null,null,null,null,null,null,null,null,null,null,null,null,null,null,null,null,null,null,null,null,null,"Lfd. Nr. (3)"]
[null,null,null,null,null,null,null,null,null,null,null,null,null,null,null,null,null,null,null,null,null,null,null,null,null,null,null,null,null,null,null,null,null,null,null,null," "]
[]
[null,null," Angaben zur Drittstaat-Gesellschaft"]
[null,null,null,"Firmenname (4)",null,null,null,null,null,null,null,null,null,null,null,null,null,null,null,null,null,null,null,null,null,null,"Rechtsform"]
[]
[null,null,null,"Straße / Hausnummer"]
[]
[null,null,null,"Postleitzahl",null,null,null,null,null,null,"Wohnort / Sitz / Ort der Geschäftsleitung"]
[]
[null,null,null,"Staat"]
[]
[]
[null,null,null,"Sitz: Straße / Hausnummer ****"]
[]
[null,null,null,"Sitz: Postleitzahl ****",null,null,null,null,null,null,"Sitz: Ort ****"]
[]
[null,null,null,"Sitz: Staat ****"]
[]
[]
[null,null,null,"Gründung am"]
[]
[null,null,null,"Art der wirtschaftlichen Tätigkeit / Geschäftszweck"]
[null,null,null,null,null," 1 = Land- und Forstwirtschaft, 2 = Gewerbliche Herstellung und Verarbeitung,\n 3 = Kreditinstitut oder Versicherungsunternehmen, 4 = Handel, 5 = Überlassung von Rechten, Plänen, Mustern,\n 6 = Vermietung und Verpachtung von Grundstücken, 7 = Vermietung und Verpachtung von beweglichen Sachen,\n 8 = Verwaltung, 9 = Kapitalanlage, 10 = Finanzierung, 11 = Sonstige Dienstleistungen, 12 = Holding,\n 13 = Sonstiges (10)"]
[]
[]
[]
[]
[null,null,null,null,"Erläuterungen"]
[]
[]
[]
[]
[]
[]
[]
[]
[]
[]
[]
[]
[]
[]
[]
[]
[]
[]
[]
[]
[null,null,"Anlage: Drittstaat-Gesellschaft; Seite 1"]
[]
[]
[null,null,"010003 - BZSt 2 Mitteilungen nach § 138 Abs. 2 AO - 11/2020"]
[]
[null,null,{"$f":"Header","v":""}]
[null,null,null,"Im Inland steuerlich erfasst beim Finanzamt (6)"]
[]
[]
[null,null,null,"Steuer-Identifikationsnummer bzw.",null,null,null,null,null,null,null,null,null,null,null,null,null,null,null,null,null,null,"Steuernummer ***"]
[null,null,null,"Wirtschafts-Identifikationsnummer ***"]
[]
[]
[]
[]
[null,null,"Bei Beteiligung an der Drittstaat-Gesellschaft (8)"]
[]
[null,null,null,"Ich habe eine Beteiligung an der Drittstaat-Gesellschaft:"]
[null,null,null,null,null," Ja              /",null,null,null,null,null," Nein"]
[null,null,null,"(zutreffendes bitte ankreuzen)"]
[null,null,null,"Anteil am Nominalkapital */ Kapital **   (in Prozent)"]
[]
[]
[null,null,null,"Beteiligt seit dem"]
[]
[]
[]
[]
[]
[]
[]
[]
[]
[]
[]
[]
[]
[]
[]
[]
[]
[]
[]
[]
[]
[]
[]
[]
[]
[]
[]
[]
[]
[]
[]
[]
[]
[]
[]
[]
[]
[]
[]
[]
[null,null,null,"*",null,"Nur bei ausländischen Kapitalgesellschaften anzugeben."]
[null,null,null,"**",null,"Nur bei Beteiligungen an ausländischen Personengesellschaften anzugeben."]
[null,null,null,"***",null,"Angabe nur erforderlich, wenn nicht identisch mit der im Kopf angegebenen Steuer-/Wirtschafts-"]
[null,null,null,null,null,"Identifikationsnummer bzw. Steuernummer."]
[]
[null,null,null,"****",null,"Nur auszufüllen, wenn der Ort des Sitzes vom Ort der Geschäftsleitung abweicht."]
[]
[]
[null,null,"Anlage: Drittstaat-Gesellschaft; Seite 1"]
[]
[]
[]
[null,null,"010003 - BZSt 2 Mitteilungen nach § 138 Abs. 2 AO - 11/2020"]

{"sheet":"Drittstaat 11","index":51,"n_rows":147,"n_cols":37,"rows_kept":147,"cut":false,"hidden":true,"merged":[[142,2,142,33],[146,2,146,33],[89,3,89,13],[90,3,90,20],[91,3,91,17],[91,18,91,31],[93,3,93,8],[94,3,94,8],[83,3,83,21],[83,22,83,31],[85,2,85,21],[87,3,87,21],[88,5,88,9],[88,11,88,15],[77,3,77,31],[38,3,38,9],[39,3,39,31],[41,3,41,7],[42,3,42,8],[43,3,43,19],[44,3,44,4],[44,5,47,32],[54,3,54,31],[70,2,70,33],[73,2,73,33],[75,2,75,32],[76,3,76,16],[37,3,37,8],[37,10,37,31],[28,3,28,31],[29,3,29,7],[29,10,29,20],[30,3,30,8],[30,10,30,31],[31,3,31,6],[32,3,32,31],[34,3,34,13],[35,3,35,31],[36,3,36,9],[36,10,36,15],[27,3,27,11],[16,5,16,15],[18,5,18,26],[18,27,18,29],[18,30,18,31],[21,5,21,26],[21,27,21,29],[21,30,21,31],[24,2,24,21],[25,3,25,13],[25,26,25,31],[26,3,26,24],[26,26,26,31],[2,2,2,32],[3,2,4,32],[6,3,6,16],[7,3,7,29],[14,3,14,21],[14,22,14,31]]}
[]
[]
[null,null,{"$f":"Header","v":""}]
[null,null,"Anlage: Drittstaat-Gesellschaft"]
[]
[]
[null,null,null,"Name / Firma der steuerpflichtigen Person"]
[null,null,null,null,null,null,null,null,null,null,null,null,null,null,null,null,null,null,null,null,null,null,null,null,null,null,null,null,null,null,"20",{"$f":"IF(Jahr=\"\",\"\",Jahr)","v":""}]
[]
[]
[null,null,null,"Steuer-Identifikationsnummer bzw.",null,null,null,null,null,null,null,null,null,null,null,null,null,null,null,null,null,null,"Steuernummer der steuerpflichtigen Person"]
[null,null,null,"Wirtschafts-Identifikationsnummer der steuerpflichtigen Person"]
[]
[]
[]
[]
[]
[]
[null,null,null,null,null," Ausländische Personengesellschaft",null,null,null,null,null,null,null,null,null,null,null,null,null,null,null,null,null,null,null,null,null,"Lfd. Nr. (3)"]
[]
[]
[null,null,null,null,null," Ausländische Kapitalgesellschaft, Vermögensmasse, Personenvereinigung (8)",null,null,null,null,null,null,null,null,null,null,null,null,null,null,null,null,null,null,null,null,null,"Lfd. Nr. (3)"]
[null,null,null,null,null,null,null,null,null,null,null,null,null,null,null,null,null,null,null,null,null,null,null,null,null,null,null,null,null,null,null,null,null,null,null,null," "]
[]
[null,null," Angaben zur Drittstaat-Gesellschaft"]
[null,null,null,"Firmenname (4)",null,null,null,null,null,null,null,null,null,null,null,null,null,null,null,null,null,null,null,null,null,null,"Rechtsform"]
[]
[null,null,null,"Straße / Hausnummer"]
[]
[null,null,null,"Postleitzahl",null,null,null,null,null,null,"Wohnort / Sitz / Ort der Geschäftsleitung"]
[]
[null,null,null,"Staat"]
[]
[]
[null,null,null,"Sitz: Straße / Hausnummer ****"]
[]
[null,null,null,"Sitz: Postleitzahl ****",null,null,null,null,null,null,"Sitz: Ort ****"]
[]
[null,null,null,"Sitz: Staat ****"]
[]
[]
[null,null,null,"Gründung am"]
[]
[null,null,null,"Art der wirtschaftlichen Tätigkeit / Geschäftszweck"]
[null,null,null,null,null," 1 = Land- und Forstwirtschaft, 2 = Gewerbliche Herstellung und Verarbeitung,\n 3 = Kreditinstitut oder Versicherungsunternehmen, 4 = Handel, 5 = Überlassung von Rechten, Plänen, Mustern,\n 6 = Vermietung und Verpachtung von Grundstücken, 7 = Vermietung und Verpachtung von beweglichen Sachen,\n 8 = Verwaltung, 9 = Kapitalanlage, 10 = Finanzierung, 11 = Sonstige Dienstleistungen, 12 = Holding,\n 13 = Sonstiges (10)"]
[]
[]
[]
[]
[null,null,null,null,"Erläuterungen"]
[]
[]
[]
[]
[]
[]
[]
[]
[]
[]
[]
[]
[]
[]
[]
[]
[]
[]
[]
[]
[null,null,"Anlage: Drittstaat-Gesellschaft; Seite 1"]
[]
[]
[null,null,"010003 - BZSt 2 Mitteilungen nach § 138 Abs. 2 AO - 11/2020"]
[]
[null,null,{"$f":"Header","v":""}]
[null,null,null,"Im Inland steuerlich erfasst beim Finanzamt (6)"]
[]
[]
[null,null,null,"Steuer-Identifikationsnummer bzw.",null,null,null,null,null,null,null,null,null,null,null,null,null,null,null,null,null,null,"Steuernummer ***"]
[null,null,null,"Wirtschafts-Identifikationsnummer ***"]
[]
[]
[]
[]
[null,null,"Bei Beteiligung an der Drittstaat-Gesellschaft (8)"]
[]
[null,null,null,"Ich habe eine Beteiligung an der Drittstaat-Gesellschaft:"]
[null,null,null,null,null," Ja              /",null,null,null,null,null," Nein"]
[null,null,null,"(zutreffendes bitte ankreuzen)"]
[null,null,null,"Anteil am Nominalkapital */ Kapital **   (in Prozent)"]
[]
[]
[null,null,null,"Beteiligt seit dem"]
[]
[]
[]
[]
[]
[]
[]
[]
[]
[]
[]
[]
[]
[]
[]
[]
[]
[]
[]
[]
[]
[]
[]
[]
[]
[]
[]
[]
[]
[]
[]
[]
[]
[]
[]
[]
[]
[]
[]
[]
[null,null,null,"*",null,"Nur bei ausländischen Kapitalgesellschaften anzugeben."]
[null,null,null,"**",null,"Nur bei Beteiligungen an ausländischen Personengesellschaften anzugeben."]
[null,null,null,"***",null,"Angabe nur erforderlich, wenn nicht identisch mit der im Kopf angegebenen Steuer-/Wirtschafts-"]
[null,null,null,null,null,"Identifikationsnummer bzw. Steuernummer."]
[]
[null,null,null,"****",null,"Nur auszufüllen, wenn der Ort des Sitzes vom Ort der Geschäftsleitung abweicht."]
[]
[]
[null,null,"Anlage: Drittstaat-Gesellschaft; Seite 1"]
[]
[]
[]
[null,null,"010003 - BZSt 2 Mitteilungen nach § 138 Abs. 2 AO - 11/2020"]

{"sheet":"Drittstaat 12","index":52,"n_rows":147,"n_cols":37,"rows_kept":147,"cut":false,"hidden":true,"merged":[[142,2,142,33],[146,2,146,33],[89,3,89,13],[90,3,90,20],[91,3,91,17],[91,18,91,31],[93,3,93,8],[94,3,94,8],[83,3,83,21],[83,22,83,31],[85,2,85,21],[87,3,87,21],[88,5,88,9],[88,11,88,15],[77,3,77,31],[38,3,38,9],[39,3,39,31],[41,3,41,7],[42,3,42,8],[43,3,43,19],[44,3,44,4],[44,5,47,32],[54,3,54,31],[70,2,70,33],[73,2,73,33],[75,2,75,32],[76,3,76,16],[37,3,37,8],[37,10,37,31],[28,3,28,31],[29,3,29,7],[29,10,29,20],[30,3,30,8],[30,10,30,31],[31,3,31,6],[32,3,32,31],[34,3,34,13],[35,3,35,31],[36,3,36,9],[36,10,36,15],[27,3,27,11],[16,5,16,15],[18,5,18,26],[18,27,18,29],[18,30,18,31],[21,5,21,26],[21,27,21,29],[21,30,21,31],[24,2,24,21],[25,3,25,13],[25,26,25,31],[26,3,26,24],[26,26,26,31],[2,2,2,32],[3,2,4,32],[6,3,6,16],[7,3,7,29],[14,3,14,21],[14,22,14,31]]}
[]
[]
[null,null,{"$f":"Header","v":""}]
[null,null,"Anlage: Drittstaat-Gesellschaft"]
[]
[]
[null,null,null,"Name / Firma der steuerpflichtigen Person"]
[null,null,null,null,null,null,null,null,null,null,null,null,null,null,null,null,null,null,null,null,null,null,null,null,null,null,null,null,null,null,"20",{"$f":"IF(Jahr=\"\",\"\",Jahr)","v":""}]
[]
[]
[null,null,null,"Steuer-Identifikationsnummer bzw.",null,null,null,null,null,null,null,null,null,null,null,null,null,null,null,null,null,null,"Steuernummer der steuerpflichtigen Person"]
[null,null,null,"Wirtschafts-Identifikationsnummer der steuerpflichtigen Person"]
[]
[]
[]
[]
[]
[]
[null,null,null,null,null," Ausländische Personengesellschaft",null,null,null,null,null,null,null,null,null,null,null,null,null,null,null,null,null,null,null,null,null,"Lfd. Nr. (3)"]
[]
[]
[null,null,null,null,null," Ausländische Kapitalgesellschaft, Vermögensmasse, Personenvereinigung (8)",null,null,null,null,null,null,null,null,null,null,null,null,null,null,null,null,null,null,null,null,null,"Lfd. Nr. (3)"]
[null,null,null,null,null,null,null,null,null,null,null,null,null,null,null,null,null,null,null,null,null,null,null,null,null,null,null,null,null,null,null,null,null,null,null,null," "]
[]
[null,null," Angaben zur Drittstaat-Gesellschaft"]
[null,null,null,"Firmenname (4)",null,null,null,null,null,null,null,null,null,null,null,null,null,null,null,null,null,null,null,null,null,null,"Rechtsform"]
[]
[null,null,null,"Straße / Hausnummer"]
[]
[null,null,null,"Postleitzahl",null,null,null,null,null,null,"Wohnort / Sitz / Ort der Geschäftsleitung"]
[]
[null,null,null,"Staat"]
[]
[]
[null,null,null,"Sitz: Straße / Hausnummer ****"]
[]
[null,null,null,"Sitz: Postleitzahl ****",null,null,null,null,null,null,"Sitz: Ort ****"]
[]
[null,null,null,"Sitz: Staat ****"]
[]
[]
[null,null,null,"Gründung am"]
[]
[null,null,null,"Art der wirtschaftlichen Tätigkeit / Geschäftszweck"]
[null,null,null,null,null," 1 = Land- und Forstwirtschaft, 2 = Gewerbliche Herstellung und Verarbeitung,\n 3 = Kreditinstitut oder Versicherungsunternehmen, 4 = Handel, 5 = Überlassung von Rechten, Plänen, Mustern,\n 6 = Vermietung und Verpachtung von Grundstücken, 7 = Vermietung und Verpachtung von beweglichen Sachen,\n 8 = Verwaltung, 9 = Kapitalanlage, 10 = Finanzierung, 11 = Sonstige Dienstleistungen, 12 = Holding,\n 13 = Sonstiges (10)"]
[]
[]
[]
[]
[null,null,null,null,"Erläuterungen"]
[]
[]
[]
[]
[]
[]
[]
[]
[]
[]
[]
[]
[]
[]
[]
[]
[]
[]
[]
[]
[null,null,"Anlage: Drittstaat-Gesellschaft; Seite 1"]
[]
[]
[null,null,"010003 - BZSt 2 Mitteilungen nach § 138 Abs. 2 AO - 11/2020"]
[]
[null,null,{"$f":"Header","v":""}]
[null,null,null,"Im Inland steuerlich erfasst beim Finanzamt (6)"]
[]
[]
[null,null,null,"Steuer-Identifikationsnummer bzw.",null,null,null,null,null,null,null,null,null,null,null,null,null,null,null,null,null,null,"Steuernummer ***"]
[null,null,null,"Wirtschafts-Identifikationsnummer ***"]
[]
[]
[]
[]
[null,null,"Bei Beteiligung an der Drittstaat-Gesellschaft (8)"]
[]
[null,null,null,"Ich habe eine Beteiligung an der Drittstaat-Gesellschaft:"]
[null,null,null,null,null," Ja              /",null,null,null,null,null," Nein"]
[null,null,null,"(zutreffendes bitte ankreuzen)"]
[null,null,null,"Anteil am Nominalkapital */ Kapital **   (in Prozent)"]
[]
[]
[null,null,null,"Beteiligt seit dem"]
[]
[]
[]
[]
[]
[]
[]
[]
[]
[]
[]
[]
[]
[]
[]
[]
[]
[]
[]
[]
[]
[]
[]
[]
[]
[]
[]
[]
[]
[]
[]
[]
[]
[]
[]
[]
[]
[]
[]
[]
[null,null,null,"*",null,"Nur bei ausländischen Kapitalgesellschaften anzugeben."]
[null,null,null,"**",null,"Nur bei Beteiligungen an ausländischen Personengesellschaften anzugeben."]
[null,null,null,"***",null,"Angabe nur erforderlich, wenn nicht identisch mit der im Kopf angegebenen Steuer-/Wirtschafts-"]
[null,null,null,null,null,"Identifikationsnummer bzw. Steuernummer."]
[]
[null,null,null,"****",null,"Nur auszufüllen, wenn der Ort des Sitzes vom Ort der Geschäftsleitung abweicht."]
[]
[]
[null,null,"Anlage: Drittstaat-Gesellschaft; Seite 1"]
[]
[]
[]
[null,null,"010003 - BZSt 2 Mitteilungen nach § 138 Abs. 2 AO - 11/2020"]

{"sheet":"Drittstaat 13","index":53,"n_rows":147,"n_cols":37,"rows_kept":147,"cut":false,"hidden":true,"merged":[[142,2,142,33],[146,2,146,33],[89,3,89,13],[90,3,90,20],[91,3,91,17],[91,18,91,31],[93,3,93,8],[94,3,94,8],[83,3,83,21],[83,22,83,31],[85,2,85,21],[87,3,87,21],[88,5,88,9],[88,11,88,15],[77,3,77,31],[38,3,38,9],[39,3,39,31],[41,3,41,7],[42,3,42,8],[43,3,43,19],[44,3,44,4],[44,5,47,32],[54,3,54,31],[70,2,70,33],[73,2,73,33],[75,2,75,32],[76,3,76,16],[37,3,37,8],[37,10,37,31],[28,3,28,31],[29,3,29,7],[29,10,29,20],[30,3,30,8],[30,10,30,31],[31,3,31,6],[32,3,32,31],[34,3,34,13],[35,3,35,31],[36,3,36,9],[36,10,36,15],[27,3,27,11],[16,5,16,15],[18,5,18,26],[18,27,18,29],[18,30,18,31],[21,5,21,26],[21,27,21,29],[21,30,21,31],[24,2,24,21],[25,3,25,13],[25,26,25,31],[26,3,26,24],[26,26,26,31],[2,2,2,32],[3,2,4,32],[6,3,6,16],[7,3,7,29],[14,3,14,21],[14,22,14,31]]}
[]
[]
[null,null,{"$f":"Header","v":""}]
[null,null,"Anlage: Drittstaat-Gesellschaft"]
[]
[]
[null,null,null,"Name / Firma der steuerpflichtigen Person"]
[null,null,null,null,null,null,null,null,null,null,null,null,null,null,null,null,null,null,null,null,null,null,null,null,null,null,null,null,null,null,"20",{"$f":"IF(Jahr=\"\",\"\",Jahr)","v":""}]
[]
[]
[null,null,null,"Steuer-Identifikationsnummer bzw.",null,null,null,null,null,null,null,null,null,null,null,null,null,null,null,null,null,null,"Steuernummer der steuerpflichtigen Person"]
[null,null,null,"Wirtschafts-Identifikationsnummer der steuerpflichtigen Person"]
[]
[]
[]
[]
[]
[]
[null,null,null,null,null," Ausländische Personengesellschaft",null,null,null,null,null,null,null,null,null,null,null,null,null,null,null,null,null,null,null,null,null,"Lfd. Nr. (3)"]
[]
[]
[null,null,null,null,null," Ausländische Kapitalgesellschaft, Vermögensmasse, Personenvereinigung (8)",null,null,null,null,null,null,null,null,null,null,null,null,null,null,null,null,null,null,null,null,null,"Lfd. Nr. (3)"]
[null,null,null,null,null,null,null,null,null,null,null,null,null,null,null,null,null,null,null,null,null,null,null,null,null,null,null,null,null,null,null,null,null,null,null,null," "]
[]
[null,null," Angaben zur Drittstaat-Gesellschaft"]
[null,null,null,"Firmenname (4)",null,null,null,null,null,null,null,null,null,null,null,null,null,null,null,null,null,null,null,null,null,null,"Rechtsform"]
[]
[null,null,null,"Straße / Hausnummer"]
[]
[null,null,null,"Postleitzahl",null,null,null,null,null,null,"Wohnort / Sitz / Ort der Geschäftsleitung"]
[]
[null,null,null,"Staat"]
[]
[]
[null,null,null,"Sitz: Straße / Hausnummer ****"]
[]
[null,null,null,"Sitz: Postleitzahl ****",null,null,null,null,null,null,"Sitz: Ort ****"]
[]
[null,null,null,"Sitz: Staat ****"]
[]
[]
[null,null,null,"Gründung am"]
[]
[null,null,null,"Art der wirtschaftlichen Tätigkeit / Geschäftszweck"]
[null,null,null,null,null," 1 = Land- und Forstwirtschaft, 2 = Gewerbliche Herstellung und Verarbeitung,\n 3 = Kreditinstitut oder Versicherungsunternehmen, 4 = Handel, 5 = Überlassung von Rechten, Plänen, Mustern,\n 6 = Vermietung und Verpachtung von Grundstücken, 7 = Vermietung und Verpachtung von beweglichen Sachen,\n 8 = Verwaltung, 9 = Kapitalanlage, 10 = Finanzierung, 11 = Sonstige Dienstleistungen, 12 = Holding,\n 13 = Sonstiges (10)"]
[]
[]
[]
[]
[null,null,null,null,"Erläuterungen"]
[]
[]
[]
[]
[]
[]
[]
[]
[]
[]
[]
[]
[]
[]
[]
[]
[]
[]
[]
[]
[null,null,"Anlage: Drittstaat-Gesellschaft; Seite 1"]
[]
[]
[null,null,"010003 - BZSt 2 Mitteilungen nach § 138 Abs. 2 AO - 11/2020"]
[]
[null,null,{"$f":"Header","v":""}]
[null,null,null,"Im Inland steuerlich erfasst beim Finanzamt (6)"]
[]
[]
[null,null,null,"Steuer-Identifikationsnummer bzw.",null,null,null,null,null,null,null,null,null,null,null,null,null,null,null,null,null,null,"Steuernummer ***"]
[null,null,null,"Wirtschafts-Identifikationsnummer ***"]
[]
[]
[]
[]
[null,null,"Bei Beteiligung an der Drittstaat-Gesellschaft (8)"]
[]
[null,null,null,"Ich habe eine Beteiligung an der Drittstaat-Gesellschaft:"]
[null,null,null,null,null," Ja              /",null,null,null,null,null," Nein"]
[null,null,null,"(zutreffendes bitte ankreuzen)"]
[null,null,null,"Anteil am Nominalkapital */ Kapital **   (in Prozent)"]
[]
[]
[null,null,null,"Beteiligt seit dem"]
[]
[]
[]
[]
[]
[]
[]
[]
[]
[]
[]
[]
[]
[]
[]
[]
[]
[]
[]
[]
[]
[]
[]
[]
[]
[]
[]
[]
[]
[]
[]
[]
[]
[]
[]
[]
[]
[]
[]
[]
[null,null,null,"*",null,"Nur bei ausländischen Kapitalgesellschaften anzugeben."]
[null,null,null,"**",null,"Nur bei Beteiligungen an ausländischen Personengesellschaften anzugeben."]
[null,null,null,"***",null,"Angabe nur erforderlich, wenn nicht identisch mit der im Kopf angegebenen Steuer-/Wirtschafts-"]
[null,null,null,null,null,"Identifikationsnummer bzw. Steuernummer."]
[]
[null,null,null,"****",null,"Nur auszufüllen, wenn der Ort des Sitzes vom Ort der Geschäftsleitung abweicht."]
[]
[]
[null,null,"Anlage: Drittstaat-Gesellschaft; Seite 1"]
[]
[]
[]
[null,null,"010003 - BZSt 2 Mitteilungen nach § 138 Abs. 2 AO - 11/2020"]

{"sheet":"Drittstaat 14","index":54,"n_rows":147,"n_cols":37,"rows_kept":147,"cut":false,"hidden":true,"merged":[[142,2,142,33],[146,2,146,33],[89,3,89,13],[90,3,90,20],[91,3,91,17],[91,18,91,31],[93,3,93,8],[94,3,94,8],[83,3,83,21],[83,22,83,31],[85,2,85,21],[87,3,87,21],[88,5,88,9],[88,11,88,15],[77,3,77,31],[38,3,38,9],[39,3,39,31],[41,3,41,7],[42,3,42,8],[43,3,43,19],[44,3,44,4],[44,5,47,32],[54,3,54,31],[70,2,70,33],[73,2,73,33],[75,2,75,32],[76,3,76,16],[37,3,37,8],[37,10,37,31],[28,3,28,31],[29,3,29,7],[29,10,29,20],[30,3,30,8],[30,10,30,31],[31,3,31,6],[32,3,32,31],[34,3,34,13],[35,3,35,31],[36,3,36,9],[36,10,36,15],[27,3,27,11],[16,5,16,15],[18,5,18,26],[18,27,18,29],[18,30,18,31],[21,5,21,26],[21,27,21,29],[21,30,21,31],[24,2,24,21],[25,3,25,13],[25,26,25,31],[26,3,26,24],[26,26,26,31],[2,2,2,32],[3,2,4,32],[6,3,6,16],[7,3,7,29],[14,3,14,21],[14,22,14,31]]}
[]
[]
[null,null,{"$f":"Header","v":""}]
[null,null,"Anlage: Drittstaat-Gesellschaft"]
[]
[]
[null,null,null,"Name / Firma der steuerpflichtigen Person"]
[null,null,null,null,null,null,null,null,null,null,null,null,null,null,null,null,null,null,null,null,null,null,null,null,null,null,null,null,null,null,"20",{"$f":"IF(Jahr=\"\",\"\",Jahr)","v":""}]
[]
[]
[null,null,null,"Steuer-Identifikationsnummer bzw.",null,null,null,null,null,null,null,null,null,null,null,null,null,null,null,null,null,null,"Steuernummer der steuerpflichtigen Person"]
[null,null,null,"Wirtschafts-Identifikationsnummer der steuerpflichtigen Person"]
[]
[]
[]
[]
[]
[]
[null,null,null,null,null," Ausländische Personengesellschaft",null,null,null,null,null,null,null,null,null,null,null,null,null,null,null,null,null,null,null,null,null,"Lfd. Nr. (3)"]
[]
[]
[null,null,null,null,null," Ausländische Kapitalgesellschaft, Vermögensmasse, Personenvereinigung (8)",null,null,null,null,null,null,null,null,null,null,null,null,null,null,null,null,null,null,null,null,null,"Lfd. Nr. (3)"]
[null,null,null,null,null,null,null,null,null,null,null,null,null,null,null,null,null,null,null,null,null,null,null,null,null,null,null,null,null,null,null,null,null,null,null,null," "]
[]
[null,null," Angaben zur Drittstaat-Gesellschaft"]
[null,null,null,"Firmenname (4)",null,null,null,null,null,null,null,null,null,null,null,null,null,null,null,null,null,null,null,null,null,null,"Rechtsform"]
[]
[null,null,null,"Straße / Hausnummer"]
[]
[null,null,null,"Postleitzahl",null,null,null,null,null,null,"Wohnort / Sitz / Ort der Geschäftsleitung"]
[]
[null,null,null,"Staat"]
[]
[]
[null,null,null,"Sitz: Straße / Hausnummer ****"]
[]
[null,null,null,"Sitz: Postleitzahl ****",null,null,null,null,null,null,"Sitz: Ort ****"]
[]
[null,null,null,"Sitz: Staat ****"]
[]
[]
[null,null,null,"Gründung am"]
[]
[null,null,null,"Art der wirtschaftlichen Tätigkeit / Geschäftszweck"]
[null,null,null,null,null," 1 = Land- und Forstwirtschaft, 2 = Gewerbliche Herstellung und Verarbeitung,\n 3 = Kreditinstitut oder Versicherungsunternehmen, 4 = Handel, 5 = Überlassung von Rechten, Plänen, Mustern,\n 6 = Vermietung und Verpachtung von Grundstücken, 7 = Vermietung und Verpachtung von beweglichen Sachen,\n 8 = Verwaltung, 9 = Kapitalanlage, 10 = Finanzierung, 11 = Sonstige Dienstleistungen, 12 = Holding,\n 13 = Sonstiges (10)"]
[]
[]
[]
[]
[null,null,null,null,"Erläuterungen"]
[]
[]
[]
[]
[]
[]
[]
[]
[]
[]
[]
[]
[]
[]
[]
[]
[]
[]
[]
[]
[null,null,"Anlage: Drittstaat-Gesellschaft; Seite 1"]
[]
[]
[null,null,"010003 - BZSt 2 Mitteilungen nach § 138 Abs. 2 AO - 11/2020"]
[]
[null,null,{"$f":"Header","v":""}]
[null,null,null,"Im Inland steuerlich erfasst beim Finanzamt (6)"]
[]
[]
[null,null,null,"Steuer-Identifikationsnummer bzw.",null,null,null,null,null,null,null,null,null,null,null,null,null,null,null,null,null,null,"Steuernummer ***"]
[null,null,null,"Wirtschafts-Identifikationsnummer ***"]
[]
[]
[]
[]
[null,null,"Bei Beteiligung an der Drittstaat-Gesellschaft (8)"]
[]
[null,null,null,"Ich habe eine Beteiligung an der Drittstaat-Gesellschaft:"]
[null,null,null,null,null," Ja              /",null,null,null,null,null," Nein"]
[null,null,null,"(zutreffendes bitte ankreuzen)"]
[null,null,null,"Anteil am Nominalkapital */ Kapital **   (in Prozent)"]
[]
[]
[null,null,null,"Beteiligt seit dem"]
[]
[]
[]
[]
[]
[]
[]
[]
[]
[]
[]
[]
[]
[]
[]
[]
[]
[]
[]
[]
[]
[]
[]
[]
[]
[]
[]
[]
[]
[]
[]
[]
[]
[]
[]
[]
[]
[]
[]
[]
[null,null,null,"*",null,"Nur bei ausländischen Kapitalgesellschaften anzugeben."]
[null,null,null,"**",null,"Nur bei Beteiligungen an ausländischen Personengesellschaften anzugeben."]
[null,null,null,"***",null,"Angabe nur erforderlich, wenn nicht identisch mit der im Kopf angegebenen Steuer-/Wirtschafts-"]
[null,null,null,null,null,"Identifikationsnummer bzw. Steuernummer."]
[]
[null,null,null,"****",null,"Nur auszufüllen, wenn der Ort des Sitzes vom Ort der Geschäftsleitung abweicht."]
[]
[]
[null,null,"Anlage: Drittstaat-Gesellschaft; Seite 1"]
[]
[]
[]
[null,null,"010003 - BZSt 2 Mitteilungen nach § 138 Abs. 2 AO - 11/2020"]

{"sheet":"Drittstaat 15","index":55,"n_rows":147,"n_cols":37,"rows_kept":147,"cut":false,"hidden":true,"merged":[[142,2,142,33],[146,2,146,33],[89,3,89,13],[90,3,90,20],[91,3,91,17],[91,18,91,31],[93,3,93,8],[94,3,94,8],[83,3,83,21],[83,22,83,31],[85,2,85,21],[87,3,87,21],[88,5,88,9],[88,11,88,15],[77,3,77,31],[38,3,38,9],[39,3,39,31],[41,3,41,7],[42,3,42,8],[43,3,43,19],[44,3,44,4],[44,5,47,32],[54,3,54,31],[70,2,70,33],[73,2,73,33],[75,2,75,32],[76,3,76,16],[37,3,37,8],[37,10,37,31],[28,3,28,31],[29,3,29,7],[29,10,29,20],[30,3,30,8],[30,10,30,31],[31,3,31,6],[32,3,32,31],[34,3,34,13],[35,3,35,31],[36,3,36,9],[36,10,36,15],[27,3,27,11],[16,5,16,15],[18,5,18,26],[18,27,18,29],[18,30,18,31],[21,5,21,26],[21,27,21,29],[21,30,21,31],[24,2,24,21],[25,3,25,13],[25,26,25,31],[26,3,26,24],[26,26,26,31],[2,2,2,32],[3,2,4,32],[6,3,6,16],[7,3,7,29],[14,3,14,21],[14,22,14,31]]}
[]
[]
[null,null,{"$f":"Header","v":""}]
[null,null,"Anlage: Drittstaat-Gesellschaft"]
[]
[]
[null,null,null,"Name / Firma der steuerpflichtigen Person"]
[null,null,null,null,null,null,null,null,null,null,null,null,null,null,null,null,null,null,null,null,null,null,null,null,null,null,null,null,null,null,"20",{"$f":"IF(Jahr=\"\",\"\",Jahr)","v":""}]
[]
[]
[null,null,null,"Steuer-Identifikationsnummer bzw.",null,null,null,null,null,null,null,null,null,null,null,null,null,null,null,null,null,null,"Steuernummer der steuerpflichtigen Person"]
[null,null,null,"Wirtschafts-Identifikationsnummer der steuerpflichtigen Person"]
[]
[]
[]
[]
[]
[]
[null,null,null,null,null," Ausländische Personengesellschaft",null,null,null,null,null,null,null,null,null,null,null,null,null,null,null,null,null,null,null,null,null,"Lfd. Nr. (3)"]
[]
[]
[null,null,null,null,null," Ausländische Kapitalgesellschaft, Vermögensmasse, Personenvereinigung (8)",null,null,null,null,null,null,null,null,null,null,null,null,null,null,null,null,null,null,null,null,null,"Lfd. Nr. (3)"]
[null,null,null,null,null,null,null,null,null,null,null,null,null,null,null,null,null,null,null,null,null,null,null,null,null,null,null,null,null,null,null,null,null,null,null,null," "]
[]
[null,null," Angaben zur Drittstaat-Gesellschaft"]
[null,null,null,"Firmenname (4)",null,null,null,null,null,null,null,null,null,null,null,null,null,null,null,null,null,null,null,null,null,null,"Rechtsform"]
[]
[null,null,null,"Straße / Hausnummer"]
[]
[null,null,null,"Postleitzahl",null,null,null,null,null,null,"Wohnort / Sitz / Ort der Geschäftsleitung"]
[]
[null,null,null,"Staat"]
[]
[]
[null,null,null,"Sitz: Straße / Hausnummer ****"]
[]
[null,null,null,"Sitz: Postleitzahl ****",null,null,null,null,null,null,"Sitz: Ort ****"]
[]
[null,null,null,"Sitz: Staat ****"]
[]
[]
[null,null,null,"Gründung am"]
[]
[null,null,null,"Art der wirtschaftlichen Tätigkeit / Geschäftszweck"]
[null,null,null,null,null," 1 = Land- und Forstwirtschaft, 2 = Gewerbliche Herstellung und Verarbeitung,\n 3 = Kreditinstitut oder Versicherungsunternehmen, 4 = Handel, 5 = Überlassung von Rechten, Plänen, Mustern,\n 6 = Vermietung und Verpachtung von Grundstücken, 7 = Vermietung und Verpachtung von beweglichen Sachen,\n 8 = Verwaltung, 9 = Kapitalanlage, 10 = Finanzierung, 11 = Sonstige Dienstleistungen, 12 = Holding,\n 13 = Sonstiges (10)"]
[]
[]
[]
[]
[null,null,null,null,"Erläuterungen"]
[]
[]
[]
[]
[]
[]
[]
[]
[]
[]
[]
[]
[]
[]
[]
[]
[]
[]
[]
[]
[null,null,"Anlage: Drittstaat-Gesellschaft; Seite 1"]
[]
[]
[null,null,"010003 - BZSt 2 Mitteilungen nach § 138 Abs. 2 AO - 11/2020"]
[]
[null,null,{"$f":"Header","v":""}]
[null,null,null,"Im Inland steuerlich erfasst beim Finanzamt (6)"]
[]
[]
[null,null,null,"Steuer-Identifikationsnummer bzw.",null,null,null,null,null,null,null,null,null,null,null,null,null,null,null,null,null,null,"Steuernummer ***"]
[null,null,null,"Wirtschafts-Identifikationsnummer ***"]
[]
[]
[]
[]
[null,null,"Bei Beteiligung an der Drittstaat-Gesellschaft (8)"]
[]
[null,null,null,"Ich habe eine Beteiligung an der Drittstaat-Gesellschaft:"]
[null,null,null,null,null," Ja              /",null,null,null,null,null," Nein"]
[null,null,null,"(zutreffendes bitte ankreuzen)"]
[null,null,null,"Anteil am Nominalkapital */ Kapital **   (in Prozent)"]
[]
[]
[null,null,null,"Beteiligt seit dem"]
[]
[]
[]
[]
[]
[]
[]
[]
[]
[]
[]
[]
[]
[]
[]
[]
[]
[]
[]
[]
[]
[]
[]
[]
[]
[]
[]
[]
[]
[]
[]
[]
[]
[]
[]
[]
[]
[]
[]
[]
[null,null,null,"*",null,"Nur bei ausländischen Kapitalgesellschaften anzugeben."]
[null,null,null,"**",null,"Nur bei Beteiligungen an ausländischen Personengesellschaften anzugeben."]
[null,null,null,"***",null,"Angabe nur erforderlich, wenn nicht identisch mit der im Kopf angegebenen Steuer-/Wirtschafts-"]
[null,null,null,null,null,"Identifikationsnummer bzw. Steuernummer."]
[]
[null,null,null,"****",null,"Nur auszufüllen, wenn der Ort des Sitzes vom Ort der Geschäftsleitung abweicht."]
[]
[]
[null,null,"Anlage: Drittstaat-Gesellschaft; Seite 1"]
[]
[]
[]
[null,null,"010003 - BZSt 2 Mitteilungen nach § 138 Abs. 2 AO - 11/2020"]

{"sheet":"Drittstaat 16","index":56,"n_rows":147,"n_cols":37,"rows_kept":147,"cut":false,"hidden":true,"merged":[[142,2,142,33],[146,2,146,33],[89,3,89,13],[90,3,90,20],[91,3,91,17],[91,18,91,31],[93,3,93,8],[94,3,94,8],[83,3,83,21],[83,22,83,31],[85,2,85,21],[87,3,87,21],[88,5,88,9],[88,11,88,15],[77,3,77,31],[38,3,38,9],[39,3,39,31],[41,3,41,7],[42,3,42,8],[43,3,43,19],[44,3,44,4],[44,5,47,32],[54,3,54,31],[70,2,70,33],[73,2,73,33],[75,2,75,32],[76,3,76,16],[37,3,37,8],[37,10,37,31],[28,3,28,31],[29,3,29,7],[29,10,29,20],[30,3,30,8],[30,10,30,31],[31,3,31,6],[32,3,32,31],[34,3,34,13],[35,3,35,31],[36,3,36,9],[36,10,36,15],[27,3,27,11],[16,5,16,15],[18,5,18,26],[18,27,18,29],[18,30,18,31],[21,5,21,26],[21,27,21,29],[21,30,21,31],[24,2,24,21],[25,3,25,13],[25,26,25,31],[26,3,26,24],[26,26,26,31],[2,2,2,32],[3,2,4,32],[6,3,6,16],[7,3,7,29],[14,3,14,21],[14,22,14,31]]}
[]
[]
[null,null,{"$f":"Header","v":""}]
[null,null,"Anlage: Drittstaat-Gesellschaft"]
[]
[]
[null,null,null,"Name / Firma der steuerpflichtigen Person"]
[null,null,null,null,null,null,null,null,null,null,null,null,null,null,null,null,null,null,null,null,null,null,null,null,null,null,null,null,null,null,"20",{"$f":"IF(Jahr=\"\",\"\",Jahr)","v":""}]
[]
[]
[null,null,null,"Steuer-Identifikationsnummer bzw.",null,null,null,null,null,null,null,null,null,null,null,null,null,null,null,null,null,null,"Steuernummer der steuerpflichtigen Person"]
[null,null,null,"Wirtschafts-Identifikationsnummer der steuerpflichtigen Person"]
[]
[]
[]
[]
[]
[]
[null,null,null,null,null," Ausländische Personengesellschaft",null,null,null,null,null,null,null,null,null,null,null,null,null,null,null,null,null,null,null,null,null,"Lfd. Nr. (3)"]
[]
[]
[null,null,null,null,null," Ausländische Kapitalgesellschaft, Vermögensmasse, Personenvereinigung (8)",null,null,null,null,null,null,null,null,null,null,null,null,null,null,null,null,null,null,null,null,null,"Lfd. Nr. (3)"]
[null,null,null,null,null,null,null,null,null,null,null,null,null,null,null,null,null,null,null,null,null,null,null,null,null,null,null,null,null,null,null,null,null,null,null,null," "]
[]
[null,null," Angaben zur Drittstaat-Gesellschaft"]
[null,null,null,"Firmenname (4)",null,null,null,null,null,null,null,null,null,null,null,null,null,null,null,null,null,null,null,null,null,null,"Rechtsform"]
[]
[null,null,null,"Straße / Hausnummer"]
[]
[null,null,null,"Postleitzahl",null,null,null,null,null,null,"Wohnort / Sitz / Ort der Geschäftsleitung"]
[]
[null,null,null,"Staat"]
[]
[]
[null,null,null,"Sitz: Straße / Hausnummer ****"]
[]
[null,null,null,"Sitz: Postleitzahl ****",null,null,null,null,null,null,"Sitz: Ort ****"]
[]
[null,null,null,"Sitz: Staat ****"]
[]
[]
[null,null,null,"Gründung am"]
[]
[null,null,null,"Art der wirtschaftlichen Tätigkeit / Geschäftszweck"]
[null,null,null,null,null," 1 = Land- und Forstwirtschaft, 2 = Gewerbliche Herstellung und Verarbeitung,\n 3 = Kreditinstitut oder Versicherungsunternehmen, 4 = Handel, 5 = Überlassung von Rechten, Plänen, Mustern,\n 6 = Vermietung und Verpachtung von Grundstücken, 7 = Vermietung und Verpachtung von beweglichen Sachen,\n 8 = Verwaltung, 9 = Kapitalanlage, 10 = Finanzierung, 11 = Sonstige Dienstleistungen, 12 = Holding,\n 13 = Sonstiges (10)"]
[]
[]
[]
[]
[null,null,null,null,"Erläuterungen"]
[]
[]
[]
[]
[]
[]
[]
[]
[]
[]
[]
[]
[]
[]
[]
[]
[]
[]
[]
[]
[null,null,"Anlage: Drittstaat-Gesellschaft; Seite 1"]
[]
[]
[null,null,"010003 - BZSt 2 Mitteilungen nach § 138 Abs. 2 AO - 11/2020"]
[]
[null,null,{"$f":"Header","v":""}]
[null,null,null,"Im Inland steuerlich erfasst beim Finanzamt (6)"]
[]
[]
[null,null,null,"Steuer-Identifikationsnummer bzw.",null,null,null,null,null,null,null,null,null,null,null,null,null,null,null,null,null,null,"Steuernummer ***"]
[null,null,null,"Wirtschafts-Identifikationsnummer ***"]
[]
[]
[]
[]
[null,null,"Bei Beteiligung an der Drittstaat-Gesellschaft (8)"]
[]
[null,null,null,"Ich habe eine Beteiligung an der Drittstaat-Gesellschaft:"]
[null,null,null,null,null," Ja              /",null,null,null,null,null," Nein"]
[null,null,null,"(zutreffendes bitte ankreuzen)"]
[null,null,null,"Anteil am Nominalkapital */ Kapital **   (in Prozent)"]
[]
[]
[null,null,null,"Beteiligt seit dem"]
[]
[]
[]
[]
[]
[]
[]
[]
[]
[]
[]
[]
[]
[]
[]
[]
[]
[]
[]
[]
[]
[]
[]
[]
[]
[]
[]
[]
[]
[]
[]
[]
[]
[]
[]
[]
[]
[]
[]
[]
[null,null,null,"*",null,"Nur bei ausländischen Kapitalgesellschaften anzugeben."]
[null,null,null,"**",null,"Nur bei Beteiligungen an ausländischen Personengesellschaften anzugeben."]
[null,null,null,"***",null,"Angabe nur erforderlich, wenn nicht identisch mit der im Kopf angegebenen Steuer-/Wirtschafts-"]
[null,null,null,null,null,"Identifikationsnummer bzw. Steuernummer."]
[]
[null,null,null,"****",null,"Nur auszufüllen, wenn der Ort des Sitzes vom Ort der Geschäftsleitung abweicht."]
[]
[]
[null,null,"Anlage: Drittstaat-Gesellschaft; Seite 1"]
[]
[]
[]
[null,null,"010003 - BZSt 2 Mitteilungen nach § 138 Abs. 2 AO - 11/2020"]

{"sheet":"Drittstaat 17","index":57,"n_rows":147,"n_cols":37,"rows_kept":147,"cut":false,"hidden":true,"merged":[[142,2,142,33],[146,2,146,33],[89,3,89,13],[90,3,90,20],[91,3,91,17],[91,18,91,31],[93,3,93,8],[94,3,94,8],[83,3,83,21],[83,22,83,31],[85,2,85,21],[87,3,87,21],[88,5,88,9],[88,11,88,15],[77,3,77,31],[38,3,38,9],[39,3,39,31],[41,3,41,7],[42,3,42,8],[43,3,43,19],[44,3,44,4],[44,5,47,32],[54,3,54,31],[70,2,70,33],[73,2,73,33],[75,2,75,32],[76,3,76,16],[37,3,37,8],[37,10,37,31],[28,3,28,31],[29,3,29,7],[29,10,29,20],[30,3,30,8],[30,10,30,31],[31,3,31,6],[32,3,32,31],[34,3,34,13],[35,3,35,31],[36,3,36,9],[36,10,36,15],[27,3,27,11],[16,5,16,15],[18,5,18,26],[18,27,18,29],[18,30,18,31],[21,5,21,26],[21,27,21,29],[21,30,21,31],[24,2,24,21],[25,3,25,13],[25,26,25,31],[26,3,26,24],[26,26,26,31],[2,2,2,32],[3,2,4,32],[6,3,6,16],[7,3,7,29],[14,3,14,21],[14,22,14,31]]}
[]
[]
[null,null,{"$f":"Header","v":""}]
[null,null,"Anlage: Drittstaat-Gesellschaft"]
[]
[]
[null,null,null,"Name / Firma der steuerpflichtigen Person"]
[null,null,null,null,null,null,null,null,null,null,null,null,null,null,null,null,null,null,null,null,null,null,null,null,null,null,null,null,null,null,"20",{"$f":"IF(Jahr=\"\",\"\",Jahr)","v":""}]
[]
[]
[null,null,null,"Steuer-Identifikationsnummer bzw.",null,null,null,null,null,null,null,null,null,null,null,null,null,null,null,null,null,null,"Steuernummer der steuerpflichtigen Person"]
[null,null,null,"Wirtschafts-Identifikationsnummer der steuerpflichtigen Person"]
[]
[]
[]
[]
[]
[]
[null,null,null,null,null," Ausländische Personengesellschaft",null,null,null,null,null,null,null,null,null,null,null,null,null,null,null,null,null,null,null,null,null,"Lfd. Nr. (3)"]
[]
[]
[null,null,null,null,null," Ausländische Kapitalgesellschaft, Vermögensmasse, Personenvereinigung (8)",null,null,null,null,null,null,null,null,null,null,null,null,null,null,null,null,null,null,null,null,null,"Lfd. Nr. (3)"]
[null,null,null,null,null,null,null,null,null,null,null,null,null,null,null,null,null,null,null,null,null,null,null,null,null,null,null,null,null,null,null,null,null,null,null,null," "]
[]
[null,null," Angaben zur Drittstaat-Gesellschaft"]
[null,null,null,"Firmenname (4)",null,null,null,null,null,null,null,null,null,null,null,null,null,null,null,null,null,null,null,null,null,null,"Rechtsform"]
[]
[null,null,null,"Straße / Hausnummer"]
[]
[null,null,null,"Postleitzahl",null,null,null,null,null,null,"Wohnort / Sitz / Ort der Geschäftsleitung"]
[]
[null,null,null,"Staat"]
[]
[]
[null,null,null,"Sitz: Straße / Hausnummer ****"]
[]
[null,null,null,"Sitz: Postleitzahl ****",null,null,null,null,null,null,"Sitz: Ort ****"]
[]
[null,null,null,"Sitz: Staat ****"]
[]
[]
[null,null,null,"Gründung am"]
[]
[null,null,null,"Art der wirtschaftlichen Tätigkeit / Geschäftszweck"]
[null,null,null,null,null," 1 = Land- und Forstwirtschaft, 2 = Gewerbliche Herstellung und Verarbeitung,\n 3 = Kreditinstitut oder Versicherungsunternehmen, 4 = Handel, 5 = Überlassung von Rechten, Plänen, Mustern,\n 6 = Vermietung und Verpachtung von Grundstücken, 7 = Vermietung und Verpachtung von beweglichen Sachen,\n 8 = Verwaltung, 9 = Kapitalanlage, 10 = Finanzierung, 11 = Sonstige Dienstleistungen, 12 = Holding,\n 13 = Sonstiges (10)"]
[]
[]
[]
[]
[null,null,null,null,"Erläuterungen"]
[]
[]
[]
[]
[]
[]
[]
[]
[]
[]
[]
[]
[]
[]
[]
[]
[]
[]
[]
[]
[null,null,"Anlage: Drittstaat-Gesellschaft; Seite 1"]
[]
[]
[null,null,"010003 - BZSt 2 Mitteilungen nach § 138 Abs. 2 AO - 11/2020"]
[]
[null,null,{"$f":"Header","v":""}]
[null,null,null,"Im Inland steuerlich erfasst beim Finanzamt (6)"]
[]
[]
[null,null,null,"Steuer-Identifikationsnummer bzw.",null,null,null,null,null,null,null,null,null,null,null,null,null,null,null,null,null,null,"Steuernummer ***"]
[null,null,null,"Wirtschafts-Identifikationsnummer ***"]
[]
[]
[]
[]
[null,null,"Bei Beteiligung an der Drittstaat-Gesellschaft (8)"]
[]
[null,null,null,"Ich habe eine Beteiligung an der Drittstaat-Gesellschaft:"]
[null,null,null,null,null," Ja              /",null,null,null,null,null," Nein"]
[null,null,null,"(zutreffendes bitte ankreuzen)"]
[null,null,null,"Anteil am Nominalkapital */ Kapital **   (in Prozent)"]
[]
[]
[null,null,null,"Beteiligt seit dem"]
[]
[]
[]
[]
[]
[]
[]
[]
[]
[]
[]
[]
[]
[]
[]
[]
[]
[]
[]
[]
[]
[]
[]
[]
[]
[]
[]
[]
[]
[]
[]
[]
[]
[]
[]
[]
[]
[]
[]
[]
[null,null,null,"*",null,"Nur bei ausländischen Kapitalgesellschaften anzugeben."]
[null,null,null,"**",null,"Nur bei Beteiligungen an ausländischen Personengesellschaften anzugeben."]
[null,null,null,"***",null,"Angabe nur erforderlich, wenn nicht identisch mit der im Kopf angegebenen Steuer-/Wirtschafts-"]
[null,null,null,null,null,"Identifikationsnummer bzw. Steuernummer."]
[]
[null,null,null,"****",null,"Nur auszufüllen, wenn der Ort des Sitzes vom Ort der Geschäftsleitung abweicht."]
[]
[]
[null,null,"Anlage: Drittstaat-Gesellschaft; Seite 1"]
[]
[]
[]
[null,null,"010003 - BZSt 2 Mitteilungen nach § 138 Abs. 2 AO - 11/2020"]

{"sheet":"Drittstaat 18","index":58,"n_rows":147,"n_cols":37,"rows_kept":147,"cut":false,"hidden":true,"merged":[[142,2,142,33],[146,2,146,33],[89,3,89,13],[90,3,90,20],[91,3,91,17],[91,18,91,31],[93,3,93,8],[94,3,94,8],[83,3,83,21],[83,22,83,31],[85,2,85,21],[87,3,87,21],[88,5,88,9],[88,11,88,15],[77,3,77,31],[38,3,38,9],[39,3,39,31],[41,3,41,7],[42,3,42,8],[43,3,43,19],[44,3,44,4],[44,5,47,32],[54,3,54,31],[70,2,70,33],[73,2,73,33],[75,2,75,32],[76,3,76,16],[37,3,37,8],[37,10,37,31],[28,3,28,31],[29,3,29,7],[29,10,29,20],[30,3,30,8],[30,10,30,31],[31,3,31,6],[32,3,32,31],[34,3,34,13],[35,3,35,31],[36,3,36,9],[36,10,36,15],[27,3,27,11],[16,5,16,15],[18,5,18,26],[18,27,18,29],[18,30,18,31],[21,5,21,26],[21,27,21,29],[21,30,21,31],[24,2,24,21],[25,3,25,13],[25,26,25,31],[26,3,26,24],[26,26,26,31],[2,2,2,32],[3,2,4,32],[6,3,6,16],[7,3,7,29],[14,3,14,21],[14,22,14,31]]}
[]
[]
[null,null,{"$f":"Header","v":""}]
[null,null,"Anlage: Drittstaat-Gesellschaft"]
[]
[]
[null,null,null,"Name / Firma der steuerpflichtigen Person"]
[null,null,null,null,null,null,null,null,null,null,null,null,null,null,null,null,null,null,null,null,null,null,null,null,null,null,null,null,null,null,"20",{"$f":"IF(Jahr=\"\",\"\",Jahr)","v":""}]
[]
[]
[null,null,null,"Steuer-Identifikationsnummer bzw.",null,null,null,null,null,null,null,null,null,null,null,null,null,null,null,null,null,null,"Steuernummer der steuerpflichtigen Person"]
[null,null,null,"Wirtschafts-Identifikationsnummer der steuerpflichtigen Person"]
[]
[]
[]
[]
[]
[]
[null,null,null,null,null," Ausländische Personengesellschaft",null,null,null,null,null,null,null,null,null,null,null,null,null,null,null,null,null,null,null,null,null,"Lfd. Nr. (3)"]
[]
[]
[null,null,null,null,null," Ausländische Kapitalgesellschaft, Vermögensmasse, Personenvereinigung (8)",null,null,null,null,null,null,null,null,null,null,null,null,null,null,null,null,null,null,null,null,null,"Lfd. Nr. (3)"]
[null,null,null,null,null,null,null,null,null,null,null,null,null,null,null,null,null,null,null,null,null,null,null,null,null,null,null,null,null,null,null,null,null,null,null,null," "]
[]
[null,null," Angaben zur Drittstaat-Gesellschaft"]
[null,null,null,"Firmenname (4)",null,null,null,null,null,null,null,null,null,null,null,null,null,null,null,null,null,null,null,null,null,null,"Rechtsform"]
[]
[null,null,null,"Straße / Hausnummer"]
[]
[null,null,null,"Postleitzahl",null,null,null,null,null,null,"Wohnort / Sitz / Ort der Geschäftsleitung"]
[]
[null,null,null,"Staat"]
[]
[]
[null,null,null,"Sitz: Straße / Hausnummer ****"]
[]
[null,null,null,"Sitz: Postleitzahl ****",null,null,null,null,null,null,"Sitz: Ort ****"]
[]
[null,null,null,"Sitz: Staat ****"]
[]
[]
[null,null,null,"Gründung am"]
[]
[null,null,null,"Art der wirtschaftlichen Tätigkeit / Geschäftszweck"]
[null,null,null,null,null," 1 = Land- und Forstwirtschaft, 2 = Gewerbliche Herstellung und Verarbeitung,\n 3 = Kreditinstitut oder Versicherungsunternehmen, 4 = Handel, 5 = Überlassung von Rechten, Plänen, Mustern,\n 6 = Vermietung und Verpachtung von Grundstücken, 7 = Vermietung und Verpachtung von beweglichen Sachen,\n 8 = Verwaltung, 9 = Kapitalanlage, 10 = Finanzierung, 11 = Sonstige Dienstleistungen, 12 = Holding,\n 13 = Sonstiges (10)"]
[]
[]
[]
[]
[null,null,null,null,"Erläuterungen"]
[]
[]
[]
[]
[]
[]
[]
[]
[]
[]
[]
[]
[]
[]
[]
[]
[]
[]
[]
[]
[null,null,"Anlage: Drittstaat-Gesellschaft; Seite 1"]
[]
[]
[null,null,"010003 - BZSt 2 Mitteilungen nach § 138 Abs. 2 AO - 11/2020"]
[]
[null,null,{"$f":"Header","v":""}]
[null,null,null,"Im Inland steuerlich erfasst beim Finanzamt (6)"]
[]
[]
[null,null,null,"Steuer-Identifikationsnummer bzw.",null,null,null,null,null,null,null,null,null,null,null,null,null,null,null,null,null,null,"Steuernummer ***"]
[null,null,null,"Wirtschafts-Identifikationsnummer ***"]
[]
[]
[]
[]
[null,null,"Bei Beteiligung an der Drittstaat-Gesellschaft (8)"]
[]
[null,null,null,"Ich habe eine Beteiligung an der Drittstaat-Gesellschaft:"]
[null,null,null,null,null," Ja              /",null,null,null,null,null," Nein"]
[null,null,null,"(zutreffendes bitte ankreuzen)"]
[null,null,null,"Anteil am Nominalkapital */ Kapital **   (in Prozent)"]
[]
[]
[null,null,null,"Beteiligt seit dem"]
[]
[]
[]
[]
[]
[]
[]
[]
[]
[]
[]
[]
[]
[]
[]
[]
[]
[]
[]
[]
[]
[]
[]
[]
[]
[]
[]
[]
[]
[]
[]
[]
[]
[]
[]
[]
[]
[]
[]
[]
[null,null,null,"*",null,"Nur bei ausländischen Kapitalgesellschaften anzugeben."]
[null,null,null,"**",null,"Nur bei Beteiligungen an ausländischen Personengesellschaften anzugeben."]
[null,null,null,"***",null,"Angabe nur erforderlich, wenn nicht identisch mit der im Kopf angegebenen Steuer-/Wirtschafts-"]
[null,null,null,null,null,"Identifikationsnummer bzw. Steuernummer."]
[]
[null,null,null,"****",null,"Nur auszufüllen, wenn der Ort des Sitzes vom Ort der Geschäftsleitung abweicht."]
[]
[]
[null,null,"Anlage: Drittstaat-Gesellschaft; Seite 1"]
[]
[]
[]
[null,null,"010003 - BZSt 2 Mitteilungen nach § 138 Abs. 2 AO - 11/2020"]

{"sheet":"Drittstaat 19","index":59,"n_rows":147,"n_cols":37,"rows_kept":147,"cut":false,"hidden":true,"merged":[[142,2,142,33],[146,2,146,33],[89,3,89,13],[90,3,90,20],[91,3,91,17],[91,18,91,31],[93,3,93,8],[94,3,94,8],[83,3,83,21],[83,22,83,31],[85,2,85,21],[87,3,87,21],[88,5,88,9],[88,11,88,15],[77,3,77,31],[38,3,38,9],[39,3,39,31],[41,3,41,7],[42,3,42,8],[43,3,43,19],[44,3,44,4],[44,5,47,32],[54,3,54,31],[70,2,70,33],[73,2,73,33],[75,2,75,32],[76,3,76,16],[37,3,37,8],[37,10,37,31],[28,3,28,31],[29,3,29,7],[29,10,29,20],[30,3,30,8],[30,10,30,31],[31,3,31,6],[32,3,32,31],[34,3,34,13],[35,3,35,31],[36,3,36,9],[36,10,36,15],[27,3,27,11],[16,5,16,15],[18,5,18,26],[18,27,18,29],[18,30,18,31],[21,5,21,26],[21,27,21,29],[21,30,21,31],[24,2,24,21],[25,3,25,13],[25,26,25,31],[26,3,26,24],[26,26,26,31],[2,2,2,32],[3,2,4,32],[6,3,6,16],[7,3,7,29],[14,3,14,21],[14,22,14,31]]}
[]
[]
[null,null,{"$f":"Header","v":""}]
[null,null,"Anlage: Drittstaat-Gesellschaft"]
[]
[]
[null,null,null,"Name / Firma der steuerpflichtigen Person"]
[null,null,null,null,null,null,null,null,null,null,null,null,null,null,null,null,null,null,null,null,null,null,null,null,null,null,null,null,null,null,"20",{"$f":"IF(Jahr=\"\",\"\",Jahr)","v":""}]
[]
[]
[null,null,null,"Steuer-Identifikationsnummer bzw.",null,null,null,null,null,null,null,null,null,null,null,null,null,null,null,null,null,null,"Steuernummer der steuerpflichtigen Person"]
[null,null,null,"Wirtschafts-Identifikationsnummer der steuerpflichtigen Person"]
[]
[]
[]
[]
[]
[]
[null,null,null,null,null," Ausländische Personengesellschaft",null,null,null,null,null,null,null,null,null,null,null,null,null,null,null,null,null,null,null,null,null,"Lfd. Nr. (3)"]
[]
[]
[null,null,null,null,null," Ausländische Kapitalgesellschaft, Vermögensmasse, Personenvereinigung (8)",null,null,null,null,null,null,null,null,null,null,null,null,null,null,null,null,null,null,null,null,null,"Lfd. Nr. (3)"]
[null,null,null,null,null,null,null,null,null,null,null,null,null,null,null,null,null,null,null,null,null,null,null,null,null,null,null,null,null,null,null,null,null,null,null,null," "]
[]
[null,null," Angaben zur Drittstaat-Gesellschaft"]
[null,null,null,"Firmenname (4)",null,null,null,null,null,null,null,null,null,null,null,null,null,null,null,null,null,null,null,null,null,null,"Rechtsform"]
[]
[null,null,null,"Straße / Hausnummer"]
[]
[null,null,null,"Postleitzahl",null,null,null,null,null,null,"Wohnort / Sitz / Ort der Geschäftsleitung"]
[]
[null,null,null,"Staat"]
[]
[]
[null,null,null,"Sitz: Straße / Hausnummer ****"]
[]
[null,null,null,"Sitz: Postleitzahl ****",null,null,null,null,null,null,"Sitz: Ort ****"]
[]
[null,null,null,"Sitz: Staat ****"]
[]
[]
[null,null,null,"Gründung am"]
[]
[null,null,null,"Art der wirtschaftlichen Tätigkeit / Geschäftszweck"]
[null,null,null,null,null," 1 = Land- und Forstwirtschaft, 2 = Gewerbliche Herstellung und Verarbeitung,\n 3 = Kreditinstitut oder Versicherungsunternehmen, 4 = Handel, 5 = Überlassung von Rechten, Plänen, Mustern,\n 6 = Vermietung und Verpachtung von Grundstücken, 7 = Vermietung und Verpachtung von beweglichen Sachen,\n 8 = Verwaltung, 9 = Kapitalanlage, 10 = Finanzierung, 11 = Sonstige Dienstleistungen, 12 = Holding,\n 13 = Sonstiges (10)"]
[]
[]
[]
[]
[null,null,null,null,"Erläuterungen"]
[]
[]
[]
[]
[]
[]
[]
[]
[]
[]
[]
[]
[]
[]
[]
[]
[]
[]
[]
[]
[null,null,"Anlage: Drittstaat-Gesellschaft; Seite 1"]
[]
[]
[null,null,"010003 - BZSt 2 Mitteilungen nach § 138 Abs. 2 AO - 11/2020"]
[]
[null,null,{"$f":"Header","v":""}]
[null,null,null,"Im Inland steuerlich erfasst beim Finanzamt (6)"]
[]
[]
[null,null,null,"Steuer-Identifikationsnummer bzw.",null,null,null,null,null,null,null,null,null,null,null,null,null,null,null,null,null,null,"Steuernummer ***"]
[null,null,null,"Wirtschafts-Identifikationsnummer ***"]
[]
[]
[]
[]
[null,null,"Bei Beteiligung an der Drittstaat-Gesellschaft (8)"]
[]
[null,null,null,"Ich habe eine Beteiligung an der Drittstaat-Gesellschaft:"]
[null,null,null,null,null," Ja              /",null,null,null,null,null," Nein"]
[null,null,null,"(zutreffendes bitte ankreuzen)"]
[null,null,null,"Anteil am Nominalkapital */ Kapital **   (in Prozent)"]
[]
[]
[null,null,null,"Beteiligt seit dem"]
[]
[]
[]
[]
[]
[]
[]
[]
[]
[]
[]
[]
[]
[]
[]
[]
[]
[]
[]
[]
[]
[]
[]
[]
[]
[]
[]
[]
[]
[]
[]
[]
[]
[]
[]
[]
[]
[]
[]
[]
[null,null,null,"*",null,"Nur bei ausländischen Kapitalgesellschaften anzugeben."]
[null,null,null,"**",null,"Nur bei Beteiligungen an ausländischen Personengesellschaften anzugeben."]
[null,null,null,"***",null,"Angabe nur erforderlich, wenn nicht identisch mit der im Kopf angegebenen Steuer-/Wirtschafts-"]
[null,null,null,null,null,"Identifikationsnummer bzw. Steuernummer."]
[]
[null,null,null,"****",null,"Nur auszufüllen, wenn der Ort des Sitzes vom Ort der Geschäftsleitung abweicht."]
[]
[]
[null,null,"Anlage: Drittstaat-Gesellschaft; Seite 1"]
[]
[]
[]
[null,null,"010003 - BZSt 2 Mitteilungen nach § 138 Abs. 2 AO - 11/2020"]

{"sheet":"Drittstaat 20","index":60,"n_rows":147,"n_cols":37,"rows_kept":147,"cut":false,"hidden":true,"merged":[[142,2,142,33],[146,2,146,33],[89,3,89,13],[90,3,90,20],[91,3,91,17],[91,18,91,31],[93,3,93,8],[94,3,94,8],[83,3,83,21],[83,22,83,31],[85,2,85,21],[87,3,87,21],[88,5,88,9],[88,11,88,15],[77,3,77,31],[38,3,38,9],[39,3,39,31],[41,3,41,7],[42,3,42,8],[43,3,43,19],[44,3,44,4],[44,5,47,32],[54,3,54,31],[70,2,70,33],[73,2,73,33],[75,2,75,32],[76,3,76,16],[37,3,37,8],[37,10,37,31],[28,3,28,31],[29,3,29,7],[29,10,29,20],[30,3,30,8],[30,10,30,31],[31,3,31,6],[32,3,32,31],[34,3,34,13],[35,3,35,31],[36,3,36,9],[36,10,36,15],[27,3,27,11],[16,5,16,15],[18,5,18,26],[18,27,18,29],[18,30,18,31],[21,5,21,26],[21,27,21,29],[21,30,21,31],[24,2,24,21],[25,3,25,13],[25,26,25,31],[26,3,26,24],[26,26,26,31],[2,2,2,32],[3,2,4,32],[6,3,6,16],[7,3,7,29],[14,3,14,21],[14,22,14,31]]}
[]
[]
[null,null,{"$f":"Header","v":""}]
[null,null,"Anlage: Drittstaat-Gesellschaft"]
[]
[]
[null,null,null,"Name / Firma der steuerpflichtigen Person"]
[null,null,null,null,null,null,null,null,null,null,null,null,null,null,null,null,null,null,null,null,null,null,null,null,null,null,null,null,null,null,"20",{"$f":"IF(Jahr=\"\",\"\",Jahr)","v":""}]
[]
[]
[null,null,null,"Steuer-Identifikationsnummer bzw.",null,null,null,null,null,null,null,null,null,null,null,null,null,null,null,null,null,null,"Steuernummer der steuerpflichtigen Person"]
[null,null,null,"Wirtschafts-Identifikationsnummer der steuerpflichtigen Person"]
[]
[]
[]
[]
[]
[]
[null,null,null,null,null," Ausländische Personengesellschaft",null,null,null,null,null,null,null,null,null,null,null,null,null,null,null,null,null,null,null,null,null,"Lfd. Nr. (3)"]
[]
[]
[null,null,null,null,null," Ausländische Kapitalgesellschaft, Vermögensmasse, Personenvereinigung (8)",null,null,null,null,null,null,null,null,null,null,null,null,null,null,null,null,null,null,null,null,null,"Lfd. Nr. (3)"]
[null,null,null,null,null,null,null,null,null,null,null,null,null,null,null,null,null,null,null,null,null,null,null,null,null,null,null,null,null,null,null,null,null,null,null,null," "]
[]
[null,null," Angaben zur Drittstaat-Gesellschaft"]
[null,null,null,"Firmenname (4)",null,null,null,null,null,null,null,null,null,null,null,null,null,null,null,null,null,null,null,null,null,null,"Rechtsform"]
[]
[null,null,null,"Straße / Hausnummer"]
[]
[null,null,null,"Postleitzahl",null,null,null,null,null,null,"Wohnort / Sitz / Ort der Geschäftsleitung"]
[]
[null,null,null,"Staat"]
[]
[]
[null,null,null,"Sitz: Straße / Hausnummer ****"]
[]
[null,null,null,"Sitz: Postleitzahl ****",null,null,null,null,null,null,"Sitz: Ort ****"]
[]
[null,null,null,"Sitz: Staat ****"]
[]
[]
[null,null,null,"Gründung am"]
[]
[null,null,null,"Art der wirtschaftlichen Tätigkeit / Geschäftszweck"]
[null,null,null,null,null," 1 = Land- und Forstwirtschaft, 2 = Gewerbliche Herstellung und Verarbeitung,\n 3 = Kreditinstitut oder Versicherungsunternehmen, 4 = Handel, 5 = Überlassung von Rechten, Plänen, Mustern,\n 6 = Vermietung und Verpachtung von Grundstücken, 7 = Vermietung und Verpachtung von beweglichen Sachen,\n 8 = Verwaltung, 9 = Kapitalanlage, 10 = Finanzierung, 11 = Sonstige Dienstleistungen, 12 = Holding,\n 13 = Sonstiges (10)"]
[]
[]
[]
[]
[null,null,null,null,"Erläuterungen"]
[]
[]
[]
[]
[]
[]
[]
[]
[]
[]
[]
[]
[]
[]
[]
[]
[]
[]
[]
[]
[null,null,"Anlage: Drittstaat-Gesellschaft; Seite 1"]
[]
[]
[null,null,"010003 - BZSt 2 Mitteilungen nach § 138 Abs. 2 AO - 11/2020"]
[]
[null,null,{"$f":"Header","v":""}]
[null,null,null,"Im Inland steuerlich erfasst beim Finanzamt (6)"]
[]
[]
[null,null,null,"Steuer-Identifikationsnummer bzw.",null,null,null,null,null,null,null,null,null,null,null,null,null,null,null,null,null,null,"Steuernummer ***"]
[null,null,null,"Wirtschafts-Identifikationsnummer ***"]
[]
[]
[]
[]
[null,null,"Bei Beteiligung an der Drittstaat-Gesellschaft (8)"]
[]
[null,null,null,"Ich habe eine Beteiligung an der Drittstaat-Gesellschaft:"]
[null,null,null,null,null," Ja              /",null,null,null,null,null," Nein"]
[null,null,null,"(zutreffendes bitte ankreuzen)"]
[null,null,null,"Anteil am Nominalkapital */ Kapital **   (in Prozent)"]
[]
[]
[null,null,null,"Beteiligt seit dem"]
[]
[]
[]
[]
[]
[]
[]
[]
[]
[]
[]
[]
[]
[]
[]
[]
[]
[]
[]
[]
[]
[]
[]
[]
[]
[]
[]
[]
[]
[]
[]
[]
[]
[]
[]
[]
[]
[]
[]
[]
[null,null,null,"*",null,"Nur bei ausländischen Kapitalgesellschaften anzugeben."]
[null,null,null,"**",null,"Nur bei Beteiligungen an ausländischen Personengesellschaften anzugeben."]
[null,null,null,"***",null,"Angabe nur erforderlich, wenn nicht identisch mit der im Kopf angegebenen Steuer-/Wirtschafts-"]
[null,null,null,null,null,"Identifikationsnummer bzw. Steuernummer."]
[]
[null,null,null,"****",null,"Nur auszufüllen, wenn der Ort des Sitzes vom Ort der Geschäftsleitung abweicht."]
[]
[]
[null,null,"Anlage: Drittstaat-Gesellschaft; Seite 1"]
[]
[]
[]
[null,null,"010003 - BZSt 2 Mitteilungen nach § 138 Abs. 2 AO - 11/2020"]

{"sheet":"Hinweis","index":61,"n_rows":135,"n_cols":5,"rows_kept":135,"cut":false,"hidden":false,"merged":[[132,2,132,10],[74,2,74,22],[134,2,134,21],[88,2,88,22],[89,2,91,23],[71,2,73,23],[75,2,77,22],[82,2,82,9],[84,2,84,7],[85,2,85,8],[4,2,4,11],[62,2,62,8],[49,2,49,13],[37,2,48,23],[24,4,27,23],[28,4,29,23],[33,2,35,23],[50,2,54,23],[56,2,60,23],[67,2,67,21],[65,2,65,10],[6,2,8,23],[10,4,10,23],[11,4,12,23],[13,4,23,23]]}
[]
[]
[]
[]
[null,null,"Sehr geehrte(r) Steuerpflichtige(r),"]
[]
[null,null,"gemäß § 138 Abs. 2 der Abgabenordnung (AO) sind Sie verpflichtet, zur steuerlichen Erfassung von\nAuslandssachverhalten dem für Sie zuständigen Finanzamt mit beiliegendem Vordruck Folgendes\nanzuzeigen:"]
[]
[]
[]
[null,null,"1.",null,"die Gründung und den Erwerb von Betrieben und Betriebsstätten im Ausland;"]
[null,null,"2.",null,"den Erwerb, die Aufgabe oder die Veränderung einer Beteiligung an ausländischen\nPersonengesellschaften;"]
[]
[null,null,"3.",null,"den Erwerb oder die Veräußerung von Beteiligungen an einer Körperschaft,\nPersonenvereinigung oder Vermögensmasse mit Sitz und Geschäftsleitung im Ausland,\nwenn Sie\n- damit eine Beteiligung von mindestens zehn Prozent (unmittelbare und mittelbare Beteiligungen sind\nzusammenzurechnen) am Kapital oder Vermögen dieser Körperschaft, Personenvereinigung oder\nVermögensmasse erreichen\noder\n- die Summe der Anschaffungskosten aller Ihrer unmittelbaren und mittelbaren Beteiligungen\nmehr als 150.000 Euro beträgt.\nDie Veräußerung einer Beteiligung ist mitteilungspflichtig, wenn die Anschaffungskosten aller veräußerten\nBeteiligungen 150.000 Euro überschreiten oder mindestens eine 10-prozentige Beteiligung veräußert wird;"]
[]
[]
[]
[]
[]
[]
[]
[]
[]
[]
[null,null,"4.",null,"die Tatsache, dass Sie allein oder zusammen mit nahestehenden Personen im Sinne des § 1 Abs. 2 des\nAußensteuergesetzes (AStG) erstmals unmittelbar oder mittelbar einen beherrschenden oder\nbestimmenden Einfluss auf die gesellschaftsrechtlichen, finanziellen oder geschäftlichen Angelegenheiten\neiner Drittstaat-Gesellschaft ausüben können;"]
[]
[]
[]
[null,null,"5.",null,"die Art der wirtschaftlichen Tätigkeit des Betriebs, der Betriebsstätte, Personengesellschaft, Körperschaft,\nPersonenvereinigung, Vermögensmasse oder der Drittstaat-Gesellschaft."]
[]
[]
[]
[]
[null,null,"Haben Sie keinen ausländischen Betrieb / keine ausländische Betriebsstätte gegründet bzw. erworben und\nhalten Sie keine der oben genannten Beteiligungen, so kreuzen Sie bitte das für diesen Fall vorgesehene\nFeld der Mitteilung an."]
[]
[]
[]
[null,null,"Die Mitteilung ist grundsätzlich zusammen mit der Einkommensteuer-, Körperschaftsteuer- oder\nFeststellungserklärung für den Besteuerungszeitraum, in dem der mitzuteilende Sachverhalt verwirklicht\nwurde, spätestens jedoch bis zum Ablauf von 14 Monaten nach Ablauf dieses Besteuerungszeitraums nach\namtlich vorgeschriebenem Datensatz über die amtlich bestimmte Schnittstelle abzugeben. Sofern Sie nicht\nverpflichtet sind, ihre Einkommensteuer-, Körperschaftsteuer- oder Feststellungserklärung nach amtlich\nvorgeschriebenem Datensatz über die amtlich bestimmte Schnittstelle abzugeben, haben Sie die Mitteilung\nnach amtlich vorgeschriebenem Vordruck zu erstatten. Sind Sie nicht zur Abgabe einer Einkommensteuer-,\nKörperschaftsteuer- oder Feststellungserklärung verpflichtet, ist die Mitteilung nach amtlich vorge-\nschriebenem Vordruck bis zum Ablauf von 14 Monaten nach Ablauf des Kalenderjahrs abzugeben, in dem\nder mitzuteilende Sachverhalt verwirklicht wurde. Formulare für die Mitteilung können bei Bedarf von der\nInternetseite des Formularcenters der Bundesfinanzverwaltung (https://www.formulare-bfinv.de/) herunter\ngeladen werden."]
[]
[]
[]
[]
[]
[]
[]
[]
[]
[]
[]
[]
[null,null,"Bis zur Schaffung der technischen Voraussetzungen für die Abgabe der Mitteilungen nach amtlich\nvorgeschriebenem Datensatz über die amtlich bestimmte Schnittstelle, sind die Mitteilungen weiterhin nach\ndem amtlich vorgeschriebenen Vordruck (BZSt 2) zu erstatten. Sobald die technischen Voraussetzungen\nvorliegen, wird auf den Internetseiten des BMF und des Bundeszentralamtes für Steuern (BZSt) darüber\ninformiert werden."]
[]
[]
[]
[]
[]
[null,null,"Die mit dieser Mitteilung angeforderten Daten werden aufgrund der §§ 137 ff., 149 ff. AO zum Zweck der\nBesteuerung erhoben. Die vorsätzliche oder leichtfertige Nichtanzeige, nicht vollständige oder nicht\nrechtzeitige Anzeige eines mitteilungspflichtigen Ereignisses stellt eine Ordnungswidrigkeit im Sinne des\n§ 379 Abs. 2 Nr. 1 AO dar und kann vorbehaltlich des § 378 AO mit einer Geldbuße von bis zu 25 000 Euro\ngeahndet werden (§ 379 Abs. 7 AO)."]
[]
[]
[]
[]
[]
[]
[]
[]
[null,null,"Einleitung; Seite 1 von 2"]
[]
[null,null,"010003 - BZSt 2 Mitteilungen nach § 138 Abs. 2 AO - 11/2020"]
[]
[]
[]
[null,null,"Weitere Hinweise zum Ausfüllen des Vordrucks können Sie den Erläuterungen auf der letzten Seite\nentnehmen. Sollten Sie noch Fragen zu diesem Vordruck haben, helfen Ihnen die Mitarbeiterinnen und\nMitarbeiter Ihres Finanzamtes gerne weiter."]
[]
[]
[]
[null,null,"Bitte beachten Sie, dass auch eine Steuererklärungspflicht zur gesonderten und ggf. auch zur einheitlichen\n(bei mehreren Beteiligten an einer ausländischen Gesellschaft) Feststellung bestehen kann (§ 18 AStG,\n§§179 ff. AO)."]
[]
[]
[]
[]
[]
[]
[null,null,"Mit freundlichen Grüßen"]
[]
[null,null,"Ihr Finanzamt"]
[null,null,"www.finanzamt.de"]
[]
[]
[null,null,"Datenschutzhinweis:"]
[null,null,"Informationen über die Verarbeitung personenbezogener Daten in der Steuerverwaltung und über Ihre Rechte\nnach der Datenschutz-Grundverordnung sowie über Ihre Ansprechpartner in Datenschutzfragen entnehmen\nSie bitte dem allgemeinen Informationsschreiben der Steuerverwaltung (www.bzst.de/DatenschutzInfo)."]
[]
[]
[]
[]
[]
[]
[]
[]
[]
[]
[]
[]
[]
[]
[]
[]
[]
[]
[]
[]
[]
[]
[]
[]
[]
[]
[]
[]
[]
[]
[]
[]
[]
[]
[]
[]
[]
[]
[]
[]
[]
[]
[null,null,"Einleitung; Seite 2 von 2"]
[]
[null,null,"010003 - BZSt 2 Mitteilungen nach § 138 Abs. 2 AO - 11/2020"]

{"sheet":"Erläuterungen","index":62,"n_rows":131,"n_cols":10,"rows_kept":131,"cut":false,"hidden":false,"merged":[]}
[]
[]
[]
[]
[null,null,null,null,null,null,null,null,null,"Erläuterungen:"]
[]
[null,null,"(1)",null,"Ausländisch ist eine Körperschaft, Personengesellschaft, Vermögensmasse oder"]
[null,null,null,null,"Personenvereinigung, wenn sie weder ihre Geschäftsleitung noch ihren Sitz in der"]
[null,null,null,null,"Bundesrepublik Deutschland hat."]
[]
[null,null,"(2)",null,"Bei beschränkt geschäftsfähigen oder geschäftsunfähigen Personen ist die Unterschrift des"]
[null,null,null,null,"gesetzlichen Vertreters notwendig."]
[]
[null,null,"(3)",null,"Um Mehrfacheintragungen für die gleiche Person / Firma zu vermeiden, fügen Sie bitte in"]
[null,null,null,null,"dieses Feld eine laufende Nummer ein. Ist die gleiche Person / Firma später nochmals in der"]
[null,null,null,null,"Mitteilung aufzuführen, so verweisen Sie bitte in der Zeile \"Name / Firma\" lediglich auf diese"]
[null,null,null,null,"Nummer."]
[]
[null,null,"(4)",null,"Firmiert eine ausländische Gesellschaft auch unter Abkürzungen oder mehrsprachig, so sind"]
[null,null,null,null,"alle bekannten Bezeichnungen anzugeben."]
[]
[null,null,"(5)",null,"Anzugeben ist das Nominalkapital bzw. das Kapital zum Zeitpunkt des Erwerbs der"]
[null,null,null,null,"Beteiligung. Bei Änderung der Beteiligungsverhältnisse oder Aufgabe von Beteiligungen an"]
[null,null,null,null,"Personengesellschaften ist das Kapital zum Zeitpunkt der Änderung der Beteiligungs-"]
[null,null,null,null,"verhältnisse bzw. Aufgabe der Beteiligung anzugeben. Hat die ausländische Gesellschaft kein"]
[null,null,null,null,"Nominalkapital, so tritt an dessen Stelle das Reinvermögen."]
[]
[null,null,"(6)",null,"Soweit bekannt, sind das Finanzamt, bei dem der ausländische Betrieb / die ausländische"]
[null,null,null,null,"Betriebsstätte im Inland steuerlich erfasst ist und die Steuer- bzw. Wirtschafts-Identifikations-"]
[null,null,null,null,"nummer anzugeben."]
[]
[null,null,"(7)",null,"Bitte machen Sie hier Angaben zu Ihrer / Ihren Beteiligung(en) bzw. zu Beteiligungen einer"]
[null,null,null,null,"Person, für die Sie eine Meldung abgeben."]
[]
[null,null,null,null,"Sind Sie an einer ausländischen Gesellschaft nur mittelbar beteiligt, sind die an der"]
[null,null,null,null,"Gesellschaft unmittelbar beteiligten Personen / Firmen anzugeben, über die Sie mittelbar"]
[null,null,null,null,"beteiligt sind. Zeigen Sie in einer zusätzlichen Anlage auf, in welchem Umfang Sie mittelbar"]
[null,null,null,null,"beteiligt sind. Jede ausländische Zwischengesellschaft, über die Sie mittelbar beteiligt sind,"]
[null,null,null,null,"ist gesondert mitzuteilen."]
[]
[null,null,null,null,"Bei Stiftungen, Vermögensmassen etc. geben Sie bitte die Stifter, Begünstigten und ähnliche"]
[null,null,null,null,"mit ihren Anteilen am Vermögen oder Ertrag an. Falls Stimmrechte und Gewinnbeteiligungen"]
[null,null,null,null,"nicht der Beteiligung am Nominalkapital oder Vermögen der Gesellschaft (in Prozent)"]
[null,null,null,null,"entsprechen oder sich die Höhe der Beteiligungen im Laufe des Kalenderjahres geändert hat,"]
[null,null,null,null,"wird um eine Anlage mit erläuternden Angaben gebeten."]
[]
[]
[]
[]
[]
[]
[]
[]
[]
[]
[]
[]
[]
[]
[]
[]
[]
[]
[null,null,"Erläuterungen; Seite 1 von 2"]
[]
[null,null,"010003 - BZSt 2 Mitteilungen nach § 138 Abs. 2 AO - 11/2020"]
[]
[]
[]
[null,null,"(8)",null,"Drittstaat-Gesellschaft ist eine Personengesellschaft, Körperschaft, Personenvereinigung"]
[null,null,null,null,"oder Vermögensmasse mit Sitz oder Geschäftsleitung in Staaten oder Territorien, die nicht"]
[null,null,null,null,"Mitglieder der Europäischen Union oder der Europäischen Freihandelsassoziation sind. Eine"]
[null,null,null,null,"mitteilungspflichtige Möglichkeit eines beherrschenden oder bestimmenden Einflusses setzt"]
[null,null,null,null,"nicht das Bestehen einer unmittelbaren oder mittelbaren Beteiligung am Kapital oder"]
[null,null,null,null,"Vermögen der Gesellschaft voraus; er kann sich auch im Zusammenwirken mit nahe-"]
[null,null,null,null,"stehenden Personen im Sinne des § 1 Abs. 2 AStG ergeben (§ 139 Abs. 2 Nr. 4 AO). Bitte für"]
[null,null,null,null,"diese nahestehenden Personen ggf. Name und Adresse auf gesondertem Blatt aufführen."]
[]
[null,null,"(9)",null,"Eine vollständige Meldung umfasst folgende Bestandteile:"]
[null,null,null,null,"•","Wird mitgeteilt, dass keine Auslandsbeteiligungen bestehen, ist nur das ausgefüllte und"]
[null,null,null,null,null,"unterschriebene Deckblatt einzureichen (Seite 1 des Formulars)."]
[null,null,null,null,"•","Bestehen eine oder mehrere ausländische Betriebsstätten bzw. ein oder mehrere"]
[null,null,null,null,null,"ausländische Betriebe, ist das Deckblatt zusammen mit der/den Anlage(n) \"Ausländische"]
[null,null,null,null,null,"Gesellschaft / ausländische Betriebsstätte / ausländischer Betrieb\" einzureichen"]
[null,null,null,null,null,"(Seiten 1 und 2 des Formulars)."]
[null,null,null,null,"•","Bestehen Beteiligungen an ausländischen Personengesellschaften und/oder ausländischen"]
[null,null,null,null,null,"Kapitalgesellschaften, sind neben dem Deckblatt und der/den Anlage(n) \"Ausländische"]
[null,null,null,null,null,"Gesellschaft / ausländische Betriebsstätte / ausländischer Betrieb\" auch die Anlage(n)"]
[null,null,null,null,null,"\"Beteiligte\" für jede Beteiligung abzugeben (Seiten 1 – 3 des Formulars). Als Beteiligung"]
[null,null,null,null,null,"gilt auch ein 100-prozentiger Anteil an einer ausländischen Kapitalgesellschaft."]
[null,null,null,null,"•","Besteht die erstmalige Möglichkeit der Beherrschung oder Bestimmung der"]
[null,null,null,null,null,"gesellschaftsrechtlichen, finanziellen oder geschäftlichen Angelegenheiten einer"]
[null,null,null,null,null,"Drittstaat-Gesellschaft ist neben dem Deckblatt die Anlage \"Drittstaat-Gesellschaft\""]
[null,null,null,null,null,"abzugeben (Seiten 1 und 4 des Formulars)."]
[]
[null,null,"(10)",null," Bitte tragen Sie hier die zutreffende Kennzahl zur Art der wirtschaftlichen Tätigkeit/zum"]
[null,null,null,null," Geschäftszweck und ggf. ergänzende Erläuterungen ein."]
[null,null,null,null," Bei Eintragung der Kennzahl 13 \"Sonstiges\" sind stets erläuternde Angaben notwendig."]
[]
[]
[]
[]
[]
[]
[]
[]
[]
[]
[]
[]
[]
[]
[]
[]
[]
[]
[]
[]
[]
[]
[]
[]
[]
[]
[]
[]
[]
[]
[null,null,"Erläuterungen; Seite 2 von 2"]
[]
[null,null,"010003 - BZSt 2 Mitteilungen nach § 138 Abs. 2 AO - 11/2020"]

{"sheet":"Attribute","index":63,"n_rows":6,"n_cols":3,"rows_kept":6,"cut":false,"hidden":true,"merged":[]}
["KAW-Variable","Wert","Bezeichnung"]
["KAW020001",{"$f":"IF(Mandantennummer=\"\",\"\",Mandantennummer)","v":""},"Nummer"]
["KAW010101",{"$f":"IF(FirstRun=\"\",\"\",YEAR(FirstRun))","v":2021},"Jahr"]
["KAW010102",{"$f":"IF(FirstRun=\"\",\"\",MONTH(FirstRun))","v":12},"Monat"]
["KAW010103","Mitteilung über Auslands-Gründung /-Erwerb /-Beteiligung","Beschreibung"]
["KAW010105","Mitteilung, Auslands-Gründung, Auslands-Erwerb, Auslands-Beteiligung","Stichworte"]

{"sheet":"Drucken","index":64,"n_rows":7,"n_cols":12,"rows_kept":7,"cut":false,"hidden":true,"merged":[]}
["Sheetname","Header","Caption","Checked","Druck","Linebreak","WithBlankSheet","BlankSheetName","Seiten","Drucker","BeraterMandant","Duplex"]
["Mitteilung","Header",null,true,true,null,null,null,1,null,true,true]
["Gesellschaft 1",null,null,true,true,null,null,null,1]
["Beteiligte 1",null,null,true,true,null,null,null,1]
["Drittstaat 1",null,null,true,true,null,null,null,1]
["Hinweis",null,null,false,true,null,null,null,1]
["Erläuterungen",null,null,false,true,null,null,null,1]

{"sheet":"Eintragung","index":65,"n_rows":27,"n_cols":17,"rows_kept":27,"cut":false,"hidden":true,"merged":[]}
["Art","Person","Betrieb","VF","Quelle / Ziel","Wert","VF","Wert 1","Wert 2","Wert 3","Wert 4","Wert 5","Wert 6","Wert 7","Wert 8","Wert 9","Wert 10"]
["ZMSD","$Mandant.Nummer","$Mandant.Nummer",null,"Mandantennummer",""]
["ZMSD","$Steuerpflichtiger.Hauptfinanzamt.Info.Bezeichnung1","$Betrieb.Hauptfinanzamt.Info.Bezeichnung1",null,"FaBezeichnung",""]
["ZMSD","$Steuerpflichtiger.Hauptfinanzamt.Steuernummer","$Betrieb.Hauptfinanzamt.Steuernummer",null,"Steuernummer",""]
["ZMSD","NA","$Betrieb.Unternehmensform",null,"UntForm",""]
["ZMSD","NA","$Betrieb.Unternehmensbezeichnung",null,"UntBezeichnung",""]
["ZMSD","NA","$Betrieb.Hauptstrasse.Strasse",null,"UntStraße",""]
["ZMSD","NA","$Betrieb.Hauptstrasse.PLZ",null,"UntPLZ",""]
["ZMSD","NA","$Betrieb.Hauptstrasse.Ort",null,"UntOrt",""]
["ZMSD","$Steuerpflichtiger.PersoenlicheDaten.Identifikationsnummer","NA",null,"PersIDNr",""]
["ZMSD","$Steuerpflichtiger.TitelAkademischerGrad","NA",null,"PersTitel",""]
["ZMSD","$Steuerpflichtiger.Vorname","NA",null,"PersVorname",""]
["ZMSD","$Steuerpflichtiger.Nachname","NA",null,"PersName",""]
["ZMSD","$Steuerpflichtiger.PersoenlicheDaten.Geburt.Datum","NA",null,"PersGeburtsdatum",""]
["ZMSD","$Steuerpflichtiger.Hauptstrasse.Strasse","NA",null,"PersStraße",""]
["ZMSD","$Steuerpflichtiger.Hauptstrasse.PLZ","NA",null,"PersPLZ",""]
["ZMSD","$Steuerpflichtiger.Hauptstrasse.Ort","NA",null,"PersOrt",""]
["COPY",null,null,null,"ZFaBezeichnung1",{"$f":"IF(FaBezeichnung=\"\",\"\",FaBezeichnung)","v":""}]
["COPY",null,null,null,"ZSteuernummer",{"$f":"IF(Steuernummer=\"\",\"\",Steuernummer)","v":""}]
["COPY",null,null,null,"ZStPfIDNr",{"$f":"IF(PersIDNr=\"\",\"\",PersIDNr)","v":""}]
["COPY",null,null,null,"ZStPfNameFirma",{"$f":"IF(UntBezeichnung=\"\",IF(PersName=\"\",\"\",IF(PersTitel=\"\",\"\",PersTitel&\" \")&PersName),UntBezeichnung)","v":""}]
["COPY",null,null,null,"ZStPfVorname",{"$f":"IF(PersVorname=\"\",\"\",PersVorname)","v":""}]
["COPY",null,null,null,"ZStPfGeburtsdatum",{"$f":"IF(PersGeburtsdatum=\"\",\"\",Datumkonvert(PersGeburtsdatum))","v":""}]
["COPY",null,null,null,"ZStPfStraße",{"$f":"IF(UntStraße=\"\",IF(PersStraße=\"\",\"\",PersStraße),UntStraße)","v":""}]
["COPY",null,null,null,"ZStPfPLZ",{"$f":"IF(UntPLZ=\"\",IF(PersPLZ=\"\",\"\",PersPLZ),UntPLZ)","v":""}]
["COPY",null,null,null,"ZStPfOrt",{"$f":"IF(UntOrt=\"\",IF(PersOrt=\"\",\"\",PersOrt),UntOrt)","v":""}]
["COPY",null,null,null,"ZUntForm",{"$f":"Rechtsformkonvert(UntForm)","v":""}]

{"sheet":"Stammdaten","index":66,"n_rows":11,"n_cols":2,"rows_kept":11,"cut":false,"hidden":true,"merged":[]}
["Stammdaten"]
["ToolName","Neuanlage eines Mandats"]
["ToolVersion","V.4.9"]
["ToolDatum","(24.09.2021)"]
["ToolInfo",{"$f":"ToolName&\" \"&ToolVersion&\" \"&ToolDatum","v":"Neuanlage eines Mandats V.4.9 (24.09.2021)"}]
["Eingabekontrolle",true]
["HeaderAnzeige",false]
["Header",{"$f":"IF(HeaderAnzeige=TRUE,IF(ZStPfNameFirma=\"\",IF(ZSteuernummer=\"\",\"\",ZSteuernummer),ZStPfNameFirma&IF(ZSteuernummer=\"\",\"\",\" / \"&ZSteuernummer)),\"\")","v":""}]
["FirstRun","17.12.2021"]
["ToolId","Gr_Ausland"]
["ToolKompId","T0000023"]